﻿BODY,EXPENSE AREA,NAME,EXPENSE TYPE,REFERENCE,DATE,AMOUNT
Rotherham MBC,Adult Care & Housing,SCOTTISH POWER PLC,Energy,10822073,31-Jan-23,25.62
Rotherham MBC,Adult Care & Housing,SCOTTISH POWER PLC,Energy,10822073,31-Jan-23,52.71
Rotherham MBC,Adult Care & Housing,SCOTTISH POWER PLC,Energy,10822074,31-Jan-23,37.90
Rotherham MBC,Adult Care & Housing,SCOTTISH POWER PLC,Energy,10822074,31-Jan-23,48.27
Rotherham MBC,Adult Care & Housing,SCOTTISH POWER PLC,Energy,10822075,31-Jan-23,22.60
Rotherham MBC,Adult Care & Housing,SCOTTISH POWER PLC,Energy,10822075,31-Jan-23,52.71
Rotherham MBC,Regeneration & Environment,NATIONAL MINI MIX,Re-Instatement Materials,10838207,23-Jan-23,155.25
Rotherham MBC,Regeneration & Environment,NATIONAL MINI MIX,Re-Instatement Materials,10838235,23-Jan-23,249.00
Rotherham MBC,Regeneration & Environment,NATIONAL MINI MIX,Re-Instatement Materials,10838291,23-Jan-23,128.25
Rotherham MBC,Regeneration & Environment,CEMEX UK OPERATIONS LTD,Re-Instatement Materials,10846066,23-Jan-23,64.34
Rotherham MBC,Adult Care & Housing,SCOTTISH POWER PLC,Energy,10851447,31-Jan-23,21.19
Rotherham MBC,Adult Care & Housing,SCOTTISH POWER PLC,Energy,10851447,31-Jan-23,47.93
Rotherham MBC,Adult Care & Housing,SCOTTISH POWER PLC,Energy,10851449,31-Jan-23,20.18
Rotherham MBC,Adult Care & Housing,SCOTTISH POWER PLC,Energy,10851449,31-Jan-23,47.93
Rotherham MBC,Adult Care & Housing,SCOTTISH POWER PLC,Energy,10851451,31-Jan-23,21.39
Rotherham MBC,Adult Care & Housing,SCOTTISH POWER PLC,Energy,10851451,31-Jan-23,47.93
Rotherham MBC,Regeneration & Environment,MORRISON FS LTD (FACILITIES MANAGEMENT),Repair And Maintenance,10852735,31-Jan-23,361.10
Rotherham MBC,Adult Care & Housing,SCOTTISH POWER PLC,Energy,10859653,31-Jan-23,21.99
Rotherham MBC,Adult Care & Housing,SCOTTISH POWER PLC,Energy,10859653,31-Jan-23,47.58
Rotherham MBC,Adult Care & Housing,SCOTTISH POWER PLC,Energy,10859743,31-Jan-23,24.81
Rotherham MBC,Adult Care & Housing,SCOTTISH POWER PLC,Energy,10859743,31-Jan-23,47.58
Rotherham MBC,Adult Care & Housing,SCOTTISH POWER PLC,Energy,10859748,31-Jan-23,36.49
Rotherham MBC,Adult Care & Housing,SCOTTISH POWER PLC,Energy,10859748,31-Jan-23,40.89
Rotherham MBC,Regeneration & Environment,YORKSHIRE PURCHASING ORGANISATION,Food And Drink,10870948,03-Feb-23,48.20
Rotherham MBC,Adult Care & Housing,ROTHERHAM FEDERATION OF COMMUNITIES LTD,Rent  Lease & Property Management,10886942,17-Jan-23,13333.33
Rotherham MBC,Central Services,SOUTH YORKSHIRE MAYORAL,Levy Charges,10887018,18-Jan-23,848353.35
Rotherham MBC,Central Services,SOUTH YORKSHIRE PENSIONS,Levy Charges,10887024,17-Jan-23,5695.00
Rotherham MBC,Adult Care & Housing,SCOTTISH POWER PLC,Energy,10887643,31-Jan-23,128.71
Rotherham MBC,Regeneration & Environment,MORRISON FS LTD (FACILITIES MANAGEMENT),Repair And Maintenance,10887747,01-Feb-23,466.65
Rotherham MBC,Adult Care & Housing,SCOTTISH POWER PLC,Energy,10889777,31-Jan-23,13.11
Rotherham MBC,Adult Care & Housing,SCOTTISH POWER PLC,Energy,10889781,31-Jan-23,4.81
Rotherham MBC,Adult Care & Housing,SCOTTISH POWER PLC,Energy,10889783,31-Jan-23,135.18
Rotherham MBC,Adult Care & Housing,SCOTTISH POWER PLC,Energy,10889791,31-Jan-23,20.61
Rotherham MBC,Adult Care & Housing,SCOTTISH POWER PLC,Energy,10889791,31-Jan-23,43.73
Rotherham MBC,Regeneration & Environment,NPOWER,Energy,10908613,25-Jan-23,10.28
Rotherham MBC,Adult Care & Housing,SCOTTISH POWER PLC,Energy,10918762,31-Jan-23,34.91
Rotherham MBC,Adult Care & Housing,SCOTTISH POWER PLC,Energy,10918832,31-Jan-23,34.91
Rotherham MBC,Children & Young Peoples Serv,YORKSHIRE PURCHASING ORGANISATION,Food And Drink,11081278,23-Jan-23,341.15
Rotherham MBC,Public Health,CREATE DEVELOPMENT LTD,Training Services,11177187,13-Jan-23,1000.00
Rotherham MBC,Regeneration & Environment,CORE INTEGRATED SOLUTIONS LTD,Security,11182679,11-Jan-23,966.67
Rotherham MBC,Regeneration & Environment,BUSINESS STREAM,Water Services,11185928,06-Jan-23,2017.76
Rotherham MBC,Children & Young Peoples Serv,LEXTOX,Public Health & Care Services,11190060,09-Jan-23,906.00
Rotherham MBC,Regeneration & Environment,BUSINESS STREAM,Water Services,11192178,06-Jan-23,1373.46
Rotherham MBC,Regeneration & Environment,NPOWER,Energy,11201181,25-Jan-23,35.06
Rotherham MBC,Regeneration & Environment,FRED CAMM RECOVERY LTD,Transport  Operations And Logistics,11213703,27-Jan-23,1500.00
Rotherham MBC,Regeneration & Environment,G&S TOILET HIRE LTD,Site Accommodation Hire,11222944,11-Jan-23,600.00
Rotherham MBC,Regeneration & Environment,G&S TOILET HIRE LTD,Site Accommodation Hire,11222945,11-Jan-23,400.00
Rotherham MBC,Regeneration & Environment,ANGLIAN WATER BUSINESS (NATIONAL),Water Services,11223015,01-Feb-23,279.15
Rotherham MBC,Central Services,SOUTH YORKSHIRE MAYORAL,Levy Charges,11230379,17-Jan-23,63084.00
Rotherham MBC,Regeneration & Environment,PROVIDENCE MAINTENANCE & ELECTRICAL,Repair And Maintenance,11243157,11-Jan-23,96.00
Rotherham MBC,Regeneration & Environment,CHEM JET LTD,Cleaning Services,11247650,12-Jan-23,325.00
Rotherham MBC,Regeneration & Environment,BUSINESS STREAM,Water Services,11248001,06-Jan-23,832.28
Rotherham MBC,Regeneration & Environment,FRED CAMM RECOVERY LTD,Transport  Operations And Logistics,11262656,27-Jan-23,88.20
Rotherham MBC,Regeneration & Environment,CHEM JET LTD,Cleaning Services,11263319,12-Jan-23,325.00
Rotherham MBC,Public Health,FUNCTIONAL FITNESS SOLUTION LTD,Comprehensive Health Services,11263324,16-Jan-23,1485.00
Rotherham MBC,Regeneration & Environment,INDEPENDENT CONTRACTOR SECURITY LTD(ICS),Security,11264582,19-Jan-23,589.85
Rotherham MBC,Regeneration & Environment,HATHER PLANT HIRE LTD,Plant Hire,11268434,01-Feb-23,175.00
Rotherham MBC,Regeneration & Environment,FRED CAMM RECOVERY LTD,Transport  Operations And Logistics,11268437,27-Jan-23,93.00
Rotherham MBC,Regeneration & Environment,NATIONAL HIGHWAYS LIMITED,Transportation Engineering,11268486,27-Jan-23,10000.00
Rotherham MBC,Regeneration & Environment,INTERNATIONAL PARKING SYSTEMS (UK) LTD,Technology,11270064,18-Jan-23,-60.00
Rotherham MBC,Regeneration & Environment,DIRECT TRAFFIC MANAGEMENT LTD,Road Markings And Traffic Management,11271284,24-Jan-23,567.10
Rotherham MBC,Regeneration & Environment,CAR HIRE DAY OF SWANSEA LTD,Fleet Hire And Purchase  Financing,11275383,09-Jan-23,94.76
Rotherham MBC,Regeneration & Environment,QUESTECH RECRUITMENT LTD,Agency Staff Services,11286894,05-Jan-23,715.50
Rotherham MBC,Regeneration & Environment,BRYTONE LTD,Catering Equipment,11286964,16-Jan-23,127.95
Rotherham MBC,Regeneration & Environment,DIRECT TRAFFIC MANAGEMENT LTD,Road Markings And Traffic Management,11292373,10-Jan-23,2703.00
Rotherham MBC,Regeneration & Environment,QUESTECH RECRUITMENT LTD,Agency Staff Services,11294463,13-Jan-23,1060.00
Rotherham MBC,Children & Young Peoples Serv,YORKSHIRE PURCHASING ORGANISATION,Food And Drink,11297073,23-Jan-23,-184.68
Rotherham MBC,Regeneration & Environment,CHEM JET LTD,Cleaning Services,11298771,12-Jan-23,325.00
Rotherham MBC,Regeneration & Environment,ANGLIAN WATER BUSINESS (NATIONAL),Water Services,11322790,01-Feb-23,17.78
Rotherham MBC,Children & Young Peoples Serv,TAYLOR & EMMET SOLICITORS,Legal Services,11322801,18-Jan-23,1065.38
Rotherham MBC,Regeneration & Environment,W J NORTH LTD,Road Markings And Traffic Management,11329123,26-Jan-23,7211.60
Rotherham MBC,Regeneration & Environment,RODGERS PLANT HIRE LTD,Plant Hire,11329740,09-Jan-23,125.00
Rotherham MBC,Regeneration & Environment,RODGERS PLANT HIRE LTD,Plant Hire,11329741,09-Jan-23,165.95
Rotherham MBC,Regeneration & Environment,RODGERS PLANT HIRE LTD,Plant Hire,11330232,09-Jan-23,425.41
Rotherham MBC,Adult Care & Housing,DA LANGUAGES LTD,Translation  & Interpretation,11330476,23-Jan-23,63.60
Rotherham MBC,Regeneration & Environment,DIRECT TRAFFIC MANAGEMENT LTD,Road Markings And Traffic Management,11335155,24-Jan-23,529.43
Rotherham MBC,Regeneration & Environment,TERBERG MATEC U.K. LTD,Vehicle Recovery Maintenance Repair,11335239,27-Jan-23,310.00
Rotherham MBC,Regeneration & Environment,TERBERG MATEC U.K. LTD,Vehicle Recovery Maintenance Repair,11335240,27-Jan-23,205.61
Rotherham MBC,Regeneration & Environment,COUNTER CONTEXT LTD,Consultancy,11337615,23-Jan-23,780.00
Rotherham MBC,Regeneration & Environment,HATHER PLANT HIRE LTD,Plant Hire,11339801,01-Feb-23,1945.00
Rotherham MBC,Regeneration & Environment,JAMES BURRELL LTD,Building Materials,11339911,24-Jan-23,424.80
Rotherham MBC,Regeneration & Environment,INDEPENDENT CONTRACTOR SECURITY LTD(ICS),Security,11342965,27-Jan-23,1380.00
Rotherham MBC,Regeneration & Environment,TERBERG MATEC U.K. LTD,Vehicle Recovery Maintenance Repair,11343541,27-Jan-23,217.24
Rotherham MBC,Regeneration & Environment,TERBERG MATEC U.K. LTD,Vehicle Recovery Maintenance Repair,11343542,27-Jan-23,377.13
Rotherham MBC,Children & Young Peoples Serv,KCM WASTE MANAGEMENT LTD,Waste Disposal Inc Skip Hire,11345234,02-Feb-23,25.00
Rotherham MBC,Central Services,CORE TECHNOLOGY SYSTEMS (UK) LTD,Technology,11345344,27-Jan-23,1500.00
Rotherham MBC,Children & Young Peoples Serv,INSIGHT DIRECT (UK) LTD,Technology,11345766,09-Jan-23,51.99
Rotherham MBC,Regeneration & Environment,HATHER PLANT HIRE LTD,Plant Hire,11347048,01-Feb-23,1462.61
Rotherham MBC,Regeneration & Environment,ANGLIAN WATER BUSINESS (NATIONAL),Water Services,11347471,01-Feb-23,17.64
Rotherham MBC,Regeneration & Environment,INDEPENDENT CONTRACTOR SECURITY LTD(ICS),Security,11350615,27-Jan-23,1575.00
Rotherham MBC,Children & Young Peoples Serv,ADVANCED CHILD CARE ASSESSMENTS LTD,Licence & Professional Fees,11350699,10-Jan-23,2118.00
Rotherham MBC,Regeneration & Environment,BRYTONE LTD,Catering Equipment,11350759,16-Jan-23,127.90
Rotherham MBC,Children & Young Peoples Serv,PHONAK GROUP LIMITED,Health And Hygiene Equipment,11352056,09-Jan-23,3963.24
Rotherham MBC,Regeneration & Environment,INDEPENDENT CONTRACTOR SECURITY LTD(ICS),Security,11352086,27-Jan-23,1597.50
Rotherham MBC,Regeneration & Environment,AECOM INFRASTRUCTURE & ENVIRONMENT UK,Consultancy,11353392,18-Jan-23,1220.38
Rotherham MBC,Adult Care & Housing,CAE TECHNOLOGY SERVICES,Technology,11353398,10-Jan-23,491.23
Rotherham MBC,Children & Young Peoples Serv,SMART SHORT STAYS LTD,Supporting People - Foster Care,11353596,24-Jan-23,1470.00
Rotherham MBC,Assistant Chief Executive,INSIGHT DIRECT (UK) LTD,Technology,11353707,09-Jan-23,9931.25
Rotherham MBC,Children & Young Peoples Serv,PROVIDENCE MAINTENANCE & ELECTRICAL,Repair And Maintenance,11353736,11-Jan-23,552.00
Rotherham MBC,Regeneration & Environment,FIRE SAFETY SERVICES (FSS) LTD,Fire Prevention,11353787,30-Jan-23,306.25
Rotherham MBC,Regeneration & Environment,CHEM JET LTD,Cleaning Services,11353801,12-Jan-23,325.00
Rotherham MBC,Regeneration & Environment,PROVIDENCE MAINTENANCE & ELECTRICAL,Repair And Maintenance,11354689,10-Jan-23,156.00
Rotherham MBC,Regeneration & Environment,LIGHTMAIN COMPANY LTD,Fencing Contractors,11354738,01-Feb-23,2170.86
Rotherham MBC,Regeneration & Environment,R BURKINSHAW & SONS LTD,Plant Hire,11355006,19-Jan-23,4447.70
Rotherham MBC,Public Health,INSPIRE NORTH,Supporting People - Mental Health,11358064,13-Jan-23,350.00
Rotherham MBC,Regeneration & Environment,MARSHALLS PLC,Re-Instatement Materials,11359183,16-Jan-23,346.50
Rotherham MBC,Regeneration & Environment,RODGERS PLANT HIRE LTD,Plant Hire,11364771,09-Jan-23,176.00
Rotherham MBC,Regeneration & Environment,AECOM INFRASTRUCTURE & ENVIRONMENT UK,Consultancy,11364807,24-Jan-23,1136.13
Rotherham MBC,Central Services,INSIGHT DIRECT (UK) LTD,Technology,11364842,09-Jan-23,2229.20
Rotherham MBC,Assistant Chief Executive,INSIGHT DIRECT (UK) LTD,Technology,11364843,09-Jan-23,13321.00
Rotherham MBC,Children & Young Peoples Serv,YCG,Landscaping,11364962,11-Jan-23,3510.00
Rotherham MBC,Assistant Chief Executive,INSIGHT DIRECT (UK) LTD,Technology,11365068,24-Jan-23,-14802.25
Rotherham MBC,Regeneration & Environment,TERBERG MATEC U.K. LTD,Vehicle Recovery Maintenance Repair,11365158,27-Jan-23,267.37
Rotherham MBC,Children & Young Peoples Serv,GRANT AND ANNE KANGLEY,Residential Rental,11365224,30-Jan-23,3125.00
Rotherham MBC,Regeneration & Environment,SUTCLIFFE PLAY LIMITED,Landscaping,11365448,11-Jan-23,901.25
Rotherham MBC,Regeneration & Environment,SUTCLIFFE PLAY LIMITED,Landscaping,11365449,11-Jan-23,63.30
Rotherham MBC,Regeneration & Environment,SUTCLIFFE PLAY LIMITED,Landscaping,11365450,11-Jan-23,901.25
Rotherham MBC,Assistant Chief Executive,SOLON SECURITY LTD,Security,11365454,10-Jan-23,1125.00
Rotherham MBC,Regeneration & Environment,CAREMARK (ROTHERHAM),Supporting People - Independent Sector Homecare,11367245,24-Jan-23,440.00
Rotherham MBC,Regeneration & Environment,AHR ARCHITECTS LTD,Surveyors  Architects & Auctions,11367885,23-Jan-23,10215.87
Rotherham MBC,Finance & Customer Services,LANCE DODGSON,Legal Services,11368147,05-Jan-23,850.00
Rotherham MBC,Regeneration & Environment,HARSCO METALS GROUP LTD,Re-Instatement Materials,11369235,09-Jan-23,324.48
Rotherham MBC,Regeneration & Environment,BRYTONE LTD,Catering Equipment,11369480,24-Jan-23,96.00
Rotherham MBC,Regeneration & Environment,BRYTONE LTD,Catering Equipment,11369484,24-Jan-23,85.00
Rotherham MBC,Children & Young Peoples Serv,CITY OF BRADFORD MDC,Local Authority Spend,11370019,11-Jan-23,7600.00
Rotherham MBC,Regeneration & Environment,COUNTY TURF LTD,Landscaping,11370068,10-Jan-23,1738.75
Rotherham MBC,Regeneration & Environment,REED SPECIALIST RECRUITMENT LTD,Agency Staff Services,11370758,05-Jan-23,1502.19
Rotherham MBC,Regeneration & Environment,REED SPECIALIST RECRUITMENT LTD,Agency Staff Services,11370760,05-Jan-23,1254.00
Rotherham MBC,Regeneration & Environment,AECOM INFRASTRUCTURE & ENVIRONMENT UK,Consultancy,11370945,18-Jan-23,1282.97
Rotherham MBC,Regeneration & Environment,DIRECT TRAFFIC MANAGEMENT LTD,Road Markings And Traffic Management,11370992,25-Jan-23,2594.20
Rotherham MBC,Regeneration & Environment,MARSHALLS PLC,Re-Instatement Materials,11373011,10-Jan-23,231.00
Rotherham MBC,Regeneration & Environment,HSL COMPLIANCE LTD,Repair And Maintenance,11373075,17-Jan-23,1110.20
Rotherham MBC,Regeneration & Environment,HSL COMPLIANCE LTD,Repair And Maintenance,11373078,17-Jan-23,1110.20
Rotherham MBC,Regeneration & Environment,HSL COMPLIANCE LTD,Repair And Maintenance,11373079,17-Jan-23,1110.20
Rotherham MBC,Regeneration & Environment,HSL COMPLIANCE LTD,Repair And Maintenance,11373086,17-Jan-23,1110.20
Rotherham MBC,Regeneration & Environment,AHR ARCHITECTS LTD,Surveyors  Architects & Auctions,11373145,27-Jan-23,968.39
Rotherham MBC,Regeneration & Environment,AHR ARCHITECTS LTD,Surveyors  Architects & Auctions,11373445,31-Jan-23,17659.30
Rotherham MBC,Regeneration & Environment,AHR ARCHITECTS LTD,Surveyors  Architects & Auctions,11373446,31-Jan-23,3962.60
Rotherham MBC,Regeneration & Environment,REDFERN TRAVEL,Transport  Operations And Logistics,11373456,12-Jan-23,158.00
Rotherham MBC,Regeneration & Environment,REED TALENT SOLUTIONS LTD,Repair And Maintenance,11374019,05-Jan-23,1071.12
Rotherham MBC,Regeneration & Environment,REED TALENT SOLUTIONS LTD,Repair And Maintenance,11374020,05-Jan-23,1071.12
Rotherham MBC,Regeneration & Environment,REED TALENT SOLUTIONS LTD,Repair And Maintenance,11374021,05-Jan-23,1123.38
Rotherham MBC,Regeneration & Environment,REED TALENT SOLUTIONS LTD,Repair And Maintenance,11374022,05-Jan-23,1436.88
Rotherham MBC,Regeneration & Environment,REED TALENT SOLUTIONS LTD,Repair And Maintenance,11374023,05-Jan-23,1489.12
Rotherham MBC,Regeneration & Environment,REED TALENT SOLUTIONS LTD,Repair And Maintenance,11374024,05-Jan-23,1476.06
Rotherham MBC,Regeneration & Environment,N E TRUCK SPARES LTD,Transport  Operations And Logistics,11374097,20-Jan-23,4840.78
Rotherham MBC,Regeneration & Environment,CAREMARK (ROTHERHAM),Supporting People - Independent Sector Homecare,11374808,24-Jan-23,176.00
Rotherham MBC,Children & Young Peoples Serv,YORKSHIRE PURCHASING ORGANISATION,Food And Drink,11374904,06-Jan-23,20.87
Rotherham MBC,Adult Care & Housing,DULUX DECORATOR CENTRES,Repair And Maintenance,11374983,11-Jan-23,-7.43
Rotherham MBC,Children & Young Peoples Serv,ACE JANITORIAL SUPPLIES LTD,Ppe  Tools And Janitorial Supplies,11375189,06-Jan-23,35.96
Rotherham MBC,Regeneration & Environment,ACE JANITORIAL SUPPLIES LTD,Ppe  Tools And Janitorial Supplies,11375196,09-Jan-23,34.00
Rotherham MBC,Regeneration & Environment,JAMES BURRELL LTD,Building Materials,11375252,26-Jan-23,17.56
Rotherham MBC,Regeneration & Environment,PAWSON GROUP,Transport  Operations And Logistics,11375254,12-Jan-23,286.00
Rotherham MBC,Regeneration & Environment,1ST SECURITY SOLUTIONS LTD,Security,11375300,27-Jan-23,847.50
Rotherham MBC,Regeneration & Environment,J P GLASBY LTD,Repair And Maintenance,11375587,05-Jan-23,830.00
Rotherham MBC,Regeneration & Environment,HSL COMPLIANCE LTD,Repair And Maintenance,11375590,03-Feb-23,31.00
Rotherham MBC,Finance & Customer Services,ASHDALE ENGINEERING,Repair And Maintenance,11375825,23-Jan-23,2956.00
Rotherham MBC,Adult Care & Housing,BRITISH GAS,Energy,11376906,20-Jan-23,1234.35
Rotherham MBC,Regeneration & Environment,HARSCO METALS GROUP LTD,Re-Instatement Materials,11376918,09-Jan-23,649.00
Rotherham MBC,Finance & Customer Services,DNA LEGAL,Legal Services,11377001,12-Jan-23,172.80
Rotherham MBC,Regeneration & Environment,LYRECO UK LTD,Stationery  Furniture & It Consumables,11378811,12-Jan-23,7.25
Rotherham MBC,Adult Care & Housing,INSIGHT DIRECT (UK) LTD,Technology,11378815,09-Jan-23,45.99
Rotherham MBC,Regeneration & Environment,HSL COMPLIANCE LTD,Repair And Maintenance,11378989,10-Jan-23,184.00
Rotherham MBC,Regeneration & Environment,ARDEN WINCH & CO LTD,Ppe  Tools And Janitorial Supplies,11379212,06-Jan-23,23.67
Rotherham MBC,Regeneration & Environment,NINEHUNDRED COMMUNICATIONS,Technology,11379233,09-Jan-23,240.00
Rotherham MBC,Regeneration & Environment,DIRECT TRAFFIC MANAGEMENT LTD,Road Markings And Traffic Management,11379377,25-Jan-23,2325.40
Rotherham MBC,Regeneration & Environment,INSIGHT DIRECT (UK) LTD,Technology,11380702,09-Jan-23,112.99
Rotherham MBC,Adult Care & Housing,INSIGHT DIRECT (UK) LTD,Technology,11380704,09-Jan-23,50.99
Rotherham MBC,Adult Care & Housing,INSIGHT DIRECT (UK) LTD,Technology,11380709,09-Jan-23,34.79
Rotherham MBC,Central Services,INSIGHT DIRECT (UK) LTD,Technology,11380710,24-Jan-23,27.71
Rotherham MBC,Regeneration & Environment,DAWSONGROUP BUS AND COACH LTD,Taxi  Mini Bus  Coach Operations,11380745,12-Jan-23,30.00
Rotherham MBC,Regeneration & Environment,YORKSHIRE PURCHASING ORGANISATION,Food And Drink,11380757,26-Jan-23,89.76
Rotherham MBC,Children & Young Peoples Serv,YORKSHIRE PURCHASING ORGANISATION,Food And Drink,11380760,06-Jan-23,37.96
Rotherham MBC,Regeneration & Environment,DAWSONGROUP BUS AND COACH LTD,Taxi  Mini Bus  Coach Operations,11380766,10-Jan-23,2860.23
Rotherham MBC,Regeneration & Environment,DAWSONGROUP BUS AND COACH LTD,Taxi  Mini Bus  Coach Operations,11380766,10-Jan-23,-642.99
Rotherham MBC,Regeneration & Environment,DAWSONGROUP BUS AND COACH LTD,Taxi  Mini Bus  Coach Operations,11380767,09-Jan-23,1449.98
Rotherham MBC,Regeneration & Environment,DAWSONGROUP BUS AND COACH LTD,Taxi  Mini Bus  Coach Operations,11380767,09-Jan-23,-325.96
Rotherham MBC,Adult Care & Housing,CARE QUALITY COMMISSION,Supporting People - Nursing Care Home,11380815,05-Jan-23,8792.00
Rotherham MBC,Adult Care & Housing,CARE QUALITY COMMISSION,Supporting People - Nursing Care Home,11380815,05-Jan-23,8792.00
Rotherham MBC,Adult Care & Housing,CARE QUALITY COMMISSION,Supporting People - Nursing Care Home,11380815,05-Jan-23,816.00
Rotherham MBC,Adult Care & Housing,CARE QUALITY COMMISSION,Supporting People - Nursing Care Home,11380815,05-Jan-23,3063.00
Rotherham MBC,Children & Young Peoples Serv,FOR UNDER FIVES LTD,Educational Day Nursery,11380832,09-Jan-23,120.00
Rotherham MBC,Regeneration & Environment,N E TRUCK SPARES LTD,Transport  Operations And Logistics,11380857,23-Jan-23,11950.84
Rotherham MBC,Regeneration & Environment,IETG LTD,Consultancy,11380874,19-Jan-23,996.42
Rotherham MBC,Regeneration & Environment,LYRECO UK LTD,Stationery  Furniture & It Consumables,11380896,17-Jan-23,83.08
Rotherham MBC,Regeneration & Environment,ARDEN WINCH & CO LTD,Ppe  Tools And Janitorial Supplies,11381305,06-Jan-23,101.54
Rotherham MBC,Regeneration & Environment,DAWSONGROUP BUS AND COACH LTD,Taxi  Mini Bus  Coach Operations,11381315,10-Jan-23,2240.49
Rotherham MBC,Regeneration & Environment,DAWSONGROUP BUS AND COACH LTD,Taxi  Mini Bus  Coach Operations,11381315,10-Jan-23,-503.67
Rotherham MBC,Regeneration & Environment,HATHER PLANT HIRE LTD,Plant Hire,11381328,02-Feb-23,1462.61
Rotherham MBC,Regeneration & Environment,HATHER PLANT HIRE LTD,Plant Hire,11381348,02-Feb-23,1462.61
Rotherham MBC,Regeneration & Environment,REDFERN TRAVEL,Transport  Operations And Logistics,11381402,12-Jan-23,158.00
Rotherham MBC,Regeneration & Environment,ACE JANITORIAL SUPPLIES LTD,Ppe  Tools And Janitorial Supplies,11381483,06-Jan-23,252.00
Rotherham MBC,Regeneration & Environment,LYRECO UK LTD,Stationery  Furniture & It Consumables,11382433,17-Jan-23,162.44
Rotherham MBC,Children & Young Peoples Serv,SHELL ENERGY RETAIL LTD,Energy,11383062,18-Jan-23,206.38
Rotherham MBC,Children & Young Peoples Serv,SHELL ENERGY RETAIL LTD,Energy,11383062,18-Jan-23,253.16
Rotherham MBC,Regeneration & Environment,CEMEX UK OPERATIONS LTD,Re-Instatement Materials,11383064,23-Jan-23,575.61
Rotherham MBC,Adult Care & Housing,CAR HIRE DAY OF SWANSEA LTD,Fleet Hire And Purchase  Financing,11383083,09-Jan-23,-370.23
Rotherham MBC,Regeneration & Environment,CAR HIRE DAY OF SWANSEA LTD,Fleet Hire And Purchase  Financing,11383083,09-Jan-23,83.23
Rotherham MBC,Regeneration & Environment,ARDEN WINCH & CO LTD,Ppe  Tools And Janitorial Supplies,11383303,13-Jan-23,213.60
Rotherham MBC,Finance & Customer Services,JOSEPHINE CHU,Legal Services,11383528,18-Jan-23,500.00
Rotherham MBC,Regeneration & Environment,HSL COMPLIANCE LTD,Repair And Maintenance,11383598,10-Jan-23,92.00
Rotherham MBC,Regeneration & Environment,DIRECT TRAFFIC MANAGEMENT LTD,Road Markings And Traffic Management,11383600,10-Jan-23,14355.84
Rotherham MBC,Regeneration & Environment,DIRECT TRAFFIC MANAGEMENT LTD,Road Markings And Traffic Management,11383657,18-Jan-23,4.90
Rotherham MBC,Regeneration & Environment,W J NORTH LTD,Road Markings And Traffic Management,11383662,11-Jan-23,173.33
Rotherham MBC,Regeneration & Environment,DFP SERVICES LTD,Emergency Lighting And Accessories,11383675,24-Jan-23,15.00
Rotherham MBC,Regeneration & Environment,CHEM JET LTD,Cleaning Services,11383676,12-Jan-23,325.00
Rotherham MBC,Children & Young Peoples Serv,WAKEFIELD COUNCIL,Local Authority Spend,11383681,20-Jan-23,5848.00
Rotherham MBC,Regeneration & Environment,FRED CAMM RECOVERY LTD,Transport  Operations And Logistics,11384352,27-Jan-23,270.00
Rotherham MBC,Regeneration & Environment,AHR ARCHITECTS LTD,Surveyors  Architects & Auctions,11384372,20-Jan-23,2274.95
Rotherham MBC,Children & Young Peoples Serv,ASPRIS CHILDRENS SERVICES LTD,Supporting Minorities & Communities,11384444,25-Jan-23,25488.34
Rotherham MBC,Children & Young Peoples Serv,ASPRIS CHILDRENS SERVICES LTD,Supporting Minorities & Communities,11384445,25-Jan-23,26990.97
Rotherham MBC,Children & Young Peoples Serv,ASPRIS CHILDRENS SERVICES LTD,Supporting Minorities & Communities,11384446,25-Jan-23,20037.12
Rotherham MBC,Children & Young Peoples Serv,ASPRIS CHILDRENS SERVICES LTD,Supporting Minorities & Communities,11384447,25-Jan-23,25950.86
Rotherham MBC,Children & Young Peoples Serv,ASPRIS CHILDRENS SERVICES LTD,Supporting Minorities & Communities,11384448,27-Jan-23,25488.34
Rotherham MBC,Children & Young Peoples Serv,ASPRIS CHILDRENS SERVICES LTD,Supporting Minorities & Communities,11384449,25-Jan-23,30533.33
Rotherham MBC,Children & Young Peoples Serv,ASPRIS CHILDRENS SERVICES LTD,Supporting Minorities & Communities,11384451,25-Jan-23,26011.38
Rotherham MBC,Children & Young Peoples Serv,ASPRIS CHILDRENS SERVICES LTD,Supporting Minorities & Communities,11384452,25-Jan-23,23242.93
Rotherham MBC,Children & Young Peoples Serv,ASPRIS CHILDRENS SERVICES LTD,Supporting Minorities & Communities,11384453,25-Jan-23,24405.97
Rotherham MBC,Regeneration & Environment,EB CHARGING LTD,Energy,11384589,05-Jan-23,33735.03
Rotherham MBC,Regeneration & Environment,EB CHARGING LTD,Energy,11384590,05-Jan-23,13344.69
Rotherham MBC,Regeneration & Environment,EB CHARGING LTD,Energy,11384593,05-Jan-23,14838.97
Rotherham MBC,Regeneration & Environment,PROVIDENCE MAINTENANCE & ELECTRICAL,Repair And Maintenance,11387514,16-Jan-23,128.00
Rotherham MBC,Regeneration & Environment,PROVIDENCE MAINTENANCE & ELECTRICAL,Repair And Maintenance,11387515,11-Jan-23,204.00
Rotherham MBC,Regeneration & Environment,PROVIDENCE MAINTENANCE & ELECTRICAL,Repair And Maintenance,11387516,11-Jan-23,96.00
Rotherham MBC,Children & Young Peoples Serv,PROVIDENCE MAINTENANCE & ELECTRICAL,Repair And Maintenance,11387523,10-Jan-23,400.00
Rotherham MBC,Regeneration & Environment,CEMEX UK OPERATIONS LTD,Re-Instatement Materials,11387549,06-Jan-23,155.92
Rotherham MBC,Adult Care & Housing,ELECTRONIC TEMPERATURE INSTRUMENTS LTD,Catering Equipment,11388073,06-Jan-23,2310.00
Rotherham MBC,Regeneration & Environment,YORKSHIRE PURCHASING ORGANISATION,Food And Drink,11388083,26-Jan-23,-6.10
Rotherham MBC,Regeneration & Environment,CEMEX UK OPERATIONS LTD,Re-Instatement Materials,11388929,06-Jan-23,72.76
Rotherham MBC,Regeneration & Environment,CEMEX UK OPERATIONS LTD,Re-Instatement Materials,11388930,06-Jan-23,70.16
Rotherham MBC,Regeneration & Environment,CEMEX UK OPERATIONS LTD,Re-Instatement Materials,11388931,06-Jan-23,125.30
Rotherham MBC,Regeneration & Environment,SHEFFIELD TACHOGRAPH & TAIL LIFT,Transport  Operations And Logistics,11388942,27-Jan-23,97.10
Rotherham MBC,Regeneration & Environment,FRED CAMM RECOVERY LTD,Transport  Operations And Logistics,11388965,27-Jan-23,296.50
Rotherham MBC,Regeneration & Environment,FRED CAMM RECOVERY LTD,Transport  Operations And Logistics,11388966,27-Jan-23,245.00
Rotherham MBC,Children & Young Peoples Serv,THE TAVISTOCK INSTITUTE OF MEDICAL,Training Services,11388996,06-Jan-23,2000.00
Rotherham MBC,Adult Care & Housing,INSIGHT DIRECT (UK) LTD,Technology,11389022,09-Jan-23,48.92
Rotherham MBC,Finance & Customer Services,INSIGHT DIRECT (UK) LTD,Technology,11389045,09-Jan-23,50.99
Rotherham MBC,Adult Care & Housing,INSIGHT DIRECT (UK) LTD,Technology,11389047,09-Jan-23,60.99
Rotherham MBC,Regeneration & Environment,SUTCLIFFE PLAY LIMITED,Landscaping,11389053,11-Jan-23,63.30
Rotherham MBC,Regeneration & Environment,SHARROCK LTD,Landscaping,11389065,12-Jan-23,439.24
Rotherham MBC,Regeneration & Environment,YORKSHIRE PURCHASING ORGANISATION,Food And Drink,11389080,09-Jan-23,827.00
Rotherham MBC,Regeneration & Environment,DAWSONGROUP BUS AND COACH LTD,Taxi  Mini Bus  Coach Operations,11389081,12-Jan-23,92.10
Rotherham MBC,Adult Care & Housing,PRISM MEDICAL UK LTD,Lifts And Adaptation,11389088,02-Feb-23,5920.27
Rotherham MBC,Adult Care & Housing,ADVANTAGE PRINT & PROMOTIONS LTD,Printing Services,11389097,13-Jan-23,625.00
Rotherham MBC,Finance & Customer Services,HM REVENUE & CUSTOMS (NCIS) ONLY,Banking  Leasing And Insurance,11389105,16-Jan-23,-60.00
Rotherham MBC,Regeneration & Environment,BARONMEAD INTERNATIONAL LTD,Lifts And Adaptation,11390257,05-Jan-23,1529.00
Rotherham MBC,Regeneration & Environment,YORKSHIRE PURCHASING ORGANISATION,Food And Drink,11390357,09-Jan-23,51.68
Rotherham MBC,Regeneration & Environment,ARDEN WINCH & CO LTD,Ppe  Tools And Janitorial Supplies,11390370,03-Feb-23,695.10
Rotherham MBC,Regeneration & Environment,AHR ARCHITECTS LTD,Surveyors  Architects & Auctions,11390373,31-Jan-23,4981.70
Rotherham MBC,Regeneration & Environment,HSL COMPLIANCE LTD,Repair And Maintenance,11390385,10-Jan-23,31.00
Rotherham MBC,Regeneration & Environment,E.ON NEXT ENERGY LTD,Energy,11390410,24-Jan-23,70.04
Rotherham MBC,Regeneration & Environment,CEMEX UK OPERATIONS LTD,Re-Instatement Materials,11390429,09-Jan-23,83.16
Rotherham MBC,Regeneration & Environment,CEMEX UK OPERATIONS LTD,Re-Instatement Materials,11390430,09-Jan-23,77.96
Rotherham MBC,Regeneration & Environment,CEMEX UK OPERATIONS LTD,Re-Instatement Materials,11390431,09-Jan-23,80.88
Rotherham MBC,Adult Care & Housing,CLEARANCE AND CLEAN UP LTD,Waste Disposal Inc Skip Hire,11390435,13-Jan-23,345.00
Rotherham MBC,Regeneration & Environment,DFP SERVICES LTD,Fire Alarm Maintenance Or Monitoring,11390447,06-Jan-23,318.76
Rotherham MBC,Regeneration & Environment,FINDLAY IRVINE LTD,Road Markings And Traffic Management,11390495,13-Jan-23,21057.00
Rotherham MBC,Regeneration & Environment,JAMES BURRELL LTD,Building Materials,11390500,11-Jan-23,29.26
Rotherham MBC,Regeneration & Environment,SHARROCK LTD,Landscaping,11390506,12-Jan-23,399.75
Rotherham MBC,Regeneration & Environment,BRYTONE LTD,Catering Equipment,11390537,31-Jan-23,95.00
Rotherham MBC,Regeneration & Environment,BRYTONE LTD,Catering Equipment,11390538,16-Jan-23,90.00
Rotherham MBC,Finance & Customer Services,SOCITM LTD,Technology,11390548,16-Jan-23,1995.00
Rotherham MBC,Regeneration & Environment,PAWSON GROUP,Transport  Operations And Logistics,11390847,12-Jan-23,308.00
Rotherham MBC,Children & Young Peoples Serv,INSIGHT DIRECT (UK) LTD,Technology,11390873,09-Jan-23,25.99
Rotherham MBC,Regeneration & Environment,INSIGHT DIRECT (UK) LTD,Technology,11390874,09-Jan-23,4.99
Rotherham MBC,Regeneration & Environment,CLASSIC LIFTS LTD,Repair And Maintenance,11390941,13-Jan-23,79.00
Rotherham MBC,Adult Care & Housing,NEIL HUTTON,Removal Services,11390969,09-Jan-23,520.00
Rotherham MBC,Regeneration & Environment,W J NORTH LTD,Road Markings And Traffic Management,11390985,12-Jan-23,268.64
Rotherham MBC,Regeneration & Environment,W J NORTH LTD,Road Markings And Traffic Management,11390986,12-Jan-23,152.10
Rotherham MBC,Regeneration & Environment,W J NORTH LTD,Road Markings And Traffic Management,11390987,11-Jan-23,397.18
Rotherham MBC,Regeneration & Environment,W J NORTH LTD,Road Markings And Traffic Management,11390988,11-Jan-23,2774.74
Rotherham MBC,Regeneration & Environment,J P GLASBY LTD,Repair And Maintenance,11390997,16-Jan-23,6520.00
Rotherham MBC,Regeneration & Environment,W J NORTH LTD,Road Markings And Traffic Management,11391012,24-Jan-23,1004.34
Rotherham MBC,Regeneration & Environment,PAWSON GROUP,Transport  Operations And Logistics,11391015,12-Jan-23,242.00
Rotherham MBC,Regeneration & Environment,AIR ENVIRONMENTAL LTD,Domestic And Commerical Appliances,11396174,06-Jan-23,2315.00
Rotherham MBC,Adult Care & Housing,INSIGHT DIRECT (UK) LTD,Technology,11396191,09-Jan-23,50.99
Rotherham MBC,Regeneration & Environment,INSIGHT DIRECT (UK) LTD,Technology,11396193,09-Jan-23,17.97
Rotherham MBC,Regeneration & Environment,NINEHUNDRED COMMUNICATIONS,Technology,11396201,09-Jan-23,258.90
Rotherham MBC,Regeneration & Environment,NINEHUNDRED COMMUNICATIONS,Technology,11396202,09-Jan-23,68.53
Rotherham MBC,Adult Care & Housing,DULUX DECORATOR CENTRES,Repair And Maintenance,11396271,11-Jan-23,251.17
Rotherham MBC,Regeneration & Environment,CAREMARK (ROTHERHAM),Supporting People - Independent Sector Homecare,11396282,24-Jan-23,44.00
Rotherham MBC,Children & Young Peoples Serv,KCM WASTE MANAGEMENT LTD,Waste Disposal Inc Skip Hire,11396286,06-Jan-23,220.00
Rotherham MBC,Regeneration & Environment,ARDEN WINCH & CO LTD,Ppe  Tools And Janitorial Supplies,11396309,13-Jan-23,167.84
Rotherham MBC,Assistant Chief Executive,INSIGHT DIRECT (UK) LTD,Technology,11396311,09-Jan-23,-8450.00
Rotherham MBC,Regeneration & Environment,AIR ENVIRONMENTAL LTD,Domestic And Commerical Appliances,11396346,06-Jan-23,2587.82
Rotherham MBC,Children & Young Peoples Serv,LEXTOX,Public Health & Care Services,11396553,06-Jan-23,2686.00
Rotherham MBC,Regeneration & Environment,MOBILE HOSE SERVICES LTD,Vehicle Recovery Maintenance Repair,11396567,12-Jan-23,323.00
Rotherham MBC,Regeneration & Environment,MOBILE HOSE SERVICES LTD,Vehicle Recovery Maintenance Repair,11396568,12-Jan-23,168.00
Rotherham MBC,Regeneration & Environment,SHEFFIELD TACHOGRAPH & TAIL LIFT,Transport  Operations And Logistics,11396581,27-Jan-23,97.10
Rotherham MBC,Regeneration & Environment,SHEFFIELD TACHOGRAPH & TAIL LIFT,Transport  Operations And Logistics,11396582,27-Jan-23,97.10
Rotherham MBC,Regeneration & Environment,SHEFFIELD TACHOGRAPH & TAIL LIFT,Transport  Operations And Logistics,11396583,27-Jan-23,112.00
Rotherham MBC,Regeneration & Environment,QUESTECH RECRUITMENT LTD,Agency Staff Services,11396687,05-Jan-23,-1100.00
Rotherham MBC,Children & Young Peoples Serv,COMMUNICORP UK,Advertising Services,11396692,19-Jan-23,2464.72
Rotherham MBC,Adult Care & Housing,NE SOLUTIONS LTD,Technology,11396693,10-Jan-23,2845.00
Rotherham MBC,Regeneration & Environment,JUNCTION 1 TRUCK & COACH WASH LTD,Vehicle Recovery Maintenance Repair,11396865,09-Jan-23,885.83
Rotherham MBC,Regeneration & Environment,CEMEX UK OPERATIONS LTD,Re-Instatement Materials,11398692,09-Jan-23,77.96
Rotherham MBC,Regeneration & Environment,CEMEX UK OPERATIONS LTD,Re-Instatement Materials,11398693,09-Jan-23,77.96
Rotherham MBC,Regeneration & Environment,CEMEX UK OPERATIONS LTD,Re-Instatement Materials,11398694,09-Jan-23,148.12
Rotherham MBC,Regeneration & Environment,CEMEX UK OPERATIONS LTD,Re-Instatement Materials,11398695,09-Jan-23,592.48
Rotherham MBC,Finance & Customer Services,INSIGHT DIRECT (UK) LTD,Technology,11398746,09-Jan-23,50.99
Rotherham MBC,Regeneration & Environment,INSIGHT DIRECT (UK) LTD,Technology,11398748,09-Jan-23,51.99
Rotherham MBC,Regeneration & Environment,PROVIDENCE MAINTENANCE & ELECTRICAL,Repair And Maintenance,11398749,16-Jan-23,64.00
Rotherham MBC,Regeneration & Environment,NAGELS UK LTD,Stationery  Furniture & It Consumables,11398863,01-Feb-23,1100.00
Rotherham MBC,Regeneration & Environment,PROVIDENCE MAINTENANCE & ELECTRICAL,Repair And Maintenance,11398885,11-Jan-23,128.00
Rotherham MBC,Regeneration & Environment,DIRECT TRAFFIC MANAGEMENT LTD,Road Markings And Traffic Management,11398894,25-Jan-23,2887.08
Rotherham MBC,Regeneration & Environment,DIRECT TRAFFIC MANAGEMENT LTD,Road Markings And Traffic Management,11398901,24-Jan-23,625.40
Rotherham MBC,Regeneration & Environment,CEMEX UK OPERATIONS LTD,Re-Instatement Materials,11399168,09-Jan-23,77.96
Rotherham MBC,Regeneration & Environment,CEMEX UK OPERATIONS LTD,Re-Instatement Materials,11399169,09-Jan-23,163.71
Rotherham MBC,Regeneration & Environment,FLOGAS BRITAIN LIMITED,Energy,11399170,23-Jan-23,797.87
Rotherham MBC,Regeneration & Environment,CEMEX UK OPERATIONS LTD,Re-Instatement Materials,11399171,09-Jan-23,1314.89
Rotherham MBC,Regeneration & Environment,MARSHALLS PLC,Re-Instatement Materials,11399172,09-Jan-23,497.90
Rotherham MBC,Regeneration & Environment,CEMEX UK OPERATIONS LTD,Re-Instatement Materials,11399191,09-Jan-23,936.39
Rotherham MBC,Finance & Customer Services,INSIGHT DIRECT (UK) LTD,Technology,11399195,09-Jan-23,58.22
Rotherham MBC,Regeneration & Environment,INSIGHT DIRECT (UK) LTD,Technology,11399196,09-Jan-23,269.94
Rotherham MBC,Assistant Chief Executive,INSIGHT DIRECT (UK) LTD,Technology,11399197,09-Jan-23,51.99
Rotherham MBC,Central Services,INSIGHT DIRECT (UK) LTD,Technology,11399198,24-Jan-23,803.59
Rotherham MBC,Children & Young Peoples Serv,INSIGHT DIRECT (UK) LTD,Technology,11399199,09-Jan-23,4.99
Rotherham MBC,Regeneration & Environment,W J NORTH LTD,Road Markings And Traffic Management,11399241,13-Jan-23,2798.27
Rotherham MBC,Regeneration & Environment,SHARROCK LTD,Landscaping,11399281,12-Jan-23,148.38
Rotherham MBC,Regeneration & Environment,ACE JANITORIAL SUPPLIES LTD,Ppe  Tools And Janitorial Supplies,11399294,11-Jan-23,801.17
Rotherham MBC,Regeneration & Environment,W J NORTH LTD,Road Markings And Traffic Management,11399305,12-Jan-23,663.38
Rotherham MBC,Adult Care & Housing,NPOWER,Energy,11399306,25-Jan-23,35.45
Rotherham MBC,Adult Care & Housing,DA LANGUAGES LTD,Translation  & Interpretation,11399320,23-Jan-23,30.20
Rotherham MBC,Regeneration & Environment,DA LANGUAGES LTD,Translation  & Interpretation,11399336,24-Jan-23,1356.70
Rotherham MBC,Regeneration & Environment,HIRST SIGNS LTD,Ppe  Tools And Janitorial Supplies,11399352,09-Jan-23,1480.00
Rotherham MBC,Regeneration & Environment,CUNNINGHAM CASH REGISTERS LIMITED,Technology,11399375,19-Jan-23,439.00
Rotherham MBC,Regeneration & Environment,PROVIDENCE MAINTENANCE & ELECTRICAL,Repair And Maintenance,11399413,12-Jan-23,1100.00
Rotherham MBC,Regeneration & Environment,NPOWER,Energy,11399452,25-Jan-23,-902.75
Rotherham MBC,Regeneration & Environment,NPOWER,Energy,11399453,25-Jan-23,-782.42
Rotherham MBC,Regeneration & Environment,NPOWER,Energy,11399454,25-Jan-23,-736.98
Rotherham MBC,Regeneration & Environment,NPOWER,Energy,11399455,25-Jan-23,-4693.29
Rotherham MBC,Regeneration & Environment,NPOWER,Energy,11399456,25-Jan-23,-3086.98
Rotherham MBC,Regeneration & Environment,NPOWER,Energy,11399457,25-Jan-23,-2380.94
Rotherham MBC,Regeneration & Environment,NPOWER,Energy,11399458,25-Jan-23,-3865.76
Rotherham MBC,Regeneration & Environment,NPOWER,Energy,11399459,25-Jan-23,-1091.52
Rotherham MBC,Regeneration & Environment,NPOWER,Energy,11399460,25-Jan-23,-2206.80
Rotherham MBC,Regeneration & Environment,NPOWER,Energy,11399461,25-Jan-23,-1372.11
Rotherham MBC,Regeneration & Environment,NPOWER,Energy,11399462,25-Jan-23,-1410.31
Rotherham MBC,Regeneration & Environment,NPOWER,Energy,11399463,25-Jan-23,-2045.36
Rotherham MBC,Regeneration & Environment,NPOWER,Energy,11399464,25-Jan-23,-1672.24
Rotherham MBC,Regeneration & Environment,NPOWER,Energy,11399465,25-Jan-23,-2506.22
Rotherham MBC,Regeneration & Environment,NPOWER,Energy,11399466,25-Jan-23,-2732.89
Rotherham MBC,Regeneration & Environment,NPOWER,Energy,11399467,25-Jan-23,-3324.21
Rotherham MBC,Regeneration & Environment,NPOWER,Energy,11399468,25-Jan-23,-3017.84
Rotherham MBC,Regeneration & Environment,NPOWER,Energy,11399469,25-Jan-23,-3487.53
Rotherham MBC,Regeneration & Environment,NPOWER,Energy,11399470,25-Jan-23,-2696.80
Rotherham MBC,Regeneration & Environment,NPOWER,Energy,11399471,25-Jan-23,-1095.32
Rotherham MBC,Regeneration & Environment,NPOWER,Energy,11399472,25-Jan-23,-994.96
Rotherham MBC,Regeneration & Environment,NPOWER,Energy,11399473,25-Jan-23,-787.25
Rotherham MBC,Regeneration & Environment,NPOWER,Energy,11399474,25-Jan-23,-2607.32
Rotherham MBC,Regeneration & Environment,NPOWER,Energy,11399475,25-Jan-23,-3321.68
Rotherham MBC,Regeneration & Environment,NPOWER,Energy,11399476,25-Jan-23,-3240.05
Rotherham MBC,Regeneration & Environment,NPOWER,Energy,11399477,25-Jan-23,-4863.47
Rotherham MBC,Regeneration & Environment,NPOWER,Energy,11399478,25-Jan-23,-1134.55
Rotherham MBC,Regeneration & Environment,NPOWER,Energy,11399479,25-Jan-23,-921.12
Rotherham MBC,Regeneration & Environment,NPOWER,Energy,11399480,25-Jan-23,2345.15
Rotherham MBC,Regeneration & Environment,NPOWER,Energy,11399481,25-Jan-23,2568.55
Rotherham MBC,Regeneration & Environment,NPOWER,Energy,11399482,25-Jan-23,3122.36
Rotherham MBC,Regeneration & Environment,NPOWER,Energy,11399483,25-Jan-23,2832.71
Rotherham MBC,Regeneration & Environment,NPOWER,Energy,11399484,25-Jan-23,3272.39
Rotherham MBC,Regeneration & Environment,NPOWER,Energy,11399485,25-Jan-23,2521.52
Rotherham MBC,Regeneration & Environment,NPOWER,Energy,11399486,25-Jan-23,1038.03
Rotherham MBC,Regeneration & Environment,NPOWER,Energy,11399487,25-Jan-23,944.17
Rotherham MBC,Regeneration & Environment,NPOWER,Energy,11399488,25-Jan-23,1028.70
Rotherham MBC,Regeneration & Environment,NPOWER,Energy,11399489,25-Jan-23,2064.84
Rotherham MBC,Regeneration & Environment,NPOWER,Energy,11399490,25-Jan-23,1289.52
Rotherham MBC,Regeneration & Environment,NPOWER,Energy,11399491,25-Jan-23,1325.71
Rotherham MBC,Regeneration & Environment,NPOWER,Energy,11399492,25-Jan-23,1916.14
Rotherham MBC,Regeneration & Environment,NPOWER,Energy,11399493,25-Jan-23,1568.48
Rotherham MBC,Regeneration & Environment,NPOWER,Energy,11399494,25-Jan-23,745.30
Rotherham MBC,Regeneration & Environment,NPOWER,Energy,11399495,25-Jan-23,2457.46
Rotherham MBC,Regeneration & Environment,NPOWER,Energy,11399496,25-Jan-23,3126.99
Rotherham MBC,Regeneration & Environment,NPOWER,Energy,11399497,25-Jan-23,3049.61
Rotherham MBC,Regeneration & Environment,NPOWER,Energy,11399498,25-Jan-23,4579.49
Rotherham MBC,Regeneration & Environment,NPOWER,Energy,11399499,25-Jan-23,1078.37
Rotherham MBC,Regeneration & Environment,NPOWER,Energy,11399500,25-Jan-23,879.86
Rotherham MBC,Regeneration & Environment,NPOWER,Energy,11399501,25-Jan-23,862.24
Rotherham MBC,Regeneration & Environment,NPOWER,Energy,11399502,25-Jan-23,748.45
Rotherham MBC,Regeneration & Environment,NPOWER,Energy,11399503,25-Jan-23,702.77
Rotherham MBC,Regeneration & Environment,NPOWER,Energy,11399504,25-Jan-23,4432.16
Rotherham MBC,Regeneration & Environment,NPOWER,Energy,11399505,25-Jan-23,2919.38
Rotherham MBC,Regeneration & Environment,NPOWER,Energy,11399506,25-Jan-23,2227.81
Rotherham MBC,Regeneration & Environment,NPOWER,Energy,11399507,25-Jan-23,3647.48
Rotherham MBC,Adult Care & Housing,LYRECO UK LTD,Stationery  Furniture & It Consumables,11399509,26-Jan-23,129.48
Rotherham MBC,Regeneration & Environment,CEMEX UK OPERATIONS LTD,Re-Instatement Materials,11399797,09-Jan-23,530.11
Rotherham MBC,Regeneration & Environment,CEMEX UK OPERATIONS LTD,Re-Instatement Materials,11399798,09-Jan-23,174.11
Rotherham MBC,Regeneration & Environment,REDFERN TRAVEL,Transport  Operations And Logistics,11399818,12-Jan-23,294.00
Rotherham MBC,Adult Care & Housing,PEART ACCESS RAMPS LTD,New Build & Major Refurb Trades,11399828,05-Jan-23,6370.00
Rotherham MBC,Regeneration & Environment,ARDEN WINCH & CO LTD,Ppe  Tools And Janitorial Supplies,11399830,16-Jan-23,-99.00
Rotherham MBC,Finance & Customer Services,CAE TECHNOLOGY SERVICES,Technology,11399861,06-Jan-23,38711.71
Rotherham MBC,Regeneration & Environment,RODGERS PLANT HIRE LTD,Plant Hire,11399926,09-Jan-23,140.00
Rotherham MBC,Regeneration & Environment,RODGERS PLANT HIRE LTD,Plant Hire,11399928,09-Jan-23,135.95
Rotherham MBC,Regeneration & Environment,RODGERS PLANT HIRE LTD,Plant Hire,11399929,09-Jan-23,127.50
Rotherham MBC,Regeneration & Environment,SHARROCK LTD,Landscaping,11399933,12-Jan-23,36.00
Rotherham MBC,Regeneration & Environment,SHARROCK LTD,Landscaping,11399934,12-Jan-23,57.07
Rotherham MBC,Regeneration & Environment,LACA LTD,Hotel Accommodation & Conferencing,11399942,16-Jan-23,516.00
Rotherham MBC,Adult Care & Housing,ARDEN WINCH & CO LTD,Ppe  Tools And Janitorial Supplies,11399981,16-Jan-23,1.50
Rotherham MBC,Regeneration & Environment,HARSCO METALS GROUP LTD,Re-Instatement Materials,11400169,09-Jan-23,5970.56
Rotherham MBC,Regeneration & Environment,HARSCO METALS GROUP LTD,Re-Instatement Materials,11400173,09-Jan-23,5060.24
Rotherham MBC,Adult Care & Housing,CLEARANCE AND CLEAN UP LTD,Waste Disposal Inc Skip Hire,11400204,13-Jan-23,100.00
Rotherham MBC,Finance & Customer Services,ASHDALE ENGINEERING,Repair And Maintenance,11400229,10-Jan-23,2891.00
Rotherham MBC,Regeneration & Environment,RENTOKIL INITIAL UK LTD,Repair And Maintenance,11400239,06-Jan-23,77.00
Rotherham MBC,Regeneration & Environment,CEMEX UK OPERATIONS LTD,Re-Instatement Materials,11400622,09-Jan-23,834.00
Rotherham MBC,Regeneration & Environment,CEMEX UK OPERATIONS LTD,Re-Instatement Materials,11400623,09-Jan-23,72.76
Rotherham MBC,Regeneration & Environment,CEMEX UK OPERATIONS LTD,Re-Instatement Materials,11400624,09-Jan-23,77.96
Rotherham MBC,Regeneration & Environment,BRAUNABILITY UK LTD,Security,11400628,24-Jan-23,864.63
Rotherham MBC,Regeneration & Environment,AHR ARCHITECTS LTD,Surveyors  Architects & Auctions,11400632,12-Jan-23,2602.80
Rotherham MBC,Regeneration & Environment,AHR ARCHITECTS LTD,Surveyors  Architects & Auctions,11400633,16-Jan-23,562.79
Rotherham MBC,Regeneration & Environment,NATIONAL MINI MIX,Re-Instatement Materials,11400654,09-Jan-23,652.50
Rotherham MBC,Regeneration & Environment,SIEMENS FINANCIAL SERVICES LTD,Banking  Leasing And Insurance,11400658,19-Jan-23,1338.17
Rotherham MBC,Regeneration & Environment,SIEMENS FINANCIAL SERVICES LTD,Banking  Leasing And Insurance,11400658,19-Jan-23,669.08
Rotherham MBC,Regeneration & Environment,SIEMENS FINANCIAL SERVICES LTD,Banking  Leasing And Insurance,11400658,19-Jan-23,1338.17
Rotherham MBC,Regeneration & Environment,BRYTONE LTD,Catering Equipment,11400681,16-Jan-23,90.00
Rotherham MBC,Regeneration & Environment,BRYTONE LTD,Catering Equipment,11400682,16-Jan-23,95.00
Rotherham MBC,Regeneration & Environment,BRYTONE LTD,Catering Equipment,11400683,16-Jan-23,385.00
Rotherham MBC,Regeneration & Environment,BRYTONE LTD,Catering Equipment,11400684,24-Jan-23,161.00
Rotherham MBC,Regeneration & Environment,BRYTONE LTD,Catering Equipment,11400685,24-Jan-23,90.00
Rotherham MBC,Regeneration & Environment,BRYTONE LTD,Catering Equipment,11400686,24-Jan-23,294.00
Rotherham MBC,Regeneration & Environment,PARKWAY SHEET METAL WORKS LTD,Re-Instatement Materials,11400692,31-Jan-23,430.00
Rotherham MBC,Regeneration & Environment,PARKWAY SHEET METAL WORKS LTD,Re-Instatement Materials,11400693,31-Jan-23,750.00
Rotherham MBC,Regeneration & Environment,FABRIKAT (NOTTINGHAM) LTD,Road Markings And Traffic Management,11400704,16-Jan-23,2770.80
Rotherham MBC,Regeneration & Environment,E.ON NEXT ENERGY LTD,Energy,11400708,24-Jan-23,158.07
Rotherham MBC,Regeneration & Environment,W J NORTH LTD,Road Markings And Traffic Management,11400710,24-Jan-23,164.99
Rotherham MBC,Regeneration & Environment,W J NORTH LTD,Road Markings And Traffic Management,11400710,24-Jan-23,3000.00
Rotherham MBC,Adult Care & Housing,INSIGHT DIRECT (UK) LTD,Technology,11400837,09-Jan-23,11.99
Rotherham MBC,Regeneration & Environment,MAUN MOTORS SELF DRIVE,Fleet Hire And Purchase  Financing,11400863,25-Jan-23,2451.00
Rotherham MBC,Regeneration & Environment,MAUN MOTORS SELF DRIVE,Fleet Hire And Purchase  Financing,11400863,25-Jan-23,-551.00
Rotherham MBC,Regeneration & Environment,CEMEX UK OPERATIONS LTD,Re-Instatement Materials,11401940,09-Jan-23,179.31
Rotherham MBC,Regeneration & Environment,CEMEX UK OPERATIONS LTD,Re-Instatement Materials,11401941,09-Jan-23,149.28
Rotherham MBC,Regeneration & Environment,NG BAILEY FACILITIES SERVICES LIMITED,Repair And Maintenance,11401960,05-Jan-23,1378.34
Rotherham MBC,Children & Young Peoples Serv,YORKSHIRE PURCHASING ORGANISATION,Food And Drink,11401967,26-Jan-23,1223.00
Rotherham MBC,Regeneration & Environment,COOPER MOBILE SERVICES LIMITED,Landscaping,11401989,10-Jan-23,344.77
Rotherham MBC,Regeneration & Environment,DENNIS EAGLE LTD,Transport  Operations And Logistics,11402068,12-Jan-23,245.00
Rotherham MBC,Regeneration & Environment,DENNIS EAGLE LTD,Transport  Operations And Logistics,11402093,12-Jan-23,170.00
Rotherham MBC,Regeneration & Environment,HATHER PLANT HIRE LTD,Plant Hire,11402109,02-Feb-23,1462.61
Rotherham MBC,Regeneration & Environment,DENNIS EAGLE LTD,Transport  Operations And Logistics,11402116,12-Jan-23,95.00
Rotherham MBC,Regeneration & Environment,HATHER PLANT HIRE LTD,Plant Hire,11402127,02-Feb-23,1882.14
Rotherham MBC,Regeneration & Environment,DENNIS EAGLE LTD,Transport  Operations And Logistics,11402131,27-Jan-23,395.00
Rotherham MBC,Regeneration & Environment,VP PLC,Plant Hire,11402132,26-Jan-23,525.80
Rotherham MBC,Regeneration & Environment,SIGNS EXPRESS LTD,General Signage,11402137,05-Jan-23,60.90
Rotherham MBC,Regeneration & Environment,SIGNS EXPRESS LTD,General Signage,11402138,13-Jan-23,233.91
Rotherham MBC,Regeneration & Environment,SIGNS EXPRESS LTD,General Signage,11402140,12-Jan-23,465.01
Rotherham MBC,Regeneration & Environment,SIGNS EXPRESS LTD,General Signage,11402141,12-Jan-23,5101.66
Rotherham MBC,Regeneration & Environment,DONCASTER M B C,Local Authority Spend,11402180,11-Jan-23,4415.00
Rotherham MBC,Regeneration & Environment,ROADWAY UK (TM) LTD,Road Markings And Traffic Management,11402201,19-Jan-23,842.14
Rotherham MBC,Regeneration & Environment,ROADWAY UK (TM) LTD,Road Markings And Traffic Management,11402202,19-Jan-23,287.82
Rotherham MBC,Regeneration & Environment,ROADWAY UK (TM) LTD,Road Markings And Traffic Management,11402204,19-Jan-23,421.07
Rotherham MBC,Public Health,MERCIA CARE HOMES LIMITED,Supporting People - Mental Health,11402251,06-Jan-23,538.28
Rotherham MBC,Adult Care & Housing,REDACTED,Residential Rental,11402289,16-Jan-23,750.00
Rotherham MBC,Regeneration & Environment,ROADWAY UK (TM) LTD,Road Markings And Traffic Management,11402312,06-Jan-23,714.22
Rotherham MBC,Adult Care & Housing,CLASSIC LIFTS LTD,Repair And Maintenance,11402320,06-Jan-23,25.00
Rotherham MBC,Regeneration & Environment,CLASSIC LIFTS LTD,Repair And Maintenance,11402329,05-Jan-23,1215.38
Rotherham MBC,Adult Care & Housing,CLASSIC LIFTS LTD,Repair And Maintenance,11402330,06-Jan-23,3392.89
Rotherham MBC,Finance & Customer Services,LYRECO UK LTD,Stationery  Furniture & It Consumables,11402483,12-Jan-23,139.80
Rotherham MBC,Regeneration & Environment,CEMEX UK OPERATIONS LTD,Re-Instatement Materials,11404213,09-Jan-23,246.87
Rotherham MBC,Regeneration & Environment,MARSHALLS PLC,Re-Instatement Materials,11404218,10-Jan-23,733.77
Rotherham MBC,Regeneration & Environment,AECOM INFRASTRUCTURE & ENVIRONMENT UK,Consultancy,11404220,18-Jan-23,3414.50
Rotherham MBC,Regeneration & Environment,FLANNERY BUILDERS LTD,Repair And Maintenance,11404222,17-Jan-23,5000.00
Rotherham MBC,Regeneration & Environment,BRYTONE LTD,Catering Equipment,11404527,24-Jan-23,385.00
Rotherham MBC,Regeneration & Environment,BRYTONE LTD,Catering Equipment,11404528,24-Jan-23,210.00
Rotherham MBC,Central Services,LOGOTECH SYSTEMS,Technology,11404535,06-Jan-23,1800.00
Rotherham MBC,Adult Care & Housing,KCM WASTE MANAGEMENT LTD,Waste Disposal Inc Skip Hire,11405043,05-Jan-23,79.30
Rotherham MBC,Regeneration & Environment,KCM WASTE MANAGEMENT LTD,Waste Disposal Inc Skip Hire,11405049,24-Jan-23,3218.00
Rotherham MBC,Regeneration & Environment,R BURKINSHAW & SONS LTD,Plant Hire,11405054,19-Jan-23,3493.00
Rotherham MBC,Regeneration & Environment,ARDEN WINCH & CO LTD,Ppe  Tools And Janitorial Supplies,11405068,16-Jan-23,190.00
Rotherham MBC,Regeneration & Environment,FRED CAMM RECOVERY LTD,Transport  Operations And Logistics,11405097,27-Jan-23,300.00
Rotherham MBC,Regeneration & Environment,DIRECT TRAFFIC MANAGEMENT LTD,Road Markings And Traffic Management,11405139,30-Jan-23,1420.40
Rotherham MBC,Regeneration & Environment,DIRECT TRAFFIC MANAGEMENT LTD,Road Markings And Traffic Management,11405140,25-Jan-23,2887.08
Rotherham MBC,Regeneration & Environment,DIRECT TRAFFIC MANAGEMENT LTD,Road Markings And Traffic Management,11405141,23-Jan-23,1038.80
Rotherham MBC,Regeneration & Environment,DIRECT TRAFFIC MANAGEMENT LTD,Road Markings And Traffic Management,11405142,24-Jan-23,1446.90
Rotherham MBC,Regeneration & Environment,DIRECT TRAFFIC MANAGEMENT LTD,Road Markings And Traffic Management,11405144,24-Jan-23,1462.80
Rotherham MBC,Regeneration & Environment,G&S TOILET HIRE LTD,Site Accommodation Hire,11405146,10-Jan-23,700.00
Rotherham MBC,Regeneration & Environment,PENNA PLC,Advertising Services,11405165,20-Jan-23,236.50
Rotherham MBC,Public Health,INSPIRE NORTH,Supporting People - Mental Health,11405177,13-Jan-23,350.00
Rotherham MBC,Regeneration & Environment,MR J C BAXTER,New Build & Major Refurb Trades,11405193,05-Jan-23,4000.00
Rotherham MBC,Adult Care & Housing,SARAH HENRY AND SON,Fencing Contractors,11405195,06-Jan-23,1600.00
Rotherham MBC,Children & Young Peoples Serv,AC EDUCATION,Training Services,11405202,06-Jan-23,550.00
Rotherham MBC,Assistant Chief Executive,TUSKER DIRECT,Fleet Hire And Purchase  Financing,11405210,09-Jan-23,784.94
Rotherham MBC,Regeneration & Environment,RUSSELLS (KIRBYMOORSIDE) LTD,Landscaping,11405227,27-Jan-23,139.65
Rotherham MBC,Regeneration & Environment,PROVIDENCE MAINTENANCE & ELECTRICAL,Repair And Maintenance,11405264,05-Jan-23,1440.00
Rotherham MBC,Regeneration & Environment,REDFERN TRAVEL,Transport  Operations And Logistics,11405328,12-Jan-23,158.00
Rotherham MBC,Regeneration & Environment,HATHER PLANT HIRE LTD,Plant Hire,11405405,02-Feb-23,1462.61
Rotherham MBC,Regeneration & Environment,COOPER MOBILE SERVICES LIMITED,Landscaping,11405406,10-Jan-23,1085.28
Rotherham MBC,Regeneration & Environment,DENNIS EAGLE LTD,Transport  Operations And Logistics,11405411,27-Jan-23,2983.10
Rotherham MBC,Regeneration & Environment,PROVIDENCE MAINTENANCE & ELECTRICAL,Repair And Maintenance,11405412,11-Jan-23,90.00
Rotherham MBC,Regeneration & Environment,AHR ARCHITECTS LTD,Surveyors  Architects & Auctions,11405414,31-Jan-23,1274.37
Rotherham MBC,Regeneration & Environment,AHR ARCHITECTS LTD,Surveyors  Architects & Auctions,11405415,31-Jan-23,8374.22
Rotherham MBC,Children & Young Peoples Serv,PROVIDENCE MAINTENANCE & ELECTRICAL,Repair And Maintenance,11405419,12-Jan-23,190.00
Rotherham MBC,Regeneration & Environment,HAKO MACHINES LTD,Plant Hire,11405926,05-Jan-23,920.39
Rotherham MBC,Regeneration & Environment,AHR ARCHITECTS LTD,Surveyors  Architects & Auctions,11405937,24-Jan-23,31447.77
Rotherham MBC,Regeneration & Environment,SUTCLIFFE PLAY LIMITED,Landscaping,11405941,11-Jan-23,1020.97
Rotherham MBC,Regeneration & Environment,AHR ARCHITECTS LTD,Surveyors  Architects & Auctions,11405943,24-Jan-23,20444.18
Rotherham MBC,Regeneration & Environment,KEYLINE BUILDERS MERCHANTS LTD,Re-Instatement Materials,11405944,06-Jan-23,321.00
Rotherham MBC,Regeneration & Environment,THE HEAVENLY COFFEE COMPANY,Food And Drink,11405947,05-Jan-23,408.60
Rotherham MBC,Regeneration & Environment,ARDEN WINCH & CO LTD,Ppe  Tools And Janitorial Supplies,11405960,06-Jan-23,101.54
Rotherham MBC,Adult Care & Housing,ARDEN WINCH & CO LTD,Ppe  Tools And Janitorial Supplies,11405961,16-Jan-23,49.20
Rotherham MBC,Regeneration & Environment,REED TALENT SOLUTIONS LTD,Agency Staff Services,11405968,05-Jan-23,1097.25
Rotherham MBC,Regeneration & Environment,REED TALENT SOLUTIONS LTD,Agency Staff Services,11405969,05-Jan-23,1436.88
Rotherham MBC,Regeneration & Environment,REED TALENT SOLUTIONS LTD,Agency Staff Services,11405970,05-Jan-23,1476.06
Rotherham MBC,Regeneration & Environment,REED TALENT SOLUTIONS LTD,Agency Staff Services,11405971,05-Jan-23,1449.94
Rotherham MBC,Regeneration & Environment,REED TALENT SOLUTIONS LTD,Agency Staff Services,11405972,05-Jan-23,1071.12
Rotherham MBC,Regeneration & Environment,REED TALENT SOLUTIONS LTD,Agency Staff Services,11405973,05-Jan-23,470.25
Rotherham MBC,Regeneration & Environment,REED TALENT SOLUTIONS LTD,Agency Staff Services,11405974,05-Jan-23,1269.38
Rotherham MBC,Regeneration & Environment,REED TALENT SOLUTIONS LTD,Agency Staff Services,11405975,05-Jan-23,488.22
Rotherham MBC,Regeneration & Environment,REED TALENT SOLUTIONS LTD,Agency Staff Services,11405976,05-Jan-23,1318.20
Rotherham MBC,Regeneration & Environment,REED TALENT SOLUTIONS LTD,Agency Staff Services,11405977,05-Jan-23,1464.67
Rotherham MBC,Regeneration & Environment,REED TALENT SOLUTIONS LTD,Agency Staff Services,11405978,05-Jan-23,1806.43
Rotherham MBC,Regeneration & Environment,REED TALENT SOLUTIONS LTD,Agency Staff Services,11405979,05-Jan-23,488.22
Rotherham MBC,Regeneration & Environment,REED TALENT SOLUTIONS LTD,Agency Staff Services,11405980,05-Jan-23,857.11
Rotherham MBC,Regeneration & Environment,REED TALENT SOLUTIONS LTD,Agency Staff Services,11405981,05-Jan-23,792.82
Rotherham MBC,Regeneration & Environment,REED TALENT SOLUTIONS LTD,Agency Staff Services,11405982,05-Jan-23,557.12
Rotherham MBC,Regeneration & Environment,REED TALENT SOLUTIONS LTD,Agency Staff Services,11405983,05-Jan-23,674.98
Rotherham MBC,Regeneration & Environment,REED TALENT SOLUTIONS LTD,Agency Staff Services,11405984,05-Jan-23,878.53
Rotherham MBC,Regeneration & Environment,REED TALENT SOLUTIONS LTD,Agency Staff Services,11405985,05-Jan-23,782.11
Rotherham MBC,Finance & Customer Services,ANDREW LORD,Legal Services,11405990,12-Jan-23,600.00
Rotherham MBC,Finance & Customer Services,ANDREW LORD,Legal Services,11405991,12-Jan-23,600.00
Rotherham MBC,Finance & Customer Services,JANE WHEATLEY,Legal Services,11405992,05-Jan-23,750.00
Rotherham MBC,Regeneration & Environment,CEMEX UK OPERATIONS LTD,Re-Instatement Materials,11405993,09-Jan-23,85.75
Rotherham MBC,Finance & Customer Services,ANDREW LORD,Legal Services,11405994,05-Jan-23,750.00
Rotherham MBC,Regeneration & Environment,CEMEX UK OPERATIONS LTD,Re-Instatement Materials,11405995,09-Jan-23,77.96
Rotherham MBC,Finance & Customer Services,KATE SPENCE,Legal Services,11405996,17-Jan-23,600.00
Rotherham MBC,Adult Care & Housing,INSIGHT DIRECT (UK) LTD,Technology,11406013,09-Jan-23,23.99
Rotherham MBC,Adult Care & Housing,INSIGHT DIRECT (UK) LTD,Technology,11406015,09-Jan-23,27.99
Rotherham MBC,Regeneration & Environment,HSL COMPLIANCE LTD,Repair And Maintenance,11406047,06-Jan-23,42.00
Rotherham MBC,Regeneration & Environment,SUTCLIFFE PLAY LIMITED,Landscaping,11406099,11-Jan-23,1020.97
Rotherham MBC,Regeneration & Environment,HARSCO METALS GROUP LTD,Re-Instatement Materials,11406118,09-Jan-23,338.84
Rotherham MBC,Regeneration & Environment,HARSCO METALS GROUP LTD,Re-Instatement Materials,11406120,09-Jan-23,783.11
Rotherham MBC,Adult Care & Housing,DEXEL TYRE COMPANY,Vehicle Recovery Maintenance Repair,11406122,23-Jan-23,13059.20
Rotherham MBC,Finance & Customer Services,VENN GROUP LIMITED,Agency Staff Services,11406145,24-Jan-23,2560.91
Rotherham MBC,Regeneration & Environment,PROVIDENCE MAINTENANCE & ELECTRICAL,Repair And Maintenance,11406152,19-Jan-23,360.00
Rotherham MBC,Children & Young Peoples Serv,PROVIDENCE MAINTENANCE & ELECTRICAL,Repair And Maintenance,11406153,11-Jan-23,47.00
Rotherham MBC,Children & Young Peoples Serv,PROVIDENCE MAINTENANCE & ELECTRICAL,Repair And Maintenance,11406156,11-Jan-23,360.00
Rotherham MBC,Regeneration & Environment,PROVIDENCE MAINTENANCE & ELECTRICAL,Repair And Maintenance,11406157,11-Jan-23,148.00
Rotherham MBC,Regeneration & Environment,REDACTED,Personal Transport Budgets,11406181,12-Jan-23,1212.20
Rotherham MBC,Regeneration & Environment,TRIMBLE SOLUTIONS (UK) LTD,Technology,11406224,30-Jan-23,3010.00
Rotherham MBC,Regeneration & Environment,PROVIDENCE MAINTENANCE & ELECTRICAL,Repair And Maintenance,11406231,10-Jan-23,534.00
Rotherham MBC,Regeneration & Environment,INSPIRED STRUCTURES LTD,Sporting  Entertainment & Culture,11406238,20-Jan-23,4263.00
Rotherham MBC,Regeneration & Environment,SJ & NE BURKIN,Security,11406240,19-Jan-23,5280.00
Rotherham MBC,Regeneration & Environment,INDEPENDENT CONTRACTOR SECURITY LTD(ICS),Security,11406873,09-Jan-23,2108.40
Rotherham MBC,Regeneration & Environment,INDEPENDENT CONTRACTOR SECURITY LTD(ICS),Security,11406874,12-Jan-23,30.00
Rotherham MBC,Regeneration & Environment,INDEPENDENT CONTRACTOR SECURITY LTD(ICS),Security,11406877,13-Jan-23,960.08
Rotherham MBC,Regeneration & Environment,NATIONAL MINI MIX,Re-Instatement Materials,11406894,09-Jan-23,232.50
Rotherham MBC,Regeneration & Environment,NATIONAL MINI MIX,Re-Instatement Materials,11406895,09-Jan-23,248.25
Rotherham MBC,Regeneration & Environment,MARSHALLS PLC,Re-Instatement Materials,11406897,09-Jan-23,472.52
Rotherham MBC,Regeneration & Environment,PAWSON GROUP,Transport  Operations And Logistics,11406898,12-Jan-23,286.00
Rotherham MBC,Regeneration & Environment,KCM WASTE MANAGEMENT LTD,Waste Disposal Inc Skip Hire,11406904,24-Jan-23,-2650.00
Rotherham MBC,Regeneration & Environment,VEOLIA ES (UK) LIMITED,Waste Disposal Inc Skip Hire,11406915,18-Jan-23,46.95
Rotherham MBC,Regeneration & Environment,VEOLIA ES (UK) LIMITED,Waste Disposal Inc Skip Hire,11406916,18-Jan-23,514.80
Rotherham MBC,Regeneration & Environment,PELL FRISCHMANN CONSULTANTS LTD,Consultancy,11406920,20-Jan-23,45100.51
Rotherham MBC,Adult Care & Housing,ROTHERHAM NHS FOUNDATION TRUST,Public Health & Care Services,11406934,16-Jan-23,71830.75
Rotherham MBC,Adult Care & Housing,ROTHERHAM NHS FOUNDATION TRUST,Public Health & Care Services,11406935,10-Jan-23,19491.91
Rotherham MBC,Adult Care & Housing,BRINSWORTH BOARDING KENNELS,Animal & Pet Supplies,11406949,05-Jan-23,587.50
Rotherham MBC,Public Health,ROTHERHAM NHS FOUNDATION TRUST,Public Health & Care Services,11406956,10-Jan-23,194500.00
Rotherham MBC,Regeneration & Environment,CARLSBERG UK LTD,Food And Drink,11406959,09-Jan-23,-503.37
Rotherham MBC,Children & Young Peoples Serv,BARNARDOS,Supporting Minorities & Communities,11406963,10-Jan-23,10712.50
Rotherham MBC,Regeneration & Environment,HARSCO METALS GROUP LTD,Re-Instatement Materials,11407035,09-Jan-23,172.00
Rotherham MBC,Regeneration & Environment,ROTHERHAM MINI DIGGER HIRE,Plant Hire,11407040,31-Jan-23,1976.00
Rotherham MBC,Regeneration & Environment,LYNDHURST COOLING & HEATING SERVICES LTD,Repair And Maintenance,11407044,06-Jan-23,312.00
Rotherham MBC,Regeneration & Environment,LYNDHURST COOLING & HEATING SERVICES LTD,Repair And Maintenance,11407045,06-Jan-23,312.00
Rotherham MBC,Regeneration & Environment,LYNDHURST COOLING & HEATING SERVICES LTD,Repair And Maintenance,11407048,06-Jan-23,225.00
Rotherham MBC,Regeneration & Environment,LYNDHURST COOLING & HEATING SERVICES LTD,Repair And Maintenance,11407049,06-Jan-23,225.00
Rotherham MBC,Children & Young Peoples Serv,ACE JANITORIAL SUPPLIES LTD,Ppe  Tools And Janitorial Supplies,11407071,09-Jan-23,140.40
Rotherham MBC,Regeneration & Environment,A D COPLEY BUILDERS LTD,Repair And Maintenance,11407079,06-Jan-23,11219.58
Rotherham MBC,Regeneration & Environment,AIR ENVIRONMENTAL LTD,Domestic And Commerical Appliances,11407082,06-Jan-23,2094.00
Rotherham MBC,Regeneration & Environment,VEOLIA ES (UK) LIMITED,Waste Disposal Inc Skip Hire,11407092,18-Jan-23,1824.62
Rotherham MBC,Regeneration & Environment,E.ON NEXT ENERGY LTD,Energy,11407111,12-Jan-23,131.33
Rotherham MBC,Regeneration & Environment,E.ON NEXT ENERGY LTD,Energy,11407112,24-Jan-23,436.75
Rotherham MBC,Adult Care & Housing,YORKSHIRE WATER,Water Services,11407116,17-Jan-23,99.73
Rotherham MBC,Adult Care & Housing,YORKSHIRE WATER,Water Services,11407118,17-Jan-23,24.21
Rotherham MBC,Regeneration & Environment,CEMEX UK OPERATIONS LTD,Re-Instatement Materials,11407131,09-Jan-23,373.20
Rotherham MBC,Finance & Customer Services,LYRECO UK LTD,Stationery  Furniture & It Consumables,11407132,12-Jan-23,932.00
Rotherham MBC,Regeneration & Environment,FRED CAMM RECOVERY LTD,Transport  Operations And Logistics,11407456,27-Jan-23,90.60
Rotherham MBC,Regeneration & Environment,AHR ARCHITECTS LTD,Surveyors  Architects & Auctions,11407465,24-Jan-23,5422.06
Rotherham MBC,Regeneration & Environment,AHR ARCHITECTS LTD,Surveyors  Architects & Auctions,11407468,31-Jan-23,1965.15
Rotherham MBC,Regeneration & Environment,AHR ARCHITECTS LTD,Surveyors  Architects & Auctions,11407469,20-Jan-23,1676.16
Rotherham MBC,Regeneration & Environment,HARSCO METALS GROUP LTD,Re-Instatement Materials,11407475,09-Jan-23,182.32
Rotherham MBC,Regeneration & Environment,HARSCO METALS GROUP LTD,Re-Instatement Materials,11407476,09-Jan-23,505.68
Rotherham MBC,Regeneration & Environment,HARSCO METALS GROUP LTD,Re-Instatement Materials,11407477,09-Jan-23,225.75
Rotherham MBC,Children & Young Peoples Serv,PROVIDENCE MAINTENANCE & ELECTRICAL,Repair And Maintenance,11407484,11-Jan-23,964.00
Rotherham MBC,Regeneration & Environment,PROVIDENCE MAINTENANCE & ELECTRICAL,Repair And Maintenance,11407485,12-Jan-23,140.00
Rotherham MBC,Children & Young Peoples Serv,PROVIDENCE MAINTENANCE & ELECTRICAL,Repair And Maintenance,11407486,11-Jan-23,140.00
Rotherham MBC,Children & Young Peoples Serv,PROVIDENCE MAINTENANCE & ELECTRICAL,Repair And Maintenance,11407487,12-Jan-23,732.00
Rotherham MBC,Regeneration & Environment,PROVIDENCE MAINTENANCE & ELECTRICAL,Repair And Maintenance,11407488,11-Jan-23,32.00
Rotherham MBC,Regeneration & Environment,PROVIDENCE MAINTENANCE & ELECTRICAL,Repair And Maintenance,11407489,23-Jan-23,64.00
Rotherham MBC,Regeneration & Environment,PROVIDENCE MAINTENANCE & ELECTRICAL,Repair And Maintenance,11407490,16-Jan-23,64.00
Rotherham MBC,Regeneration & Environment,PROVIDENCE MAINTENANCE & ELECTRICAL,Repair And Maintenance,11407492,11-Jan-23,75.00
Rotherham MBC,Children & Young Peoples Serv,PROVIDENCE MAINTENANCE & ELECTRICAL,Repair And Maintenance,11407494,11-Jan-23,256.00
Rotherham MBC,Regeneration & Environment,SHEFFIELD FRUIT TREES LTD,Landscaping,11407553,05-Jan-23,1244.25
Rotherham MBC,Assistant Chief Executive,INSIGHT DIRECT (UK) LTD,Technology,11407565,09-Jan-23,45.99
Rotherham MBC,Finance & Customer Services,REDCENTRIC,Consultancy,11407569,19-Jan-23,2344.30
Rotherham MBC,Regeneration & Environment,BRYTONE LTD,Catering Equipment,11407571,24-Jan-23,85.00
Rotherham MBC,Regeneration & Environment,BRYTONE LTD,Catering Equipment,11407572,24-Jan-23,46.00
Rotherham MBC,Regeneration & Environment,BRYTONE LTD,Catering Equipment,11407572,24-Jan-23,46.00
Rotherham MBC,Regeneration & Environment,BRYTONE LTD,Catering Equipment,11407572,24-Jan-23,46.00
Rotherham MBC,Regeneration & Environment,BRYTONE LTD,Catering Equipment,11407572,24-Jan-23,46.00
Rotherham MBC,Regeneration & Environment,BRYTONE LTD,Catering Equipment,11407573,24-Jan-23,46.00
Rotherham MBC,Regeneration & Environment,BRYTONE LTD,Catering Equipment,11407573,24-Jan-23,46.00
Rotherham MBC,Regeneration & Environment,BRYTONE LTD,Catering Equipment,11407573,24-Jan-23,46.00
Rotherham MBC,Regeneration & Environment,BRYTONE LTD,Catering Equipment,11407573,24-Jan-23,46.00
Rotherham MBC,Regeneration & Environment,BRYTONE LTD,Catering Equipment,11407573,24-Jan-23,46.00
Rotherham MBC,Regeneration & Environment,W J NORTH LTD,Road Markings And Traffic Management,11407599,24-Jan-23,6316.51
Rotherham MBC,Children & Young Peoples Serv,MEDI PLINTH EQUIPMENT LTD,Health And Hygiene Equipment,11407601,09-Jan-23,210.96
Rotherham MBC,Children & Young Peoples Serv,MEDI PLINTH EQUIPMENT LTD,Health And Hygiene Equipment,11407604,09-Jan-23,1152.76
Rotherham MBC,Regeneration & Environment,PROLUDIC LTD,Landscaping,11407617,09-Jan-23,914.80
Rotherham MBC,Regeneration & Environment,PROLUDIC LTD,Landscaping,11407619,09-Jan-23,5219.81
Rotherham MBC,Regeneration & Environment,PROLUDIC LTD,Landscaping,11407620,09-Jan-23,327.10
Rotherham MBC,Regeneration & Environment,QUESTECH RECRUITMENT LTD,Agency Staff Services,11407623,05-Jan-23,1060.00
Rotherham MBC,Public Health,ELIOR UK PLC,Room Hire,11407645,20-Jan-23,1875.00
Rotherham MBC,Regeneration & Environment,COOPER MOBILE SERVICES LIMITED,Landscaping,11407688,11-Jan-23,263.30
Rotherham MBC,Regeneration & Environment,NG BAILEY FACILITIES SERVICES LIMITED,Repair And Maintenance,11407691,20-Jan-23,1715.80
Rotherham MBC,Regeneration & Environment,PROVIDENCE MAINTENANCE & ELECTRICAL,Repair And Maintenance,11407698,11-Jan-23,143.00
Rotherham MBC,Regeneration & Environment,PROVIDENCE MAINTENANCE & ELECTRICAL,Repair And Maintenance,11407698,11-Jan-23,143.00
Rotherham MBC,Regeneration & Environment,PROVIDENCE MAINTENANCE & ELECTRICAL,Repair And Maintenance,11407700,11-Jan-23,110.00
Rotherham MBC,Regeneration & Environment,PROVIDENCE MAINTENANCE & ELECTRICAL,Repair And Maintenance,11407701,11-Jan-23,64.00
Rotherham MBC,Children & Young Peoples Serv,PROVIDENCE MAINTENANCE & ELECTRICAL,Repair And Maintenance,11407702,11-Jan-23,75.00
Rotherham MBC,Regeneration & Environment,PROVIDENCE MAINTENANCE & ELECTRICAL,Repair And Maintenance,11407703,12-Jan-23,160.00
Rotherham MBC,Regeneration & Environment,PROVIDENCE MAINTENANCE & ELECTRICAL,Repair And Maintenance,11407704,16-Jan-23,240.00
Rotherham MBC,Regeneration & Environment,PROVIDENCE MAINTENANCE & ELECTRICAL,Repair And Maintenance,11407705,11-Jan-23,64.00
Rotherham MBC,Children & Young Peoples Serv,PROVIDENCE MAINTENANCE & ELECTRICAL,Repair And Maintenance,11407706,12-Jan-23,86.00
Rotherham MBC,Regeneration & Environment,RUSSELLS (KIRBYMOORSIDE) LTD,Landscaping,11407723,27-Jan-23,185.00
Rotherham MBC,Regeneration & Environment,RUSSELLS (KIRBYMOORSIDE) LTD,Landscaping,11407724,27-Jan-23,185.00
Rotherham MBC,Regeneration & Environment,RUSSELLS (KIRBYMOORSIDE) LTD,Landscaping,11407725,27-Jan-23,125.00
Rotherham MBC,Regeneration & Environment,RUSSELLS (KIRBYMOORSIDE) LTD,Landscaping,11407726,27-Jan-23,155.00
Rotherham MBC,Regeneration & Environment,COOPER MOBILE SERVICES LIMITED,Landscaping,11407728,11-Jan-23,247.86
Rotherham MBC,Children & Young Peoples Serv,FOR UNDER FIVES LTD,Educational Day Nursery,11407733,09-Jan-23,37.95
Rotherham MBC,Children & Young Peoples Serv,FOR UNDER FIVES LTD,Educational Day Nursery,11407734,09-Jan-23,82.10
Rotherham MBC,Central Services,ALLPAY LTD,Technology,11408258,11-Jan-23,48.55
Rotherham MBC,Adult Care & Housing,ALLPAY LTD,Technology,11408258,11-Jan-23,2052.10
Rotherham MBC,Finance & Customer Services,ALLPAY LTD,Technology,11408258,11-Jan-23,2641.64
Rotherham MBC,Regeneration & Environment,HARSCO METALS GROUP LTD,Re-Instatement Materials,11408260,09-Jan-23,-33.80
Rotherham MBC,Regeneration & Environment,BATLEYS FOODSERVICE,Food And Drink,11408261,05-Jan-23,66.52
Rotherham MBC,Regeneration & Environment,DFP SERVICES LTD,Fire Alarm Maintenance Or Monitoring,11408272,06-Jan-23,96.00
Rotherham MBC,Regeneration & Environment,DFP SERVICES LTD,Door Entry System Installation & Maintenance,11408276,24-Jan-23,47.61
Rotherham MBC,Regeneration & Environment,R BURKINSHAW & SONS LTD,Plant Hire,11408295,26-Jan-23,300.00
Rotherham MBC,Regeneration & Environment,BATLEYS FOODSERVICE,Food And Drink,11408528,05-Jan-23,59.05
Rotherham MBC,Public Health,ROTHERHAM NHS FOUNDATION TRUST,Public Health & Care Services,11408572,10-Jan-23,419765.58
Rotherham MBC,Regeneration & Environment,HOPWELLS LTD,Food And Drink,11408659,05-Jan-23,84.77
Rotherham MBC,Regeneration & Environment,SG EQUIPMENT FINANCE LTD,Banking  Leasing And Insurance,11408674,20-Jan-23,4785.00
Rotherham MBC,Regeneration & Environment,SG EQUIPMENT FINANCE LTD,Banking  Leasing And Insurance,11408674,20-Jan-23,4785.00
Rotherham MBC,Regeneration & Environment,SG EQUIPMENT FINANCE LTD,Banking  Leasing And Insurance,11408675,23-Jan-23,3280.00
Rotherham MBC,Regeneration & Environment,CLASSIC LIFTS LTD,Repair And Maintenance,11408689,06-Jan-23,313.78
Rotherham MBC,Regeneration & Environment,WRIGHT BROS PARTNERSHIP LTD,Repair And Maintenance,11408692,23-Jan-23,273.53
Rotherham MBC,Children & Young Peoples Serv,PHONAK GROUP LIMITED,Health And Hygiene Equipment,11408699,09-Jan-23,-3963.24
Rotherham MBC,Children & Young Peoples Serv,PHONAK GROUP LIMITED,Health And Hygiene Equipment,11408700,09-Jan-23,3566.90
Rotherham MBC,Regeneration & Environment,PROVIDENCE MAINTENANCE & ELECTRICAL,Repair And Maintenance,11408702,24-Jan-23,440.00
Rotherham MBC,Regeneration & Environment,BRYTONE LTD,Catering Equipment,11408707,24-Jan-23,95.00
Rotherham MBC,Regeneration & Environment,HARSCO METALS GROUP LTD,Re-Instatement Materials,11408710,09-Jan-23,204.68
Rotherham MBC,Regeneration & Environment,HARSCO METALS GROUP LTD,Re-Instatement Materials,11408711,09-Jan-23,192.64
Rotherham MBC,Regeneration & Environment,ACE JANITORIAL SUPPLIES LTD,Ppe  Tools And Janitorial Supplies,11408712,11-Jan-23,342.02
Rotherham MBC,Regeneration & Environment,HARSCO METALS GROUP LTD,Re-Instatement Materials,11408713,09-Jan-23,166.84
Rotherham MBC,Regeneration & Environment,SHEFFIELD TACHOGRAPH & TAIL LIFT,Transport  Operations And Logistics,11408720,27-Jan-23,97.10
Rotherham MBC,Regeneration & Environment,TAL TRAINING LTD,Training Services,11408724,20-Jan-23,1486.66
Rotherham MBC,Assistant Chief Executive,WIDER PLAN LTD,Supporting People - Childcare Fees,11408887,09-Jan-23,1411.00
Rotherham MBC,Regeneration & Environment,R BURKINSHAW & SONS LTD,Plant Hire,11408895,18-Jan-23,78.00
Rotherham MBC,Regeneration & Environment,LYRECO UK LTD,Stationery  Furniture & It Consumables,11408909,12-Jan-23,83.52
Rotherham MBC,Adult Care & Housing,LYRECO UK LTD,Stationery  Furniture & It Consumables,11408911,17-Jan-23,38.16
Rotherham MBC,Regeneration & Environment,AHR ARCHITECTS LTD,Surveyors  Architects & Auctions,11410624,20-Jan-23,3912.25
Rotherham MBC,Regeneration & Environment,AHR ARCHITECTS LTD,Surveyors  Architects & Auctions,11410625,24-Jan-23,1079.25
Rotherham MBC,Adult Care & Housing,NEIL HUTTON,Removal Services,11410642,16-Jan-23,180.00
Rotherham MBC,Adult Care & Housing,NEIL HUTTON,Removal Services,11410643,16-Jan-23,180.00
Rotherham MBC,Adult Care & Housing,NEIL HUTTON,Removal Services,11410644,10-Jan-23,180.00
Rotherham MBC,Adult Care & Housing,NEIL HUTTON,Removal Services,11410645,10-Jan-23,180.00
Rotherham MBC,Adult Care & Housing,NEIL HUTTON,Removal Services,11410646,10-Jan-23,180.00
Rotherham MBC,Adult Care & Housing,NEIL HUTTON,Removal Services,11410648,16-Jan-23,540.00
Rotherham MBC,Adult Care & Housing,NEIL HUTTON,Removal Services,11410649,16-Jan-23,240.00
Rotherham MBC,Regeneration & Environment,MARSHALLS PLC,Re-Instatement Materials,11410650,24-Jan-23,5869.03
Rotherham MBC,Regeneration & Environment,DIRECT TRAFFIC MANAGEMENT LTD,Road Markings And Traffic Management,11410653,23-Jan-23,1017.60
Rotherham MBC,Regeneration & Environment,DIRECT TRAFFIC MANAGEMENT LTD,Road Markings And Traffic Management,11410656,18-Jan-23,4.90
Rotherham MBC,Regeneration & Environment,DIRECT TRAFFIC MANAGEMENT LTD,Road Markings And Traffic Management,11410669,17-Jan-23,572.40
Rotherham MBC,Regeneration & Environment,DIRECT TRAFFIC MANAGEMENT LTD,Road Markings And Traffic Management,11410670,18-Jan-23,2887.08
Rotherham MBC,Regeneration & Environment,VEOLIA ES (UK) LIMITED,Waste Disposal Inc Skip Hire,11410675,16-Jan-23,426.67
Rotherham MBC,Regeneration & Environment,VEOLIA ES (UK) LIMITED,Waste Disposal Inc Skip Hire,11410675,16-Jan-23,426.66
Rotherham MBC,Regeneration & Environment,VEOLIA ES (UK) LIMITED,Waste Disposal Inc Skip Hire,11410675,16-Jan-23,426.67
Rotherham MBC,Regeneration & Environment,PENNA PLC,Advertising Services,11410684,06-Jan-23,110.23
Rotherham MBC,Finance & Customer Services,JUSTINE COLE,Legal Services,11410771,05-Jan-23,2175.00
Rotherham MBC,Children & Young Peoples Serv,REDACTED,Supporting People - Generic Services,11410996,06-Jan-23,2366.00
Rotherham MBC,Regeneration & Environment,NPOWER,Energy,11412870,25-Jan-23,32.81
Rotherham MBC,Regeneration & Environment,NPOWER,Energy,11412871,25-Jan-23,46.60
Rotherham MBC,Regeneration & Environment,NPOWER,Energy,11412872,25-Jan-23,13.85
Rotherham MBC,Regeneration & Environment,NPOWER,Energy,11412873,25-Jan-23,17.86
Rotherham MBC,Regeneration & Environment,NPOWER,Energy,11412874,25-Jan-23,16.89
Rotherham MBC,Regeneration & Environment,NPOWER,Energy,11412876,25-Jan-23,10.18
Rotherham MBC,Regeneration & Environment,NPOWER,Energy,11412877,25-Jan-23,9.22
Rotherham MBC,Regeneration & Environment,NPOWER,Energy,11412878,25-Jan-23,10.33
Rotherham MBC,Regeneration & Environment,NPOWER,Energy,11412879,25-Jan-23,9.68
Rotherham MBC,Regeneration & Environment,NPOWER,Energy,11412880,25-Jan-23,10.03
Rotherham MBC,Regeneration & Environment,NPOWER,Energy,11412881,25-Jan-23,10.18
Rotherham MBC,Regeneration & Environment,LIGHTMAIN COMPANY LTD,Landscaping,11412883,01-Feb-23,11847.50
Rotherham MBC,Regeneration & Environment,NPOWER,Energy,11412884,25-Jan-23,9.13
Rotherham MBC,Regeneration & Environment,NPOWER,Energy,11412886,25-Jan-23,31.70
Rotherham MBC,Regeneration & Environment,NPOWER,Energy,11414745,25-Jan-23,10.21
Rotherham MBC,Regeneration & Environment,NPOWER,Energy,11414746,25-Jan-23,9.15
Rotherham MBC,Regeneration & Environment,NPOWER,Energy,11414752,25-Jan-23,9.30
Rotherham MBC,Regeneration & Environment,NPOWER,Energy,11414753,25-Jan-23,9.49
Rotherham MBC,Regeneration & Environment,NPOWER,Energy,11414755,25-Jan-23,180.60
Rotherham MBC,Regeneration & Environment,NPOWER,Energy,11414759,25-Jan-23,11.00
Rotherham MBC,Regeneration & Environment,NPOWER,Energy,11414761,25-Jan-23,17.51
Rotherham MBC,Regeneration & Environment,NPOWER,Energy,11414762,25-Jan-23,11.58
Rotherham MBC,Regeneration & Environment,NPOWER,Energy,11414765,25-Jan-23,37.26
Rotherham MBC,Regeneration & Environment,NPOWER,Energy,11414766,25-Jan-23,9.98
Rotherham MBC,Regeneration & Environment,NPOWER,Energy,11414767,25-Jan-23,41.19
Rotherham MBC,Regeneration & Environment,NPOWER,Energy,11414768,25-Jan-23,13.20
Rotherham MBC,Regeneration & Environment,NPOWER,Energy,11414769,25-Jan-23,36.55
Rotherham MBC,Regeneration & Environment,ARDEN WINCH & CO LTD,Ppe  Tools And Janitorial Supplies,11414788,16-Jan-23,212.10
Rotherham MBC,Adult Care & Housing,ARDEN WINCH & CO LTD,Ppe  Tools And Janitorial Supplies,11414794,06-Jan-23,16.30
Rotherham MBC,Regeneration & Environment,KCM WASTE MANAGEMENT LTD,Waste Disposal Inc Skip Hire,11414803,09-Jan-23,120.00
Rotherham MBC,Adult Care & Housing,PYRAMID LINOLEUM & CARPET COMPANY,Furnishing And Furbishing,11414821,05-Jan-23,618.00
Rotherham MBC,Regeneration & Environment,AIR ENVIRONMENTAL LTD,Domestic And Commerical Appliances,11414825,06-Jan-23,237.00
Rotherham MBC,Regeneration & Environment,BRYTONE LTD,Catering Equipment,11414826,24-Jan-23,660.05
Rotherham MBC,Regeneration & Environment,BRYTONE LTD,Catering Equipment,11414827,24-Jan-23,85.00
Rotherham MBC,Regeneration & Environment,BRYTONE LTD,Catering Equipment,11414829,24-Jan-23,181.00
Rotherham MBC,Adult Care & Housing,LANTEN METERING SERVICES LTD,Energy,11414830,16-Jan-23,13.74
Rotherham MBC,Adult Care & Housing,LANTEN METERING SERVICES LTD,Energy,11414831,16-Jan-23,1601.50
Rotherham MBC,Adult Care & Housing,LANTEN METERING SERVICES LTD,Energy,11414832,16-Jan-23,137.37
Rotherham MBC,Regeneration & Environment,EDEN FARM HULLEYS,Food And Drink,11414949,09-Jan-23,1318.51
Rotherham MBC,Regeneration & Environment,DIRECT TRAFFIC MANAGEMENT LTD,Road Markings And Traffic Management,11414960,25-Jan-23,2887.08
Rotherham MBC,Regeneration & Environment,DIRECT TRAFFIC MANAGEMENT LTD,Road Markings And Traffic Management,11414961,30-Jan-23,312.70
Rotherham MBC,Regeneration & Environment,DIRECT TRAFFIC MANAGEMENT LTD,Road Markings And Traffic Management,11414963,25-Jan-23,4.90
Rotherham MBC,Regeneration & Environment,DIRECT TRAFFIC MANAGEMENT LTD,Road Markings And Traffic Management,11414964,24-Jan-23,434.60
Rotherham MBC,Regeneration & Environment,WSP UK LTD,Licence & Professional Fees,11414965,02-Feb-23,6955.18
Rotherham MBC,Regeneration & Environment,SHEFFLOCK,Security,11414976,09-Jan-23,240.00
Rotherham MBC,Regeneration & Environment,NPOWER,Energy,11414978,25-Jan-23,2.34
Rotherham MBC,Regeneration & Environment,NPOWER,Energy,11414979,25-Jan-23,-7116.44
Rotherham MBC,Regeneration & Environment,DFP SERVICES LTD,Surveillance Or Alarm Maintenance,11415042,06-Jan-23,1600.86
Rotherham MBC,Regeneration & Environment,DFP SERVICES LTD,Surveillance Or Alarm Maintenance,11415043,06-Jan-23,16.50
Rotherham MBC,Regeneration & Environment,DFP SERVICES LTD,Surveillance Or Alarm Maintenance,11415044,06-Jan-23,150.00
Rotherham MBC,Regeneration & Environment,J W YOUNG (BUTCHERS) LTD,Food And Drink,11415055,05-Jan-23,183.44
Rotherham MBC,Children & Young Peoples Serv,PROVIDENCE MAINTENANCE & ELECTRICAL,Repair And Maintenance,11415499,12-Jan-23,45.00
Rotherham MBC,Regeneration & Environment,BSP TEX LTD,Tools & General Machinery,11415507,06-Jan-23,1084.16
Rotherham MBC,Regeneration & Environment,THE HEAVENLY COFFEE COMPANY,Food And Drink,11415510,05-Jan-23,9.00
Rotherham MBC,Regeneration & Environment,THE HEAVENLY COFFEE COMPANY,Food And Drink,11415511,05-Jan-23,197.25
Rotherham MBC,Regeneration & Environment,SIGNS EXPRESS LTD,General Signage,11415516,20-Jan-23,358.89
Rotherham MBC,Regeneration & Environment,REMAP SURVEYS LIMITED,Surveyors  Architects & Auctions,11415524,20-Jan-23,775.00
Rotherham MBC,Adult Care & Housing,KCM WASTE MANAGEMENT LTD,Waste Disposal Inc Skip Hire,11415946,05-Jan-23,85.90
Rotherham MBC,Regeneration & Environment,BRYTONE LTD,Catering Equipment,11415948,24-Jan-23,95.00
Rotherham MBC,Adult Care & Housing,INSIGHT DIRECT (UK) LTD,Technology,11415973,09-Jan-23,33.59
Rotherham MBC,Finance & Customer Services,JUSTINE COLE,Legal Services,11415987,27-Jan-23,3000.00
Rotherham MBC,Adult Care & Housing,INSIGHT DIRECT (UK) LTD,Technology,11416001,09-Jan-23,11.99
Rotherham MBC,Finance & Customer Services,INSIGHT DIRECT (UK) LTD,Technology,11416002,09-Jan-23,15.43
Rotherham MBC,Children & Young Peoples Serv,HOWELLS SOLICITORS,Legal Services,11416005,09-Jan-23,700.00
Rotherham MBC,Children & Young Peoples Serv,ABBEYWOOD SCHOOL,Specialized Educational Servic,11416010,17-Jan-23,26528.00
Rotherham MBC,Central Services,VOLUNTARY ACTION ROTHERHAM,Funding Contributions Or Grant,11416011,19-Jan-23,14000.00
Rotherham MBC,Children & Young Peoples Serv,ABBEYWOOD SCHOOL,Specialized Educational Servic,11416020,31-Jan-23,25365.00
Rotherham MBC,Regeneration & Environment,J P GLASBY LTD,Repair And Maintenance,11416052,20-Jan-23,934.00
Rotherham MBC,Regeneration & Environment,J P GLASBY LTD,Repair And Maintenance,11416053,12-Jan-23,1172.00
Rotherham MBC,Regeneration & Environment,DFP SERVICES LTD,Fire Alarm Maintenance Or Monitoring,11416064,06-Jan-23,92.88
Rotherham MBC,Regeneration & Environment,DFP SERVICES LTD,Emergency Lighting And Accessories,11416065,06-Jan-23,42.50
Rotherham MBC,Regeneration & Environment,DFP SERVICES LTD,Surveillance Or Alarm Maintenance,11416066,06-Jan-23,27.50
Rotherham MBC,Regeneration & Environment,DFP SERVICES LTD,Emergency Lighting And Accessories,11416067,06-Jan-23,95.00
Rotherham MBC,Regeneration & Environment,DFP SERVICES LTD,Surveillance Or Alarm Maintenance,11416068,06-Jan-23,49.50
Rotherham MBC,Regeneration & Environment,DFP SERVICES LTD,Fire Alarm Maintenance Or Monitoring,11416069,06-Jan-23,19.13
Rotherham MBC,Regeneration & Environment,SHEFFLOCK,Security,11416078,09-Jan-23,134.00
Rotherham MBC,Regeneration & Environment,ROTHERHAM MINI DIGGER HIRE,Plant Hire,11416083,31-Jan-23,1924.00
Rotherham MBC,Children & Young Peoples Serv,WENDYS CARPETS & CURTAINS LTD.,Furnishing And Furbishing,11416084,12-Jan-23,1421.67
Rotherham MBC,Regeneration & Environment,SHEFFLOCK,Security,11416086,09-Jan-23,37.50
Rotherham MBC,Regeneration & Environment,SHEFFLOCK,Security,11416087,09-Jan-23,140.00
Rotherham MBC,Adult Care & Housing,BARTHOLOMEW & SONS,Waste Disposal Inc Skip Hire,11416088,19-Jan-23,1854.00
Rotherham MBC,Children & Young Peoples Serv,PROVIDENCE MAINTENANCE & ELECTRICAL,Repair And Maintenance,11416089,11-Jan-23,90.00
Rotherham MBC,Children & Young Peoples Serv,PROVIDENCE MAINTENANCE & ELECTRICAL,Repair And Maintenance,11416090,11-Jan-23,45.00
Rotherham MBC,Children & Young Peoples Serv,PROVIDENCE MAINTENANCE & ELECTRICAL,Repair And Maintenance,11416091,11-Jan-23,90.00
Rotherham MBC,Regeneration & Environment,HARSCO METALS GROUP LTD,Re-Instatement Materials,11416092,09-Jan-23,125.56
Rotherham MBC,Regeneration & Environment,HARSCO METALS GROUP LTD,Re-Instatement Materials,11416093,09-Jan-23,428.28
Rotherham MBC,Regeneration & Environment,HARSCO METALS GROUP LTD,Re-Instatement Materials,11416094,09-Jan-23,122.12
Rotherham MBC,Regeneration & Environment,HARSCO METALS GROUP LTD,Re-Instatement Materials,11416095,09-Jan-23,577.07
Rotherham MBC,Regeneration & Environment,PROVIDENCE MAINTENANCE & ELECTRICAL,Repair And Maintenance,11416096,16-Jan-23,45.00
Rotherham MBC,Regeneration & Environment,PROVIDENCE MAINTENANCE & ELECTRICAL,Repair And Maintenance,11416097,11-Jan-23,85.00
Rotherham MBC,Children & Young Peoples Serv,PROVIDENCE MAINTENANCE & ELECTRICAL,Repair And Maintenance,11416098,11-Jan-23,45.00
Rotherham MBC,Regeneration & Environment,PARKWAY SHEET METAL WORKS LTD,Re-Instatement Materials,11416099,31-Jan-23,310.00
Rotherham MBC,Children & Young Peoples Serv,PROVIDENCE MAINTENANCE & ELECTRICAL,Repair And Maintenance,11416100,11-Jan-23,45.00
Rotherham MBC,Regeneration & Environment,PROVIDENCE MAINTENANCE & ELECTRICAL,Repair And Maintenance,11416101,12-Jan-23,140.00
Rotherham MBC,Children & Young Peoples Serv,PROVIDENCE MAINTENANCE & ELECTRICAL,Repair And Maintenance,11416102,11-Jan-23,340.00
Rotherham MBC,Regeneration & Environment,PROVIDENCE MAINTENANCE & ELECTRICAL,Repair And Maintenance,11416103,23-Jan-23,160.00
Rotherham MBC,Regeneration & Environment,PROVIDENCE MAINTENANCE & ELECTRICAL,Repair And Maintenance,11416104,11-Jan-23,120.00
Rotherham MBC,Children & Young Peoples Serv,PROVIDENCE MAINTENANCE & ELECTRICAL,Repair And Maintenance,11416106,12-Jan-23,45.00
Rotherham MBC,Regeneration & Environment,PROVIDENCE MAINTENANCE & ELECTRICAL,Repair And Maintenance,11416108,11-Jan-23,140.00
Rotherham MBC,Finance & Customer Services,VENN GROUP LIMITED,Agency Staff Services,11416177,24-Jan-23,2525.19
Rotherham MBC,Children & Young Peoples Serv,GATENBY SANDERSON LIMITED,Consultancy,11416179,19-Jan-23,5400.00
Rotherham MBC,Central Services,CORE TECHNOLOGY SYSTEMS (UK) LTD,Technology,11416180,24-Jan-23,7300.04
Rotherham MBC,Public Health,INSPIRE NORTH,Supporting People - Mental Health,11416181,13-Jan-23,1500.00
Rotherham MBC,Regeneration & Environment,PROVIDENCE MAINTENANCE & ELECTRICAL,Repair And Maintenance,11416183,12-Jan-23,69.00
Rotherham MBC,Regeneration & Environment,PROVIDENCE MAINTENANCE & ELECTRICAL,Repair And Maintenance,11416184,11-Jan-23,64.00
Rotherham MBC,Regeneration & Environment,PROVIDENCE MAINTENANCE & ELECTRICAL,Repair And Maintenance,11416185,11-Jan-23,71.00
Rotherham MBC,Regeneration & Environment,PROVIDENCE MAINTENANCE & ELECTRICAL,Repair And Maintenance,11416186,11-Jan-23,76.00
Rotherham MBC,Regeneration & Environment,PROVIDENCE MAINTENANCE & ELECTRICAL,Repair And Maintenance,11416187,11-Jan-23,90.00
Rotherham MBC,Regeneration & Environment,CROMWELL POLYTHENE LTD,Waste Disposal Inc Skip Hire,11416192,06-Jan-23,691.20
Rotherham MBC,Assistant Chief Executive,TUSKER DIRECT,Fleet Hire And Purchase  Financing,11416193,09-Jan-23,-604.74
Rotherham MBC,Regeneration & Environment,CROMWELL POLYTHENE LTD,Waste Disposal Inc Skip Hire,11416194,06-Jan-23,971.70
Rotherham MBC,Regeneration & Environment,INDEPENDENT CONTRACTOR SECURITY LTD(ICS),Security,11416197,09-Jan-23,2108.40
Rotherham MBC,Regeneration & Environment,INDEPENDENT CONTRACTOR SECURITY LTD(ICS),Security,11416199,06-Jan-23,1620.90
Rotherham MBC,Regeneration & Environment,INDEPENDENT CONTRACTOR SECURITY LTD(ICS),Security,11416200,27-Jan-23,1597.50
Rotherham MBC,Regeneration & Environment,INDEPENDENT CONTRACTOR SECURITY LTD(ICS),Security,11416201,19-Jan-23,960.08
Rotherham MBC,Regeneration & Environment,SHARROCK LTD,Landscaping,11416212,12-Jan-23,393.23
Rotherham MBC,Finance & Customer Services,LYRECO UK LTD,Stationery  Furniture & It Consumables,11416217,12-Jan-23,116.50
Rotherham MBC,Regeneration & Environment,CEMEX UK OPERATIONS LTD,Re-Instatement Materials,11418781,09-Jan-23,119.54
Rotherham MBC,Adult Care & Housing,KCM WASTE MANAGEMENT LTD,Waste Disposal Inc Skip Hire,11418783,24-Jan-23,400.00
Rotherham MBC,Regeneration & Environment,KCM WASTE MANAGEMENT LTD,Waste Disposal Inc Skip Hire,11418784,11-Jan-23,400.00
Rotherham MBC,Adult Care & Housing,KCM WASTE MANAGEMENT LTD,Waste Disposal Inc Skip Hire,11418785,13-Jan-23,120.00
Rotherham MBC,Children & Young Peoples Serv,FOR UNDER FIVES LTD,Educational Day Nursery,11418796,09-Jan-23,37.95
Rotherham MBC,Children & Young Peoples Serv,FOR UNDER FIVES LTD,Educational Day Nursery,11418797,09-Jan-23,227.75
Rotherham MBC,Regeneration & Environment,PRIORY PAT CONSULTANTS,Training Services,11418798,05-Jan-23,229.00
Rotherham MBC,Regeneration & Environment,WB POWER SERVICES LTD,Domestic And Commerical Appliances,11418806,06-Jan-23,349.00
Rotherham MBC,Regeneration & Environment,WB POWER SERVICES LTD,Domestic And Commerical Appliances,11418807,06-Jan-23,564.70
Rotherham MBC,Regeneration & Environment,ROSEHILL POLYMERS LTD,Vehicle Recovery Maintenance Repair,11418808,05-Jan-23,1239.02
Rotherham MBC,Regeneration & Environment,RDW BOOK & PAPER CONSERVATION LTD,Books  Periodicals And Journals,11418837,05-Jan-23,1025.60
Rotherham MBC,Regeneration & Environment,HOPWELLS LTD,Food And Drink,11418842,05-Jan-23,83.22
Rotherham MBC,Regeneration & Environment,HOPWELLS LTD,Food And Drink,11418843,05-Jan-23,119.32
Rotherham MBC,Children & Young Peoples Serv,GATENBY SANDERSON LIMITED,Consultancy,11418846,19-Jan-23,6365.00
Rotherham MBC,Regeneration & Environment,M J CARTER ASSOCIATES LTD,Rent  Lease & Property Management,11418847,05-Jan-23,1178.00
Rotherham MBC,Regeneration & Environment,HATHER PLANT HIRE LTD,Plant Hire,11418861,02-Feb-23,592.95
Rotherham MBC,Regeneration & Environment,HATHER PLANT HIRE LTD,Plant Hire,11418862,02-Feb-23,592.95
Rotherham MBC,Regeneration & Environment,HATHER PLANT HIRE LTD,Plant Hire,11418871,02-Feb-23,1882.14
Rotherham MBC,Regeneration & Environment,HATHER PLANT HIRE LTD,Plant Hire,11418872,02-Feb-23,1462.61
Rotherham MBC,Regeneration & Environment,RENTOKIL INITIAL UK LTD,Repair And Maintenance,11418877,18-Jan-23,192.56
Rotherham MBC,Regeneration & Environment,RENTOKIL INITIAL UK LTD,Repair And Maintenance,11418878,06-Jan-23,1170.00
Rotherham MBC,Regeneration & Environment,NORTHERN POWERGRID (YORKSHIRE) PLC,Street Lighting Materials,11418879,20-Jan-23,3628.21
Rotherham MBC,Regeneration & Environment,HATHER PLANT HIRE LTD,Plant Hire,11418887,02-Feb-23,1462.61
Rotherham MBC,Regeneration & Environment,SHARROCK LTD,Landscaping,11418890,12-Jan-23,811.05
Rotherham MBC,Regeneration & Environment,SHARROCK LTD,Landscaping,11418891,12-Jan-23,780.01
Rotherham MBC,Regeneration & Environment,SHARROCK LTD,Landscaping,11418892,12-Jan-23,132.69
Rotherham MBC,Regeneration & Environment,SHARROCK LTD,Landscaping,11418893,12-Jan-23,77.35
Rotherham MBC,Regeneration & Environment,DFP SERVICES LTD,Door Entry System Installation & Maintenance,11418894,20-Jan-23,244.00
Rotherham MBC,Regeneration & Environment,WRIGHT BROS PARTNERSHIP LTD,Repair And Maintenance,11418895,23-Jan-23,931.71
Rotherham MBC,Regeneration & Environment,WRIGHT BROS PARTNERSHIP LTD,Repair And Maintenance,11418896,20-Jan-23,931.71
Rotherham MBC,Adult Care & Housing,ARDEN WINCH & CO LTD,Ppe  Tools And Janitorial Supplies,11418901,06-Jan-23,91.40
Rotherham MBC,Adult Care & Housing,SAFE FIRE DIRECT,Fire Prevention,11418906,06-Jan-23,990.00
Rotherham MBC,Adult Care & Housing,NHS SOUTH YORKSHIRE ICB,Supporting People - Residential Care ,11418921,06-Jan-23,2740.50
Rotherham MBC,Regeneration & Environment,LYRECO UK LTD,Stationery  Furniture & It Consumables,11418922,09-Jan-23,438.80
Rotherham MBC,Regeneration & Environment,BRYTONE LTD,Catering Equipment,11418934,24-Jan-23,200.00
Rotherham MBC,Regeneration & Environment,BRYTONE LTD,Catering Equipment,11418934,24-Jan-23,200.00
Rotherham MBC,Regeneration & Environment,BRYTONE LTD,Catering Equipment,11418934,24-Jan-23,200.00
Rotherham MBC,Regeneration & Environment,BRYTONE LTD,Catering Equipment,11418934,24-Jan-23,200.00
Rotherham MBC,Regeneration & Environment,BRYTONE LTD,Catering Equipment,11418934,24-Jan-23,200.00
Rotherham MBC,Regeneration & Environment,BRYTONE LTD,Catering Equipment,11418934,24-Jan-23,200.00
Rotherham MBC,Regeneration & Environment,BRYTONE LTD,Catering Equipment,11418934,24-Jan-23,200.00
Rotherham MBC,Regeneration & Environment,BRYTONE LTD,Catering Equipment,11418934,24-Jan-23,200.00
Rotherham MBC,Adult Care & Housing,YORKSHIRE WATER,Water Services,11418983,17-Jan-23,628.89
Rotherham MBC,Regeneration & Environment,BRYTONE LTD,Catering Equipment,11418996,24-Jan-23,230.00
Rotherham MBC,Finance & Customer Services,NORTH YORKSHIRE COUNTY COUNCIL,Local Authority Spend,11419010,06-Jan-23,2271.74
Rotherham MBC,Regeneration & Environment,DFP SERVICES LTD,Security Hardware And Accessories,11419040,05-Jan-23,142.00
Rotherham MBC,Regeneration & Environment,DFP SERVICES LTD,Repair And Maintenance,11419042,09-Jan-23,142.00
Rotherham MBC,Regeneration & Environment,DFP SERVICES LTD,Surveillance Or Alarm Maintenance,11419043,05-Jan-23,244.00
Rotherham MBC,Regeneration & Environment,DFP SERVICES LTD,Fire Alarm Maintenance Or Monitoring,11419044,05-Jan-23,313.00
Rotherham MBC,Regeneration & Environment,DFP SERVICES LTD,Emergency Lighting And Accessories,11419045,06-Jan-23,15.00
Rotherham MBC,Children & Young Peoples Serv,THE APPLE TREE CENTRE (SOUTH YORKSHIRE),Supporting People - Mental Health,11419049,30-Jan-23,550.00
Rotherham MBC,Regeneration & Environment,GRANT STEWART CONSTRUCTION LTD,Repair And Maintenance,11419056,20-Jan-23,1225.00
Rotherham MBC,Regeneration & Environment,HIBBARD WORKS LTD,Landscaping,11419057,05-Jan-23,1000.00
Rotherham MBC,Regeneration & Environment,LODGE TYRE CO LTD,Transport  Operations And Logistics,11419058,11-Jan-23,931.70
Rotherham MBC,Regeneration & Environment,LODGE TYRE CO LTD,Transport  Operations And Logistics,11419059,11-Jan-23,2084.98
Rotherham MBC,Regeneration & Environment,SHARROCK LTD,Landscaping,11419060,12-Jan-23,422.23
Rotherham MBC,Regeneration & Environment,SHARROCK LTD,Landscaping,11419061,12-Jan-23,353.91
Rotherham MBC,Regeneration & Environment,SHARROCK LTD,Landscaping,11419062,12-Jan-23,193.35
Rotherham MBC,Regeneration & Environment,SHARROCK LTD,Landscaping,11419063,25-Jan-23,1049.05
Rotherham MBC,Regeneration & Environment,SHEFFLOCK,Security,11419065,09-Jan-23,250.00
Rotherham MBC,Regeneration & Environment,E.ON NEXT ENERGY LTD,Energy,11419068,12-Jan-23,60.20
Rotherham MBC,Regeneration & Environment,GLENDALE COUNTRYSIDE LTD,Landscaping,11419078,05-Jan-23,10769.12
Rotherham MBC,Regeneration & Environment,HARSCO METALS GROUP LTD,Re-Instatement Materials,11419149,09-Jan-23,3116.80
Rotherham MBC,Regeneration & Environment,ACE JANITORIAL SUPPLIES LTD,Ppe  Tools And Janitorial Supplies,11419160,09-Jan-23,219.80
Rotherham MBC,Regeneration & Environment,ACE JANITORIAL SUPPLIES LTD,Ppe  Tools And Janitorial Supplies,11419164,06-Jan-23,715.22
Rotherham MBC,Regeneration & Environment,ACE JANITORIAL SUPPLIES LTD,Ppe  Tools And Janitorial Supplies,11419165,06-Jan-23,91.50
Rotherham MBC,Regeneration & Environment,ACE JANITORIAL SUPPLIES LTD,Ppe  Tools And Janitorial Supplies,11419166,09-Jan-23,215.76
Rotherham MBC,Regeneration & Environment,ACE JANITORIAL SUPPLIES LTD,Ppe  Tools And Janitorial Supplies,11419167,06-Jan-23,340.80
Rotherham MBC,Adult Care & Housing,ACE JANITORIAL SUPPLIES LTD,Ppe  Tools And Janitorial Supplies,11419168,05-Jan-23,964.89
Rotherham MBC,Children & Young Peoples Serv,ACE JANITORIAL SUPPLIES LTD,Ppe  Tools And Janitorial Supplies,11419170,09-Jan-23,116.82
Rotherham MBC,Children & Young Peoples Serv,NEXUS MULTI ACADAMY TRUST,Supporting People - Foster Care,11419174,26-Jan-23,33500.00
Rotherham MBC,Regeneration & Environment,DFP SERVICES LTD,Emergency Lighting And Accessories,11419178,05-Jan-23,564.59
Rotherham MBC,Children & Young Peoples Serv,REST AND RECHARGE PROPERTIES LTD,Supporting People - Foster Care,11419240,05-Jan-23,897.00
Rotherham MBC,Regeneration & Environment,E.ON NEXT ENERGY LTD,Energy,11419245,12-Jan-23,63.09
Rotherham MBC,Regeneration & Environment,E.ON NEXT ENERGY LTD,Energy,11419246,12-Jan-23,61.73
Rotherham MBC,Regeneration & Environment,E.ON NEXT ENERGY LTD,Energy,11419247,12-Jan-23,28.03
Rotherham MBC,Regeneration & Environment,CHEM JET LTD,Cleaning Services,11419248,12-Jan-23,325.00
Rotherham MBC,Adult Care & Housing,NPOWER,Energy,11419254,25-Jan-23,-786.48
Rotherham MBC,Adult Care & Housing,NPOWER,Energy,11419255,25-Jan-23,-907.40
Rotherham MBC,Adult Care & Housing,NPOWER,Energy,11419256,25-Jan-23,-986.79
Rotherham MBC,Adult Care & Housing,NPOWER,Energy,11419257,25-Jan-23,-859.82
Rotherham MBC,Adult Care & Housing,NPOWER,Energy,11419258,25-Jan-23,-780.88
Rotherham MBC,Adult Care & Housing,NPOWER,Energy,11419259,25-Jan-23,-801.05
Rotherham MBC,Adult Care & Housing,NPOWER,Energy,11419260,25-Jan-23,-769.47
Rotherham MBC,Adult Care & Housing,NPOWER,Energy,11419261,25-Jan-23,-794.05
Rotherham MBC,Adult Care & Housing,NPOWER,Energy,11419262,25-Jan-23,-857.31
Rotherham MBC,Adult Care & Housing,NPOWER,Energy,11419263,25-Jan-23,-764.47
Rotherham MBC,Adult Care & Housing,NPOWER,Energy,11419264,25-Jan-23,-784.93
Rotherham MBC,Adult Care & Housing,NPOWER,Energy,11419265,25-Jan-23,-875.23
Rotherham MBC,Adult Care & Housing,NPOWER,Energy,11419266,25-Jan-23,-893.73
Rotherham MBC,Adult Care & Housing,NPOWER,Energy,11419267,25-Jan-23,-971.01
Rotherham MBC,Adult Care & Housing,NPOWER,Energy,11419268,25-Jan-23,-994.65
Rotherham MBC,Adult Care & Housing,NPOWER,Energy,11419269,25-Jan-23,-819.73
Rotherham MBC,Adult Care & Housing,NPOWER,Energy,11419270,25-Jan-23,-849.47
Rotherham MBC,Adult Care & Housing,NPOWER,Energy,11419271,25-Jan-23,-781.49
Rotherham MBC,Adult Care & Housing,NPOWER,Energy,11419272,25-Jan-23,-836.10
Rotherham MBC,Adult Care & Housing,NPOWER,Energy,11419273,25-Jan-23,-762.07
Rotherham MBC,Adult Care & Housing,NPOWER,Energy,11419274,25-Jan-23,-837.91
Rotherham MBC,Adult Care & Housing,NPOWER,Energy,11419275,25-Jan-23,-833.56
Rotherham MBC,Adult Care & Housing,NPOWER,Energy,11419276,25-Jan-23,-822.14
Rotherham MBC,Adult Care & Housing,NPOWER,Energy,11419277,25-Jan-23,-888.81
Rotherham MBC,Adult Care & Housing,NPOWER,Energy,11419278,25-Jan-23,-797.15
Rotherham MBC,Adult Care & Housing,NPOWER,Energy,11419279,25-Jan-23,-888.36
Rotherham MBC,Adult Care & Housing,NPOWER,Energy,11419280,25-Jan-23,-903.87
Rotherham MBC,Adult Care & Housing,NPOWER,Energy,11419281,25-Jan-23,-742.39
Rotherham MBC,Adult Care & Housing,NPOWER,Energy,11419282,25-Jan-23,-871.35
Rotherham MBC,Adult Care & Housing,NPOWER,Energy,11419283,25-Jan-23,-824.53
Rotherham MBC,Adult Care & Housing,NPOWER,Energy,11419284,25-Jan-23,-788.99
Rotherham MBC,Adult Care & Housing,NPOWER,Energy,11419285,25-Jan-23,-741.48
Rotherham MBC,Adult Care & Housing,NPOWER,Energy,11419286,25-Jan-23,851.11
Rotherham MBC,Adult Care & Housing,NPOWER,Energy,11419287,25-Jan-23,754.26
Rotherham MBC,Adult Care & Housing,NPOWER,Energy,11419288,25-Jan-23,841.30
Rotherham MBC,Adult Care & Housing,NPOWER,Energy,11419289,25-Jan-23,855.98
Rotherham MBC,Adult Care & Housing,NPOWER,Energy,11419290,25-Jan-23,703.15
Rotherham MBC,Adult Care & Housing,NPOWER,Energy,11419291,25-Jan-23,825.21
Rotherham MBC,Adult Care & Housing,NPOWER,Energy,11419292,25-Jan-23,782.79
Rotherham MBC,Adult Care & Housing,NPOWER,Energy,11419293,25-Jan-23,749.10
Rotherham MBC,Adult Care & Housing,NPOWER,Energy,11419294,25-Jan-23,704.02
Rotherham MBC,Adult Care & Housing,NPOWER,Energy,11419295,25-Jan-23,752.14
Rotherham MBC,Adult Care & Housing,NPOWER,Energy,11419296,25-Jan-23,867.73
Rotherham MBC,Adult Care & Housing,NPOWER,Energy,11419297,25-Jan-23,929.09
Rotherham MBC,Adult Care & Housing,NPOWER,Energy,11419298,25-Jan-23,809.67
Rotherham MBC,Adult Care & Housing,NPOWER,Energy,11419299,25-Jan-23,735.39
Rotherham MBC,Adult Care & Housing,NPOWER,Energy,11419300,25-Jan-23,754.61
Rotherham MBC,Adult Care & Housing,NPOWER,Energy,11419301,25-Jan-23,724.90
Rotherham MBC,Adult Care & Housing,NPOWER,Energy,11419302,25-Jan-23,748.01
Rotherham MBC,Adult Care & Housing,NPOWER,Energy,11419303,25-Jan-23,824.68
Rotherham MBC,Adult Care & Housing,NPOWER,Energy,11419304,25-Jan-23,842.08
Rotherham MBC,Adult Care & Housing,NPOWER,Energy,11419305,25-Jan-23,914.83
Rotherham MBC,Adult Care & Housing,NPOWER,Energy,11419306,25-Jan-23,936.83
Rotherham MBC,Adult Care & Housing,NPOWER,Energy,11419307,25-Jan-23,771.89
Rotherham MBC,Adult Care & Housing,NPOWER,Energy,11419308,25-Jan-23,800.21
Rotherham MBC,Adult Care & Housing,NPOWER,Energy,11419309,25-Jan-23,740.17
Rotherham MBC,Adult Care & Housing,NPOWER,Energy,11419310,25-Jan-23,791.86
Rotherham MBC,Adult Care & Housing,NPOWER,Energy,11419311,25-Jan-23,721.80
Rotherham MBC,Adult Care & Housing,NPOWER,Energy,11419312,25-Jan-23,793.57
Rotherham MBC,Adult Care & Housing,NPOWER,Energy,11419313,25-Jan-23,789.45
Rotherham MBC,Adult Care & Housing,NPOWER,Energy,11419314,25-Jan-23,778.63
Rotherham MBC,Adult Care & Housing,NPOWER,Energy,11419315,25-Jan-23,841.73
Rotherham MBC,Adult Care & Housing,NPOWER,Energy,11419316,25-Jan-23,725.84
Rotherham MBC,Adult Care & Housing,NPOWER,Energy,11419317,25-Jan-23,745.25
Rotherham MBC,Regeneration & Environment,HATHER PLANT HIRE LTD,Plant Hire,11419941,02-Feb-23,300.00
Rotherham MBC,Regeneration & Environment,HATHER PLANT HIRE LTD,Plant Hire,11419942,18-Jan-23,371.48
Rotherham MBC,Regeneration & Environment,CEMEX UK OPERATIONS LTD,Re-Instatement Materials,11419943,09-Jan-23,174.11
Rotherham MBC,Regeneration & Environment,MARSHALLS PLC,Re-Instatement Materials,11419946,24-Jan-23,5596.47
Rotherham MBC,Children & Young Peoples Serv,KCM WASTE MANAGEMENT LTD,Waste Disposal Inc Skip Hire,11419948,06-Jan-23,245.00
Rotherham MBC,Adult Care & Housing,KCM WASTE MANAGEMENT LTD,Waste Disposal Inc Skip Hire,11419949,13-Jan-23,120.00
Rotherham MBC,Adult Care & Housing,KCM WASTE MANAGEMENT LTD,Waste Disposal Inc Skip Hire,11419955,05-Jan-23,90.60
Rotherham MBC,Regeneration & Environment,WRIGHT BROS PARTNERSHIP LTD,Repair And Maintenance,11419956,23-Jan-23,750.12
Rotherham MBC,Regeneration & Environment,DAWSONGROUP BUS AND COACH LTD,Taxi  Mini Bus  Coach Operations,11419957,06-Jan-23,1449.98
Rotherham MBC,Regeneration & Environment,DAWSONGROUP BUS AND COACH LTD,Taxi  Mini Bus  Coach Operations,11419957,06-Jan-23,-325.96
Rotherham MBC,Regeneration & Environment,DAWSONGROUP BUS AND COACH LTD,Taxi  Mini Bus  Coach Operations,11419958,06-Jan-23,1449.97
Rotherham MBC,Regeneration & Environment,DAWSONGROUP BUS AND COACH LTD,Taxi  Mini Bus  Coach Operations,11419958,06-Jan-23,-325.96
Rotherham MBC,Regeneration & Environment,ONE51 ES PLASTICS (UK) LTD,Waste Disposal Inc Skip Hire,11419959,09-Jan-23,3300.00
Rotherham MBC,Finance & Customer Services,HELEN DAVEY,Legal Services,11419972,12-Jan-23,500.00
Rotherham MBC,Regeneration & Environment,IETG LTD,Consultancy,11419974,20-Jan-23,1359.29
Rotherham MBC,Adult Care & Housing,YORKSHIRE PURCHASING ORGANISATION,Food And Drink,11419977,06-Jan-23,1128.33
Rotherham MBC,Adult Care & Housing,JLA TOTAL CARE LTD,Domestic And Commerical Appliances,11419987,05-Jan-23,588.04
Rotherham MBC,Children & Young Peoples Serv,INSIGHT DIRECT (UK) LTD,Technology,11419989,09-Jan-23,16.99
Rotherham MBC,Adult Care & Housing,SAFE FIRE DIRECT,Fire Prevention,11419991,06-Jan-23,990.00
Rotherham MBC,Regeneration & Environment,CERTAS ENERGY UK LIMITED,Fuel/Heating Oil,11419992,09-Jan-23,36325.26
Rotherham MBC,Regeneration & Environment,CERTAS ENERGY UK LIMITED,Fuel/Heating Oil,11419993,16-Jan-23,1625.00
Rotherham MBC,Regeneration & Environment,INSIGHT DIRECT (UK) LTD,Technology,11419996,09-Jan-23,-122.99
Rotherham MBC,Regeneration & Environment,NORMANS (BURTON UPON TRENT) LTD,Musical Equipment,11420001,11-Jan-23,1840.00
Rotherham MBC,Regeneration & Environment,NATIONAL MINI MIX,Re-Instatement Materials,11420009,09-Jan-23,195.50
Rotherham MBC,Regeneration & Environment,ACE JANITORIAL SUPPLIES LTD,Ppe  Tools And Janitorial Supplies,11420026,06-Jan-23,167.70
Rotherham MBC,Regeneration & Environment,ARDEN WINCH & CO LTD,Ppe  Tools And Janitorial Supplies,11420027,16-Jan-23,44.61
Rotherham MBC,Regeneration & Environment,ARDEN WINCH & CO LTD,Ppe  Tools And Janitorial Supplies,11420028,06-Jan-23,296.98
Rotherham MBC,Adult Care & Housing,ARDEN WINCH & CO LTD,Ppe  Tools And Janitorial Supplies,11420030,06-Jan-23,4.30
Rotherham MBC,Regeneration & Environment,HARSCO METALS GROUP LTD,Re-Instatement Materials,11420033,09-Jan-23,1582.40
Rotherham MBC,Regeneration & Environment,HSL COMPLIANCE LTD,Repair And Maintenance,11420034,06-Jan-23,42.00
Rotherham MBC,Adult Care & Housing,HSL COMPLIANCE LTD,Repair And Maintenance,11420038,06-Jan-23,43.00
Rotherham MBC,Regeneration & Environment,HSL COMPLIANCE LTD,Repair And Maintenance,11420039,10-Jan-23,35.00
Rotherham MBC,Regeneration & Environment,HSL COMPLIANCE LTD,Repair And Maintenance,11420040,20-Jan-23,35.00
Rotherham MBC,Regeneration & Environment,HSL COMPLIANCE LTD,Repair And Maintenance,11420041,10-Jan-23,31.00
Rotherham MBC,Regeneration & Environment,HSL COMPLIANCE LTD,Repair And Maintenance,11420042,24-Jan-23,598.00
Rotherham MBC,Regeneration & Environment,HSL COMPLIANCE LTD,Repair And Maintenance,11420043,10-Jan-23,67.00
Rotherham MBC,Regeneration & Environment,HSL COMPLIANCE LTD,Repair And Maintenance,11420044,23-Jan-23,99.00
Rotherham MBC,Regeneration & Environment,HSL COMPLIANCE LTD,Repair And Maintenance,11420045,24-Jan-23,67.00
Rotherham MBC,Regeneration & Environment,HSL COMPLIANCE LTD,Repair And Maintenance,11420046,06-Jan-23,34.00
Rotherham MBC,Adult Care & Housing,HSL COMPLIANCE LTD,Repair And Maintenance,11420047,06-Jan-23,43.00
Rotherham MBC,Adult Care & Housing,HSL COMPLIANCE LTD,Repair And Maintenance,11420048,06-Jan-23,43.00
Rotherham MBC,Adult Care & Housing,HSL COMPLIANCE LTD,Repair And Maintenance,11420049,06-Jan-23,43.00
Rotherham MBC,Adult Care & Housing,HSL COMPLIANCE LTD,Repair And Maintenance,11420050,06-Jan-23,43.00
Rotherham MBC,Adult Care & Housing,HSL COMPLIANCE LTD,Repair And Maintenance,11420051,06-Jan-23,43.00
Rotherham MBC,Adult Care & Housing,HSL COMPLIANCE LTD,Repair And Maintenance,11420053,06-Jan-23,43.00
Rotherham MBC,Regeneration & Environment,HSL COMPLIANCE LTD,Repair And Maintenance,11420054,06-Jan-23,34.00
Rotherham MBC,Regeneration & Environment,HSL COMPLIANCE LTD,Repair And Maintenance,11420055,06-Jan-23,37.00
Rotherham MBC,Regeneration & Environment,HSL COMPLIANCE LTD,Repair And Maintenance,11420056,10-Jan-23,35.00
Rotherham MBC,Children & Young Peoples Serv,HSL COMPLIANCE LTD,Repair And Maintenance,11420057,06-Jan-23,56.00
Rotherham MBC,Regeneration & Environment,HSL COMPLIANCE LTD,Repair And Maintenance,11420058,06-Jan-23,14.90
Rotherham MBC,Regeneration & Environment,HSL COMPLIANCE LTD,Repair And Maintenance,11420060,10-Jan-23,276.00
Rotherham MBC,Regeneration & Environment,HSL COMPLIANCE LTD,Repair And Maintenance,11420062,06-Jan-23,92.00
Rotherham MBC,Regeneration & Environment,HSL COMPLIANCE LTD,Repair And Maintenance,11420063,10-Jan-23,92.00
Rotherham MBC,Regeneration & Environment,HSL COMPLIANCE LTD,Repair And Maintenance,11420064,06-Jan-23,43.00
Rotherham MBC,Regeneration & Environment,HSL COMPLIANCE LTD,Repair And Maintenance,11420065,06-Jan-23,37.00
Rotherham MBC,Regeneration & Environment,HSL COMPLIANCE LTD,Repair And Maintenance,11420066,06-Jan-23,34.00
Rotherham MBC,Regeneration & Environment,HSL COMPLIANCE LTD,Repair And Maintenance,11420067,06-Jan-23,43.00
Rotherham MBC,Regeneration & Environment,HSL COMPLIANCE LTD,Repair And Maintenance,11420069,06-Jan-23,34.00
Rotherham MBC,Regeneration & Environment,HSL COMPLIANCE LTD,Repair And Maintenance,11420070,06-Jan-23,43.00
Rotherham MBC,Regeneration & Environment,HSL COMPLIANCE LTD,Repair And Maintenance,11420071,06-Jan-23,43.00
Rotherham MBC,Regeneration & Environment,HSL COMPLIANCE LTD,Repair And Maintenance,11420072,06-Jan-23,34.00
Rotherham MBC,Regeneration & Environment,HSL COMPLIANCE LTD,Repair And Maintenance,11420073,06-Jan-23,50.00
Rotherham MBC,Regeneration & Environment,HSL COMPLIANCE LTD,Repair And Maintenance,11420074,06-Jan-23,34.00
Rotherham MBC,Regeneration & Environment,HSL COMPLIANCE LTD,Repair And Maintenance,11420075,06-Jan-23,37.00
Rotherham MBC,Regeneration & Environment,HSL COMPLIANCE LTD,Repair And Maintenance,11420076,10-Jan-23,50.00
Rotherham MBC,Adult Care & Housing,HSL COMPLIANCE LTD,Repair And Maintenance,11420077,06-Jan-23,43.00
Rotherham MBC,Adult Care & Housing,HSL COMPLIANCE LTD,Repair And Maintenance,11420078,06-Jan-23,43.00
Rotherham MBC,Adult Care & Housing,HSL COMPLIANCE LTD,Repair And Maintenance,11420079,06-Jan-23,43.00
Rotherham MBC,Adult Care & Housing,HSL COMPLIANCE LTD,Repair And Maintenance,11420080,06-Jan-23,43.00
Rotherham MBC,Adult Care & Housing,HSL COMPLIANCE LTD,Repair And Maintenance,11420081,06-Jan-23,43.00
Rotherham MBC,Adult Care & Housing,HSL COMPLIANCE LTD,Repair And Maintenance,11420082,10-Jan-23,43.00
Rotherham MBC,Adult Care & Housing,HSL COMPLIANCE LTD,Repair And Maintenance,11420083,06-Jan-23,43.00
Rotherham MBC,Adult Care & Housing,HSL COMPLIANCE LTD,Repair And Maintenance,11420084,06-Jan-23,43.00
Rotherham MBC,Adult Care & Housing,HSL COMPLIANCE LTD,Repair And Maintenance,11420085,10-Jan-23,35.00
Rotherham MBC,Adult Care & Housing,HSL COMPLIANCE LTD,Repair And Maintenance,11420086,06-Jan-23,43.00
Rotherham MBC,Adult Care & Housing,HSL COMPLIANCE LTD,Repair And Maintenance,11420087,06-Jan-23,43.00
Rotherham MBC,Adult Care & Housing,HSL COMPLIANCE LTD,Repair And Maintenance,11420088,06-Jan-23,43.00
Rotherham MBC,Adult Care & Housing,HSL COMPLIANCE LTD,Repair And Maintenance,11420089,06-Jan-23,43.00
Rotherham MBC,Adult Care & Housing,HSL COMPLIANCE LTD,Repair And Maintenance,11420090,06-Jan-23,43.00
Rotherham MBC,Regeneration & Environment,HSL COMPLIANCE LTD,Repair And Maintenance,11420091,06-Jan-23,34.00
Rotherham MBC,Regeneration & Environment,HSL COMPLIANCE LTD,Repair And Maintenance,11420093,06-Jan-23,35.00
Rotherham MBC,Finance & Customer Services,FRC PREPARERS LEVY,Licence & Professional Fees,11420105,05-Jan-23,2358.00
Rotherham MBC,Regeneration & Environment,R BURKINSHAW & SONS LTD,Plant Hire,11420108,18-Jan-23,39.00
Rotherham MBC,Regeneration & Environment,PROVIDENCE MAINTENANCE & ELECTRICAL,Repair And Maintenance,11420109,18-Jan-23,90.00
Rotherham MBC,Children & Young Peoples Serv,PROVIDENCE MAINTENANCE & ELECTRICAL,Repair And Maintenance,11420110,18-Jan-23,90.00
Rotherham MBC,Regeneration & Environment,PROVIDENCE MAINTENANCE & ELECTRICAL,Repair And Maintenance,11420111,18-Jan-23,450.00
Rotherham MBC,Regeneration & Environment,PROVIDENCE MAINTENANCE & ELECTRICAL,Repair And Maintenance,11420112,23-Jan-23,90.00
Rotherham MBC,Regeneration & Environment,PROVIDENCE MAINTENANCE & ELECTRICAL,Repair And Maintenance,11420113,18-Jan-23,300.00
Rotherham MBC,Regeneration & Environment,PROVIDENCE MAINTENANCE & ELECTRICAL,Repair And Maintenance,11420116,18-Jan-23,520.00
Rotherham MBC,Regeneration & Environment,PROVIDENCE MAINTENANCE & ELECTRICAL,Repair And Maintenance,11420117,18-Jan-23,160.00
Rotherham MBC,Regeneration & Environment,PROVIDENCE MAINTENANCE & ELECTRICAL,Repair And Maintenance,11420119,18-Jan-23,160.00
Rotherham MBC,Regeneration & Environment,PROVIDENCE MAINTENANCE & ELECTRICAL,Repair And Maintenance,11420120,12-Jan-23,520.00
Rotherham MBC,Children & Young Peoples Serv,PROVIDENCE MAINTENANCE & ELECTRICAL,Repair And Maintenance,11420121,11-Jan-23,45.00
Rotherham MBC,Children & Young Peoples Serv,PROVIDENCE MAINTENANCE & ELECTRICAL,Repair And Maintenance,11420122,11-Jan-23,110.00
Rotherham MBC,Regeneration & Environment,PROVIDENCE MAINTENANCE & ELECTRICAL,Repair And Maintenance,11420123,11-Jan-23,74.00
Rotherham MBC,Regeneration & Environment,PROVIDENCE MAINTENANCE & ELECTRICAL,Repair And Maintenance,11420124,12-Jan-23,45.00
Rotherham MBC,Regeneration & Environment,PROVIDENCE MAINTENANCE & ELECTRICAL,Repair And Maintenance,11420125,11-Jan-23,54.00
Rotherham MBC,Children & Young Peoples Serv,PROVIDENCE MAINTENANCE & ELECTRICAL,Repair And Maintenance,11420126,11-Jan-23,45.00
Rotherham MBC,Children & Young Peoples Serv,PROVIDENCE MAINTENANCE & ELECTRICAL,Repair And Maintenance,11420127,11-Jan-23,110.00
Rotherham MBC,Children & Young Peoples Serv,PROVIDENCE MAINTENANCE & ELECTRICAL,Repair And Maintenance,11420128,11-Jan-23,65.00
Rotherham MBC,Children & Young Peoples Serv,PROVIDENCE MAINTENANCE & ELECTRICAL,Repair And Maintenance,11420130,11-Jan-23,65.00
Rotherham MBC,Children & Young Peoples Serv,PROVIDENCE MAINTENANCE & ELECTRICAL,Repair And Maintenance,11420134,11-Jan-23,45.00
Rotherham MBC,Regeneration & Environment,PROVIDENCE MAINTENANCE & ELECTRICAL,Repair And Maintenance,11420136,11-Jan-23,90.00
Rotherham MBC,Regeneration & Environment,PROVIDENCE MAINTENANCE & ELECTRICAL,Repair And Maintenance,11420137,11-Jan-23,240.00
Rotherham MBC,Regeneration & Environment,PROVIDENCE MAINTENANCE & ELECTRICAL,Repair And Maintenance,11420139,12-Jan-23,840.00
Rotherham MBC,Children & Young Peoples Serv,PROVIDENCE MAINTENANCE & ELECTRICAL,Repair And Maintenance,11420140,11-Jan-23,296.00
Rotherham MBC,Regeneration & Environment,PROVIDENCE MAINTENANCE & ELECTRICAL,Repair And Maintenance,11420142,11-Jan-23,66.00
Rotherham MBC,Regeneration & Environment,PROVIDENCE MAINTENANCE & ELECTRICAL,Repair And Maintenance,11420143,11-Jan-23,165.00
Rotherham MBC,Children & Young Peoples Serv,PROVIDENCE MAINTENANCE & ELECTRICAL,Repair And Maintenance,11420145,11-Jan-23,90.00
Rotherham MBC,Regeneration & Environment,PROVIDENCE MAINTENANCE & ELECTRICAL,Repair And Maintenance,11420146,11-Jan-23,80.00
Rotherham MBC,Regeneration & Environment,R BURKINSHAW & SONS LTD,Plant Hire,11420148,18-Jan-23,46.80
Rotherham MBC,Regeneration & Environment,PROVIDENCE MAINTENANCE & ELECTRICAL,Repair And Maintenance,11420149,11-Jan-23,90.00
Rotherham MBC,Regeneration & Environment,R BURKINSHAW & SONS LTD,Plant Hire,11420150,18-Jan-23,39.00
Rotherham MBC,Regeneration & Environment,SIGNS EXPRESS LTD,General Signage,11420156,05-Jan-23,531.00
Rotherham MBC,Regeneration & Environment,HATHER PLANT HIRE LTD,Plant Hire,11420164,18-Jan-23,-1462.61
Rotherham MBC,Regeneration & Environment,HATHER PLANT HIRE LTD,Plant Hire,11420165,18-Jan-23,-1230.00
Rotherham MBC,Adult Care & Housing,ALZHEIMERS & DEMENTIA PRODUCTS LTD,Health And Hygiene Equipment,11420168,16-Jan-23,3083.00
Rotherham MBC,Children & Young Peoples Serv,JENKINS CARPETS LTD,Supporting People - Generic Services,11420169,06-Jan-23,854.16
Rotherham MBC,Regeneration & Environment,R BURKINSHAW & SONS LTD,Plant Hire,11420173,18-Jan-23,1480.00
Rotherham MBC,Regeneration & Environment,R BURKINSHAW & SONS LTD,Plant Hire,11420174,18-Jan-23,850.00
Rotherham MBC,Regeneration & Environment,LDC DECORATING CONTRACTORS LTD,Repair And Maintenance,11420176,26-Jan-23,7005.03
Rotherham MBC,Regeneration & Environment,AHR ARCHITECTS LTD,Surveyors  Architects & Auctions,11420177,31-Jan-23,3060.83
Rotherham MBC,Regeneration & Environment,AHR ARCHITECTS LTD,Surveyors  Architects & Auctions,11420178,31-Jan-23,23591.11
Rotherham MBC,Regeneration & Environment,DFP SERVICES LTD,Emergency Lighting And Accessories,11422141,06-Jan-23,10.20
Rotherham MBC,Regeneration & Environment,DFP SERVICES LTD,Fire Alarm Maintenance Or Monitoring,11422142,06-Jan-23,165.25
Rotherham MBC,Children & Young Peoples Serv,DFP SERVICES LTD,Emergency Lighting And Accessories,11422143,06-Jan-23,54.00
Rotherham MBC,Regeneration & Environment,DFP SERVICES LTD,Emergency Lighting And Accessories,11422144,06-Jan-23,37.40
Rotherham MBC,Regeneration & Environment,CEMEX UK OPERATIONS LTD,Re-Instatement Materials,11422145,09-Jan-23,122.14
Rotherham MBC,Regeneration & Environment,MARSHALLS PLC,Re-Instatement Materials,11422146,24-Jan-23,5596.47
Rotherham MBC,Regeneration & Environment,KEYLINE BUILDERS MERCHANTS LTD,Re-Instatement Materials,11422150,06-Jan-23,1279.20
Rotherham MBC,Regeneration & Environment,PRIORY PAT CONSULTANTS,Training Services,11422151,05-Jan-23,229.00
Rotherham MBC,Adult Care & Housing,CLEARANCE AND CLEAN UP LTD,Waste Disposal Inc Skip Hire,11422152,16-Jan-23,1780.00
Rotherham MBC,Adult Care & Housing,PYRAMID LINOLEUM & CARPET COMPANY,Furnishing And Furbishing,11422153,05-Jan-23,159.85
Rotherham MBC,Adult Care & Housing,PYRAMID LINOLEUM & CARPET COMPANY,Furnishing And Furbishing,11422154,05-Jan-23,383.27
Rotherham MBC,Adult Care & Housing,PYRAMID LINOLEUM & CARPET COMPANY,Furnishing And Furbishing,11422155,05-Jan-23,821.55
Rotherham MBC,Adult Care & Housing,PYRAMID LINOLEUM & CARPET COMPANY,Furnishing And Furbishing,11422156,05-Jan-23,486.23
Rotherham MBC,Adult Care & Housing,PYRAMID LINOLEUM & CARPET COMPANY,Furnishing And Furbishing,11422157,05-Jan-23,658.61
Rotherham MBC,Adult Care & Housing,PYRAMID LINOLEUM & CARPET COMPANY,Furnishing And Furbishing,11422158,05-Jan-23,626.05
Rotherham MBC,Adult Care & Housing,KCM WASTE MANAGEMENT LTD,Waste Disposal Inc Skip Hire,11422159,13-Jan-23,125.90
Rotherham MBC,Adult Care & Housing,KCM WASTE MANAGEMENT LTD,Waste Disposal Inc Skip Hire,11422160,12-Jan-23,145.00
Rotherham MBC,Children & Young Peoples Serv,KCM WASTE MANAGEMENT LTD,Waste Disposal Inc Skip Hire,11422161,09-Jan-23,220.00
Rotherham MBC,Regeneration & Environment,KCM WASTE MANAGEMENT LTD,Waste Disposal Inc Skip Hire,11422162,06-Jan-23,250.00
Rotherham MBC,Regeneration & Environment,ELEVEN DESIGN CONSULTANTS LTD,Consultancy,11422169,24-Jan-23,600.00
Rotherham MBC,Central Services,CAE TECHNOLOGY SERVICES,Technology,11422180,18-Jan-23,3900.00
Rotherham MBC,Regeneration & Environment,DFP SERVICES LTD,Emergency Lighting And Accessories,11422181,10-Jan-23,72.00
Rotherham MBC,Regeneration & Environment,YORKSHIRE PURCHASING ORGANISATION,Food And Drink,11422182,09-Jan-23,124.18
Rotherham MBC,Regeneration & Environment,AIR ENVIRONMENTAL LTD,Domestic And Commerical Appliances,11422183,06-Jan-23,4703.80
Rotherham MBC,Regeneration & Environment,AHR ARCHITECTS LTD,Surveyors  Architects & Auctions,11422184,31-Jan-23,906.61
Rotherham MBC,Regeneration & Environment,YORKSHIRE PURCHASING ORGANISATION,Food And Drink,11422185,06-Jan-23,1564.80
Rotherham MBC,Regeneration & Environment,AIR ENVIRONMENTAL LTD,Domestic And Commerical Appliances,11422194,06-Jan-23,25054.35
Rotherham MBC,Adult Care & Housing,HOPWELLS LTD,Food And Drink,11422197,05-Jan-23,313.51
Rotherham MBC,Regeneration & Environment,HOPWELLS LTD,Food And Drink,11422198,09-Jan-23,225.40
Rotherham MBC,Regeneration & Environment,BATLEYS FOODSERVICE,Food And Drink,11422203,05-Jan-23,1995.65
Rotherham MBC,Assistant Chief Executive,HEALTH MANAGEMENT LTD,Training Services,11422208,09-Jan-23,7367.83
Rotherham MBC,Adult Care & Housing,RNIB ENTERPRISES LTD,Educational Equipment & Resources,11422209,09-Jan-23,2732.70
Rotherham MBC,Regeneration & Environment,E.ON NEXT ENERGY LTD,Energy,11422243,12-Jan-23,117.12
Rotherham MBC,Regeneration & Environment,HARSCO METALS GROUP LTD,Re-Instatement Materials,11422250,09-Jan-23,956.80
Rotherham MBC,Regeneration & Environment,HARSCO METALS GROUP LTD,Re-Instatement Materials,11422251,09-Jan-23,328.52
Rotherham MBC,Regeneration & Environment,ARDEN WINCH & CO LTD,Ppe  Tools And Janitorial Supplies,11422252,16-Jan-23,53.49
Rotherham MBC,Regeneration & Environment,ARDEN WINCH & CO LTD,Ppe  Tools And Janitorial Supplies,11422253,06-Jan-23,73.00
Rotherham MBC,Regeneration & Environment,ARDEN WINCH & CO LTD,Ppe  Tools And Janitorial Supplies,11422254,06-Jan-23,569.60
Rotherham MBC,Regeneration & Environment,ARDEN WINCH & CO LTD,Ppe  Tools And Janitorial Supplies,11422255,06-Jan-23,261.60
Rotherham MBC,Regeneration & Environment,DFP SERVICES LTD,Security Hardware And Accessories,11422258,09-Jan-23,47.61
Rotherham MBC,Regeneration & Environment,DFP SERVICES LTD,Fire Alarm Maintenance Or Monitoring,11422259,09-Jan-23,162.24
Rotherham MBC,Regeneration & Environment,ARIANE DEVELOPMENTS LTD,Repair And Maintenance,11422266,09-Jan-23,6383.09
Rotherham MBC,Regeneration & Environment,MYRIAD HEAT & POWER PRODUCTS LTD,Repair And Maintenance,11422268,13-Jan-23,672.14
Rotherham MBC,Adult Care & Housing,ARCANE TRADING LTD,Printing Services,11422291,13-Jan-23,10987.99
Rotherham MBC,Regeneration & Environment,SWALLOWNEST & AIRPORT TAXIS LTD,Taxi  Mini Bus  Coach Operations,11422309,06-Jan-23,2774.40
Rotherham MBC,Regeneration & Environment,SWALLOWNEST & AIRPORT TAXIS LTD,Taxi  Mini Bus  Coach Operations,11422309,06-Jan-23,2876.40
Rotherham MBC,Regeneration & Environment,SWALLOWNEST & AIRPORT TAXIS LTD,Taxi  Mini Bus  Coach Operations,11422309,06-Jan-23,3260.00
Rotherham MBC,Regeneration & Environment,SWALLOWNEST & AIRPORT TAXIS LTD,Taxi  Mini Bus  Coach Operations,11422309,06-Jan-23,450.00
Rotherham MBC,Regeneration & Environment,SWALLOWNEST & AIRPORT TAXIS LTD,Taxi  Mini Bus  Coach Operations,11422309,06-Jan-23,705.60
Rotherham MBC,Regeneration & Environment,SWALLOWNEST & AIRPORT TAXIS LTD,Taxi  Mini Bus  Coach Operations,11422309,06-Jan-23,483.60
Rotherham MBC,Regeneration & Environment,SWALLOWNEST & AIRPORT TAXIS LTD,Taxi  Mini Bus  Coach Operations,11422309,06-Jan-23,4327.00
Rotherham MBC,Regeneration & Environment,SWALLOWNEST & AIRPORT TAXIS LTD,Taxi  Mini Bus  Coach Operations,11422309,06-Jan-23,1053.00
Rotherham MBC,Regeneration & Environment,SWALLOWNEST & AIRPORT TAXIS LTD,Taxi  Mini Bus  Coach Operations,11422309,06-Jan-23,2722.50
Rotherham MBC,Regeneration & Environment,SWALLOWNEST & AIRPORT TAXIS LTD,Taxi  Mini Bus  Coach Operations,11422309,06-Jan-23,907.50
Rotherham MBC,Children & Young Peoples Serv,SWALLOWNEST & AIRPORT TAXIS LTD,Taxi  Mini Bus  Coach Operations,11422309,06-Jan-23,1560.00
Rotherham MBC,Children & Young Peoples Serv,SWALLOWNEST & AIRPORT TAXIS LTD,Taxi  Mini Bus  Coach Operations,11422309,06-Jan-23,810.00
Rotherham MBC,Children & Young Peoples Serv,SWALLOWNEST & AIRPORT TAXIS LTD,Taxi  Mini Bus  Coach Operations,11422309,06-Jan-23,270.00
Rotherham MBC,Children & Young Peoples Serv,SWALLOWNEST & AIRPORT TAXIS LTD,Taxi  Mini Bus  Coach Operations,11422309,06-Jan-23,2470.00
Rotherham MBC,Regeneration & Environment,LEEDS COMMERCIAL LIMITED,Fleet Hire And Purchase  Financing,11422345,09-Jan-23,560.24
Rotherham MBC,Regeneration & Environment,LEEDS COMMERCIAL LIMITED,Fleet Hire And Purchase  Financing,11422345,09-Jan-23,-125.94
Rotherham MBC,Regeneration & Environment,LEEDS COMMERCIAL LIMITED,Fleet Hire And Purchase  Financing,11422346,09-Jan-23,656.98
Rotherham MBC,Regeneration & Environment,LEEDS COMMERCIAL LIMITED,Fleet Hire And Purchase  Financing,11422346,09-Jan-23,-147.69
Rotherham MBC,Regeneration & Environment,LEEDS COMMERCIAL LIMITED,Fleet Hire And Purchase  Financing,11422347,09-Jan-23,1056.84
Rotherham MBC,Regeneration & Environment,LEEDS COMMERCIAL LIMITED,Fleet Hire And Purchase  Financing,11422347,09-Jan-23,-237.58
Rotherham MBC,Regeneration & Environment,LEEDS COMMERCIAL LIMITED,Fleet Hire And Purchase  Financing,11422348,09-Jan-23,914.06
Rotherham MBC,Regeneration & Environment,LEEDS COMMERCIAL LIMITED,Fleet Hire And Purchase  Financing,11422348,09-Jan-23,-205.48
Rotherham MBC,Regeneration & Environment,LEEDS COMMERCIAL LIMITED,Fleet Hire And Purchase  Financing,11422349,09-Jan-23,1056.88
Rotherham MBC,Regeneration & Environment,LEEDS COMMERCIAL LIMITED,Fleet Hire And Purchase  Financing,11422349,09-Jan-23,-237.59
Rotherham MBC,Regeneration & Environment,LEEDS COMMERCIAL LIMITED,Fleet Hire And Purchase  Financing,11422350,09-Jan-23,3142.06
Rotherham MBC,Regeneration & Environment,LEEDS COMMERCIAL LIMITED,Fleet Hire And Purchase  Financing,11422350,09-Jan-23,-706.35
Rotherham MBC,Regeneration & Environment,LEEDS COMMERCIAL LIMITED,Fleet Hire And Purchase  Financing,11422351,09-Jan-23,914.06
Rotherham MBC,Regeneration & Environment,LEEDS COMMERCIAL LIMITED,Fleet Hire And Purchase  Financing,11422351,09-Jan-23,-205.48
Rotherham MBC,Regeneration & Environment,LEEDS COMMERCIAL LIMITED,Fleet Hire And Purchase  Financing,11422352,09-Jan-23,1056.88
Rotherham MBC,Regeneration & Environment,LEEDS COMMERCIAL LIMITED,Fleet Hire And Purchase  Financing,11422352,09-Jan-23,-237.59
Rotherham MBC,Regeneration & Environment,LEEDS COMMERCIAL LIMITED,Fleet Hire And Purchase  Financing,11422354,09-Jan-23,1485.33
Rotherham MBC,Regeneration & Environment,LEEDS COMMERCIAL LIMITED,Fleet Hire And Purchase  Financing,11422354,09-Jan-23,-333.91
Rotherham MBC,Regeneration & Environment,LEEDS COMMERCIAL LIMITED,Fleet Hire And Purchase  Financing,11422355,09-Jan-23,914.06
Rotherham MBC,Regeneration & Environment,LEEDS COMMERCIAL LIMITED,Fleet Hire And Purchase  Financing,11422355,09-Jan-23,-205.48
Rotherham MBC,Regeneration & Environment,LEEDS COMMERCIAL LIMITED,Fleet Hire And Purchase  Financing,11422356,09-Jan-23,4141.81
Rotherham MBC,Regeneration & Environment,LEEDS COMMERCIAL LIMITED,Fleet Hire And Purchase  Financing,11422356,09-Jan-23,-931.10
Rotherham MBC,Regeneration & Environment,LEEDS COMMERCIAL LIMITED,Fleet Hire And Purchase  Financing,11422357,09-Jan-23,4141.81
Rotherham MBC,Regeneration & Environment,LEEDS COMMERCIAL LIMITED,Fleet Hire And Purchase  Financing,11422357,09-Jan-23,-931.10
Rotherham MBC,Regeneration & Environment,PROVIDENCE MAINTENANCE & ELECTRICAL,Repair And Maintenance,11422358,11-Jan-23,186.00
Rotherham MBC,Regeneration & Environment,PROVIDENCE MAINTENANCE & ELECTRICAL,Repair And Maintenance,11422359,11-Jan-23,240.00
Rotherham MBC,Regeneration & Environment,PROVIDENCE MAINTENANCE & ELECTRICAL,Repair And Maintenance,11422360,16-Jan-23,340.00
Rotherham MBC,Regeneration & Environment,PROVIDENCE MAINTENANCE & ELECTRICAL,Repair And Maintenance,11422361,11-Jan-23,90.00
Rotherham MBC,Regeneration & Environment,PROVIDENCE MAINTENANCE & ELECTRICAL,Repair And Maintenance,11422362,11-Jan-23,96.00
Rotherham MBC,Regeneration & Environment,PROVIDENCE MAINTENANCE & ELECTRICAL,Repair And Maintenance,11422363,11-Jan-23,45.00
Rotherham MBC,Regeneration & Environment,PROVIDENCE MAINTENANCE & ELECTRICAL,Repair And Maintenance,11422366,11-Jan-23,45.00
Rotherham MBC,Regeneration & Environment,PROVIDENCE MAINTENANCE & ELECTRICAL,Repair And Maintenance,11422367,10-Jan-23,58995.00
Rotherham MBC,Regeneration & Environment,PROVIDENCE MAINTENANCE & ELECTRICAL,Repair And Maintenance,11422368,16-Jan-23,280.00
Rotherham MBC,Regeneration & Environment,SANDERSON BUILDING SERVICES LTD,New Build & Major Refurb Trades,11422370,23-Jan-23,300.00
Rotherham MBC,Regeneration & Environment,SANDERSON BUILDING SERVICES LTD,New Build & Major Refurb Trades,11422371,16-Jan-23,540.00
Rotherham MBC,Regeneration & Environment,DFP SERVICES LTD,Cctv Installation And Maintenance,11422372,09-Jan-23,434.50
Rotherham MBC,Regeneration & Environment,CLEARANCE AND CLEAN UP LTD,Waste Disposal Inc Skip Hire,11422373,24-Jan-23,714.99
Rotherham MBC,Regeneration & Environment,FIRE SAFETY SERVICES (FSS) LTD,Fire Prevention,11422374,30-Jan-23,-47.00
Rotherham MBC,Regeneration & Environment,G TURNER,Taxi  Mini Bus  Coach Operations,11422376,06-Jan-23,1716.00
Rotherham MBC,Regeneration & Environment,G TURNER,Taxi  Mini Bus  Coach Operations,11422376,06-Jan-23,484.00
Rotherham MBC,Regeneration & Environment,W J NORTH LTD,Road Markings And Traffic Management,11422377,26-Jan-23,245.97
Rotherham MBC,Regeneration & Environment,W J NORTH LTD,Road Markings And Traffic Management,11422378,26-Jan-23,13.50
Rotherham MBC,Regeneration & Environment,W J NORTH LTD,Road Markings And Traffic Management,11422379,24-Jan-23,68.75
Rotherham MBC,Regeneration & Environment,W J NORTH LTD,Road Markings And Traffic Management,11422380,24-Jan-23,657.33
Rotherham MBC,Regeneration & Environment,W J NORTH LTD,Road Markings And Traffic Management,11422381,24-Jan-23,217.32
Rotherham MBC,Children & Young Peoples Serv,ACE JANITORIAL SUPPLIES LTD,Ppe  Tools And Janitorial Supplies,11422382,12-Jan-23,57.50
Rotherham MBC,Children & Young Peoples Serv,ACE JANITORIAL SUPPLIES LTD,Ppe  Tools And Janitorial Supplies,11422382,12-Jan-23,71.76
Rotherham MBC,Adult Care & Housing,LYRECO UK LTD,Stationery  Furniture & It Consumables,11422385,26-Jan-23,141.04
Rotherham MBC,Adult Care & Housing,ACE JANITORIAL SUPPLIES LTD,Ppe  Tools And Janitorial Supplies,11422807,05-Jan-23,250.58
Rotherham MBC,Regeneration & Environment,ACE JANITORIAL SUPPLIES LTD,Ppe  Tools And Janitorial Supplies,11422808,09-Jan-23,60.86
Rotherham MBC,Regeneration & Environment,CEMEX UK OPERATIONS LTD,Re-Instatement Materials,11422809,09-Jan-23,64.97
Rotherham MBC,Children & Young Peoples Serv,SANDERSON BUILDING SERVICES LTD,New Build & Major Refurb Trades,11422812,09-Jan-23,3376.22
Rotherham MBC,Regeneration & Environment,WYATT COACHES LTD,Taxi  Mini Bus  Coach Operations,11422813,24-Jan-23,2393.60
Rotherham MBC,Regeneration & Environment,WYATT COACHES LTD,Taxi  Mini Bus  Coach Operations,11422813,24-Jan-23,326.40
Rotherham MBC,Regeneration & Environment,REED SPECIALIST RECRUITMENT LTD,Agency Staff Services,11422816,10-Jan-23,5066.16
Rotherham MBC,Regeneration & Environment,BARNSLEY MBC,Local Authority Spend,11422818,05-Jan-23,2399.04
Rotherham MBC,Regeneration & Environment,BARNSLEY MBC,Local Authority Spend,11422819,05-Jan-23,2301.22
Rotherham MBC,Regeneration & Environment,PERFECT CIRCLE JV LTD,Surveyors  Architects & Auctions,11422820,09-Jan-23,1928.32
Rotherham MBC,Regeneration & Environment,PERFECT CIRCLE JV LTD,Surveyors  Architects & Auctions,11422820,09-Jan-23,3021.45
Rotherham MBC,Regeneration & Environment,PERFECT CIRCLE JV LTD,Surveyors  Architects & Auctions,11422820,09-Jan-23,1149.10
Rotherham MBC,Adult Care & Housing,PERFECT CIRCLE JV LTD,Surveyors  Architects & Auctions,11422820,09-Jan-23,1149.10
Rotherham MBC,Adult Care & Housing,PERFECT CIRCLE JV LTD,Surveyors  Architects & Auctions,11422820,09-Jan-23,2796.55
Rotherham MBC,Adult Care & Housing,PERFECT CIRCLE JV LTD,Surveyors  Architects & Auctions,11422820,09-Jan-23,3002.23
Rotherham MBC,Adult Care & Housing,PERFECT CIRCLE JV LTD,Surveyors  Architects & Auctions,11422820,09-Jan-23,4381.82
Rotherham MBC,Adult Care & Housing,PERFECT CIRCLE JV LTD,Surveyors  Architects & Auctions,11422820,09-Jan-23,2171.43
Rotherham MBC,Children & Young Peoples Serv,LEXTOX,Public Health & Care Services,11422821,23-Jan-23,1621.00
Rotherham MBC,Regeneration & Environment,BRYTONE LTD,Catering Equipment,11422822,24-Jan-23,97.50
Rotherham MBC,Children & Young Peoples Serv,GRIMM & CO LTD,Training Services,11422823,09-Jan-23,3286.27
Rotherham MBC,Children & Young Peoples Serv,GRIMM & CO LTD,Training Services,11422824,09-Jan-23,1291.21
Rotherham MBC,Regeneration & Environment,CARLSBERG UK LTD,Food And Drink,11422825,09-Jan-23,543.35
Rotherham MBC,Adult Care & Housing,BIRTENSHAW,Supporting People - Learning Disabilities,11422827,09-Jan-23,6725.52
Rotherham MBC,Finance & Customer Services,ROYAL MAIL,Postal And Courier Services,11422833,05-Jan-23,1090.54
Rotherham MBC,Finance & Customer Services,GREENHALGH KERR,Licence & Professional Fees,11422834,05-Jan-23,6446.20
Rotherham MBC,Adult Care & Housing,MATRIX SCM LTD,Agency Staff Services,11422835,05-Jan-23,152.44
Rotherham MBC,Regeneration & Environment,MATRIX SCM LTD,Agency Staff Services,11422836,05-Jan-23,2294.81
Rotherham MBC,Regeneration & Environment,MATRIX SCM LTD,Agency Staff Services,11422837,05-Jan-23,2048.81
Rotherham MBC,Adult Care & Housing,MATRIX SCM LTD,Agency Staff Services,11422838,05-Jan-23,1133.53
Rotherham MBC,Adult Care & Housing,MATRIX SCM LTD,Agency Staff Services,11422839,05-Jan-23,152.44
Rotherham MBC,Adult Care & Housing,MATRIX SCM LTD,Agency Staff Services,11422840,05-Jan-23,457.32
Rotherham MBC,Adult Care & Housing,MATRIX SCM LTD,Agency Staff Services,11422841,05-Jan-23,617.40
Rotherham MBC,Children & Young Peoples Serv,MATRIX SCM LTD,Agency Staff Services,11422842,05-Jan-23,1437.33
Rotherham MBC,Children & Young Peoples Serv,MATRIX SCM LTD,Agency Staff Services,11422843,05-Jan-23,5713.18
Rotherham MBC,Adult Care & Housing,MATRIX SCM LTD,Agency Staff Services,11422844,05-Jan-23,617.40
Rotherham MBC,Regeneration & Environment,MATRIX SCM LTD,Agency Staff Services,11422845,05-Jan-23,1333.08
Rotherham MBC,Regeneration & Environment,MATRIX SCM LTD,Agency Staff Services,11422846,05-Jan-23,2447.18
Rotherham MBC,Adult Care & Housing,MATRIX SCM LTD,Agency Staff Services,11422847,05-Jan-23,1154.65
Rotherham MBC,Regeneration & Environment,MATRIX SCM LTD,Agency Staff Services,11422848,05-Jan-23,1192.21
Rotherham MBC,Regeneration & Environment,MATRIX SCM LTD,Agency Staff Services,11422849,05-Jan-23,1850.25
Rotherham MBC,Regeneration & Environment,MATRIX SCM LTD,Agency Staff Services,11422850,05-Jan-23,1660.82
Rotherham MBC,Regeneration & Environment,MATRIX SCM LTD,Agency Staff Services,11422851,05-Jan-23,1705.86
Rotherham MBC,Regeneration & Environment,MATRIX SCM LTD,Agency Staff Services,11422852,05-Jan-23,2048.80
Rotherham MBC,Regeneration & Environment,MATRIX SCM LTD,Agency Staff Services,11422853,05-Jan-23,1955.84
Rotherham MBC,Regeneration & Environment,MATRIX SCM LTD,Agency Staff Services,11422854,05-Jan-23,1920.67
Rotherham MBC,Regeneration & Environment,MATRIX SCM LTD,Agency Staff Services,11422855,05-Jan-23,2194.24
Rotherham MBC,Finance & Customer Services,MATRIX SCM LTD,Agency Staff Services,11422856,05-Jan-23,1993.49
Rotherham MBC,Children & Young Peoples Serv,MATRIX SCM LTD,Agency Staff Services,11422857,05-Jan-23,1437.33
Rotherham MBC,Adult Care & Housing,MATRIX SCM LTD,Agency Staff Services,11422858,05-Jan-23,741.87
Rotherham MBC,Adult Care & Housing,MATRIX SCM LTD,Agency Staff Services,11422859,05-Jan-23,150.83
Rotherham MBC,Adult Care & Housing,MATRIX SCM LTD,Agency Staff Services,11422860,05-Jan-23,463.05
Rotherham MBC,Adult Care & Housing,MATRIX SCM LTD,Agency Staff Services,11422861,05-Jan-23,586.53
Rotherham MBC,Adult Care & Housing,MATRIX SCM LTD,Agency Staff Services,11422862,05-Jan-23,391.02
Rotherham MBC,Adult Care & Housing,MATRIX SCM LTD,Agency Staff Services,11422863,05-Jan-23,155.14
Rotherham MBC,Regeneration & Environment,MATRIX SCM LTD,Agency Staff Services,11422864,05-Jan-23,750.00
Rotherham MBC,Regeneration & Environment,MATRIX SCM LTD,Agency Staff Services,11422865,05-Jan-23,693.77
Rotherham MBC,Regeneration & Environment,MATRIX SCM LTD,Agency Staff Services,11422866,05-Jan-23,1021.68
Rotherham MBC,Children & Young Peoples Serv,MATRIX SCM LTD,Agency Staff Services,11422867,05-Jan-23,1242.76
Rotherham MBC,Finance & Customer Services,MATRIX SCM LTD,Agency Staff Services,11422868,05-Jan-23,2282.44
Rotherham MBC,Regeneration & Environment,MATRIX SCM LTD,Agency Staff Services,11422869,05-Jan-23,2189.63
Rotherham MBC,Adult Care & Housing,MATRIX SCM LTD,Agency Staff Services,11422870,05-Jan-23,579.27
Rotherham MBC,Adult Care & Housing,MATRIX SCM LTD,Agency Staff Services,11422871,05-Jan-23,152.44
Rotherham MBC,Adult Care & Housing,MATRIX SCM LTD,Agency Staff Services,11422872,05-Jan-23,386.18
Rotherham MBC,Adult Care & Housing,MATRIX SCM LTD,Agency Staff Services,11422873,05-Jan-23,152.44
Rotherham MBC,Adult Care & Housing,MATRIX SCM LTD,Agency Staff Services,11422874,05-Jan-23,104.60
Rotherham MBC,Adult Care & Housing,MATRIX SCM LTD,Agency Staff Services,11422875,05-Jan-23,237.99
Rotherham MBC,Regeneration & Environment,MATRIX SCM LTD,Agency Staff Services,11422876,05-Jan-23,559.83
Rotherham MBC,Children & Young Peoples Serv,MATRIX SCM LTD,Agency Staff Services,11422877,05-Jan-23,449.24
Rotherham MBC,Regeneration & Environment,MATRIX SCM LTD,Agency Staff Services,11422878,05-Jan-23,1749.60
Rotherham MBC,Children & Young Peoples Serv,MATRIX SCM LTD,Agency Staff Services,11422879,05-Jan-23,1284.74
Rotherham MBC,Regeneration & Environment,MATRIX SCM LTD,Agency Staff Services,11422880,05-Jan-23,1281.07
Rotherham MBC,Children & Young Peoples Serv,MATRIX SCM LTD,Agency Staff Services,11422881,05-Jan-23,1551.50
Rotherham MBC,Adult Care & Housing,MATRIX SCM LTD,Agency Staff Services,11422882,05-Jan-23,1414.53
Rotherham MBC,Adult Care & Housing,MATRIX SCM LTD,Agency Staff Services,11422883,05-Jan-23,1433.65
Rotherham MBC,Adult Care & Housing,MATRIX SCM LTD,Agency Staff Services,11422884,05-Jan-23,497.70
Rotherham MBC,Finance & Customer Services,MATRIX SCM LTD,Agency Staff Services,11422885,05-Jan-23,400.81
Rotherham MBC,Children & Young Peoples Serv,MATRIX SCM LTD,Agency Staff Services,11422886,05-Jan-23,1182.12
Rotherham MBC,Children & Young Peoples Serv,MATRIX SCM LTD,Agency Staff Services,11422887,05-Jan-23,2337.55
Rotherham MBC,Children & Young Peoples Serv,MATRIX SCM LTD,Agency Staff Services,11422888,05-Jan-23,2337.55
Rotherham MBC,Adult Care & Housing,MATRIX SCM LTD,Agency Staff Services,11422889,05-Jan-23,1360.46
Rotherham MBC,Regeneration & Environment,MATRIX SCM LTD,Agency Staff Services,11422890,05-Jan-23,1523.52
Rotherham MBC,Regeneration & Environment,MATRIX SCM LTD,Agency Staff Services,11422891,05-Jan-23,1955.83
Rotherham MBC,Adult Care & Housing,MATRIX SCM LTD,Agency Staff Services,11422892,05-Jan-23,1419.17
Rotherham MBC,Regeneration & Environment,MATRIX SCM LTD,Agency Staff Services,11422893,05-Jan-23,2744.81
Rotherham MBC,Finance & Customer Services,MATRIX SCM LTD,Agency Staff Services,11422894,05-Jan-23,2388.72
Rotherham MBC,Children & Young Peoples Serv,MATRIX SCM LTD,Agency Staff Services,11422895,05-Jan-23,1494.80
Rotherham MBC,Children & Young Peoples Serv,MATRIX SCM LTD,Agency Staff Services,11422896,05-Jan-23,430.37
Rotherham MBC,Children & Young Peoples Serv,MATRIX SCM LTD,Agency Staff Services,11422897,05-Jan-23,1541.60
Rotherham MBC,Children & Young Peoples Serv,MATRIX SCM LTD,Agency Staff Services,11422898,05-Jan-23,1542.95
Rotherham MBC,Children & Young Peoples Serv,MATRIX SCM LTD,Agency Staff Services,11422899,05-Jan-23,1555.65
Rotherham MBC,Children & Young Peoples Serv,MATRIX SCM LTD,Agency Staff Services,11422900,05-Jan-23,1579.95
Rotherham MBC,Children & Young Peoples Serv,MATRIX SCM LTD,Agency Staff Services,11422901,05-Jan-23,2898.90
Rotherham MBC,Children & Young Peoples Serv,MATRIX SCM LTD,Agency Staff Services,11422902,05-Jan-23,2665.90
Rotherham MBC,Children & Young Peoples Serv,MATRIX SCM LTD,Agency Staff Services,11422903,05-Jan-23,1643.45
Rotherham MBC,Children & Young Peoples Serv,MATRIX SCM LTD,Agency Staff Services,11422904,05-Jan-23,2370.50
Rotherham MBC,Children & Young Peoples Serv,MATRIX SCM LTD,Agency Staff Services,11422905,05-Jan-23,1703.30
Rotherham MBC,Children & Young Peoples Serv,MATRIX SCM LTD,Agency Staff Services,11422906,05-Jan-23,2400.20
Rotherham MBC,Children & Young Peoples Serv,MATRIX SCM LTD,Agency Staff Services,11422907,05-Jan-23,2400.20
Rotherham MBC,Finance & Customer Services,MATRIX SCM LTD,Agency Staff Services,11422908,05-Jan-23,2425.68
Rotherham MBC,Finance & Customer Services,MATRIX SCM LTD,Agency Staff Services,11422909,05-Jan-23,2109.75
Rotherham MBC,Finance & Customer Services,MATRIX SCM LTD,Agency Staff Services,11422910,05-Jan-23,2334.79
Rotherham MBC,Regeneration & Environment,MATRIX SCM LTD,Agency Staff Services,11422911,05-Jan-23,1920.69
Rotherham MBC,Finance & Customer Services,MATRIX SCM LTD,Agency Staff Services,11422912,05-Jan-23,2000.61
Rotherham MBC,Children & Young Peoples Serv,MATRIX SCM LTD,Agency Staff Services,11422913,05-Jan-23,1286.26
Rotherham MBC,Adult Care & Housing,MATRIX SCM LTD,Agency Staff Services,11422914,05-Jan-23,1414.53
Rotherham MBC,Adult Care & Housing,MATRIX SCM LTD,Agency Staff Services,11422915,05-Jan-23,5011.55
Rotherham MBC,Regeneration & Environment,MATRIX SCM LTD,Agency Staff Services,11422916,05-Jan-23,1660.82
Rotherham MBC,Adult Care & Housing,MATRIX SCM LTD,Agency Staff Services,11422917,05-Jan-23,2570.10
Rotherham MBC,Regeneration & Environment,MATRIX SCM LTD,Agency Staff Services,11422918,05-Jan-23,2194.25
Rotherham MBC,Finance & Customer Services,MATRIX SCM LTD,Agency Staff Services,11422919,05-Jan-23,2118.75
Rotherham MBC,Regeneration & Environment,MATRIX SCM LTD,Agency Staff Services,11422920,05-Jan-23,447.84
Rotherham MBC,Children & Young Peoples Serv,MATRIX SCM LTD,Agency Staff Services,11422921,05-Jan-23,373.82
Rotherham MBC,Regeneration & Environment,MATRIX SCM LTD,Agency Staff Services,11422922,05-Jan-23,1075.44
Rotherham MBC,Children & Young Peoples Serv,MATRIX SCM LTD,Agency Staff Services,11422923,05-Jan-23,1579.85
Rotherham MBC,Adult Care & Housing,MATRIX SCM LTD,Agency Staff Services,11422924,05-Jan-23,1414.53
Rotherham MBC,Children & Young Peoples Serv,MATRIX SCM LTD,Agency Staff Services,11422925,05-Jan-23,91.03
Rotherham MBC,Regeneration & Environment,MATRIX SCM LTD,Agency Staff Services,11422926,05-Jan-23,683.84
Rotherham MBC,Regeneration & Environment,MATRIX SCM LTD,Agency Staff Services,11422927,05-Jan-23,1850.25
Rotherham MBC,Children & Young Peoples Serv,MATRIX SCM LTD,Agency Staff Services,11422928,05-Jan-23,1542.23
Rotherham MBC,Children & Young Peoples Serv,MATRIX SCM LTD,Agency Staff Services,11422929,05-Jan-23,1494.80
Rotherham MBC,Regeneration & Environment,MATRIX SCM LTD,Agency Staff Services,11422930,05-Jan-23,597.34
Rotherham MBC,Regeneration & Environment,MATRIX SCM LTD,Agency Staff Services,11422931,05-Jan-23,629.69
Rotherham MBC,Regeneration & Environment,MATRIX SCM LTD,Agency Staff Services,11422932,05-Jan-23,772.21
Rotherham MBC,Regeneration & Environment,MATRIX SCM LTD,Agency Staff Services,11422933,05-Jan-23,708.08
Rotherham MBC,Regeneration & Environment,MATRIX SCM LTD,Agency Staff Services,11422934,05-Jan-23,727.89
Rotherham MBC,Children & Young Peoples Serv,MATRIX SCM LTD,Agency Staff Services,11422935,05-Jan-23,1629.37
Rotherham MBC,Adult Care & Housing,MATRIX SCM LTD,Agency Staff Services,11422936,05-Jan-23,1374.25
Rotherham MBC,Regeneration & Environment,MATRIX SCM LTD,Agency Staff Services,11422937,05-Jan-23,610.26
Rotherham MBC,Regeneration & Environment,MATRIX SCM LTD,Agency Staff Services,11422938,05-Jan-23,725.93
Rotherham MBC,Finance & Customer Services,MATRIX SCM LTD,Agency Staff Services,11422939,05-Jan-23,3051.76
Rotherham MBC,Regeneration & Environment,MATRIX SCM LTD,Agency Staff Services,11422940,05-Jan-23,559.80
Rotherham MBC,Regeneration & Environment,MATRIX SCM LTD,Agency Staff Services,11422941,05-Jan-23,559.80
Rotherham MBC,Regeneration & Environment,MATRIX SCM LTD,Agency Staff Services,11422942,05-Jan-23,223.92
Rotherham MBC,Regeneration & Environment,MATRIX SCM LTD,Agency Staff Services,11422943,05-Jan-23,257.36
Rotherham MBC,Adult Care & Housing,MATRIX SCM LTD,Agency Staff Services,11422944,05-Jan-23,1421.73
Rotherham MBC,Adult Care & Housing,MATRIX SCM LTD,Agency Staff Services,11422945,05-Jan-23,1417.16
Rotherham MBC,Children & Young Peoples Serv,MATRIX SCM LTD,Agency Staff Services,11422946,05-Jan-23,1515.00
Rotherham MBC,Children & Young Peoples Serv,MATRIX SCM LTD,Agency Staff Services,11422947,05-Jan-23,1437.33
Rotherham MBC,Adult Care & Housing,MATRIX SCM LTD,Agency Staff Services,11422948,05-Jan-23,483.92
Rotherham MBC,Adult Care & Housing,MATRIX SCM LTD,Agency Staff Services,11422949,05-Jan-23,152.43
Rotherham MBC,Adult Care & Housing,MATRIX SCM LTD,Agency Staff Services,11422950,05-Jan-23,156.98
Rotherham MBC,Adult Care & Housing,MATRIX SCM LTD,Agency Staff Services,11422951,05-Jan-23,973.20
Rotherham MBC,Adult Care & Housing,MATRIX SCM LTD,Agency Staff Services,11422952,05-Jan-23,1547.72
Rotherham MBC,Adult Care & Housing,MATRIX SCM LTD,Agency Staff Services,11422953,05-Jan-23,457.32
Rotherham MBC,Adult Care & Housing,MATRIX SCM LTD,Agency Staff Services,11422954,05-Jan-23,351.76
Rotherham MBC,Adult Care & Housing,MATRIX SCM LTD,Agency Staff Services,11422955,05-Jan-23,152.44
Rotherham MBC,Adult Care & Housing,MATRIX SCM LTD,Agency Staff Services,11422956,05-Jan-23,483.92
Rotherham MBC,Adult Care & Housing,MATRIX SCM LTD,Agency Staff Services,11422957,05-Jan-23,351.76
Rotherham MBC,Adult Care & Housing,MATRIX SCM LTD,Agency Staff Services,11422958,05-Jan-23,351.76
Rotherham MBC,Adult Care & Housing,MATRIX SCM LTD,Agency Staff Services,11422959,05-Jan-23,175.88
Rotherham MBC,Adult Care & Housing,MATRIX SCM LTD,Agency Staff Services,11422960,05-Jan-23,515.52
Rotherham MBC,Regeneration & Environment,MATRIX SCM LTD,Agency Staff Services,11422961,05-Jan-23,776.40
Rotherham MBC,Adult Care & Housing,MATRIX SCM LTD,Agency Staff Services,11422962,05-Jan-23,703.52
Rotherham MBC,Adult Care & Housing,MATRIX SCM LTD,Agency Staff Services,11422963,05-Jan-23,343.68
Rotherham MBC,Regeneration & Environment,MATRIX SCM LTD,Agency Staff Services,11422964,05-Jan-23,559.80
Rotherham MBC,Adult Care & Housing,MATRIX SCM LTD,Agency Staff Services,11422965,05-Jan-23,175.88
Rotherham MBC,Adult Care & Housing,MATRIX SCM LTD,Agency Staff Services,11422966,05-Jan-23,249.11
Rotherham MBC,Adult Care & Housing,MATRIX SCM LTD,Agency Staff Services,11422967,05-Jan-23,504.19
Rotherham MBC,Adult Care & Housing,MATRIX SCM LTD,Agency Staff Services,11422968,05-Jan-23,156.90
Rotherham MBC,Adult Care & Housing,MATRIX SCM LTD,Agency Staff Services,11422969,05-Jan-23,859.20
Rotherham MBC,Adult Care & Housing,MATRIX SCM LTD,Agency Staff Services,11422970,05-Jan-23,574.54
Rotherham MBC,Adult Care & Housing,MATRIX SCM LTD,Agency Staff Services,11422971,05-Jan-23,310.06
Rotherham MBC,Adult Care & Housing,MATRIX SCM LTD,Agency Staff Services,11422972,05-Jan-23,578.78
Rotherham MBC,Adult Care & Housing,MATRIX SCM LTD,Agency Staff Services,11422973,05-Jan-23,315.60
Rotherham MBC,Adult Care & Housing,MATRIX SCM LTD,Agency Staff Services,11422974,05-Jan-23,527.64
Rotherham MBC,Adult Care & Housing,MATRIX SCM LTD,Agency Staff Services,11422975,05-Jan-23,304.86
Rotherham MBC,Regeneration & Environment,MATRIX SCM LTD,Agency Staff Services,11422976,05-Jan-23,2294.80
Rotherham MBC,Assistant Chief Executive,NINEHUNDRED COMMUNICATIONS,Technology,11422979,05-Jan-23,420.00
Rotherham MBC,Regeneration & Environment,RAPID RACKING LTD,Removal Services,11422980,09-Jan-23,1254.00
Rotherham MBC,Children & Young Peoples Serv,ASPRIS CHILDRENS SERVICES LTD,Supporting Minorities & Communities,11422981,09-Jan-23,2567.14
Rotherham MBC,Adult Care & Housing,KCM WASTE MANAGEMENT LTD,Waste Disposal Inc Skip Hire,11422982,13-Jan-23,137.60
Rotherham MBC,Children & Young Peoples Serv,KCM WASTE MANAGEMENT LTD,Waste Disposal Inc Skip Hire,11422983,12-Jan-23,250.00
Rotherham MBC,Regeneration & Environment,KCM WASTE MANAGEMENT LTD,Waste Disposal Inc Skip Hire,11422984,09-Jan-23,120.00
Rotherham MBC,Regeneration & Environment,KCM WASTE MANAGEMENT LTD,Waste Disposal Inc Skip Hire,11422985,05-Jan-23,240.00
Rotherham MBC,Regeneration & Environment,KCM WASTE MANAGEMENT LTD,Waste Disposal Inc Skip Hire,11422986,05-Jan-23,79.70
Rotherham MBC,Regeneration & Environment,KCM WASTE MANAGEMENT LTD,Waste Disposal Inc Skip Hire,11422987,05-Jan-23,44.20
Rotherham MBC,Regeneration & Environment,DAWSONGROUP BUS AND COACH LTD,Taxi  Mini Bus  Coach Operations,11422988,06-Jan-23,72.00
Rotherham MBC,Regeneration & Environment,DAWSONGROUP BUS AND COACH LTD,Taxi  Mini Bus  Coach Operations,11422989,06-Jan-23,15.90
Rotherham MBC,Regeneration & Environment,KCM WASTE MANAGEMENT LTD,Waste Disposal Inc Skip Hire,11422990,05-Jan-23,358.30
Rotherham MBC,Regeneration & Environment,KCM WASTE MANAGEMENT LTD,Waste Disposal Inc Skip Hire,11422991,05-Jan-23,654.00
Rotherham MBC,Central Services,MATRIX SCM LTD,Agency Staff Services,11422993,05-Jan-23,441.77
Rotherham MBC,Regeneration & Environment,SOCOTEC UK LTD,Health And Hygiene Equipment,11422994,12-Jan-23,330.20
Rotherham MBC,Regeneration & Environment,KCM WASTE MANAGEMENT LTD,Waste Disposal Inc Skip Hire,11422995,05-Jan-23,65.70
Rotherham MBC,Regeneration & Environment,RENTOKIL INITIAL UK LTD,Repair And Maintenance,11422996,06-Jan-23,3200.00
Rotherham MBC,Adult Care & Housing,MATRIX SCM LTD,Agency Staff Services,11422997,05-Jan-23,1414.53
Rotherham MBC,Central Services,MATRIX SCM LTD,Agency Staff Services,11422998,05-Jan-23,554.08
Rotherham MBC,Adult Care & Housing,MATRIX SCM LTD,Agency Staff Services,11422999,05-Jan-23,3338.05
Rotherham MBC,Central Services,MATRIX SCM LTD,Agency Staff Services,11423000,05-Jan-23,554.07
Rotherham MBC,Regeneration & Environment,MR MOOS LIMITED,Food And Drink,11423005,09-Jan-23,900.40
Rotherham MBC,Regeneration & Environment,MR MOOS LIMITED,Food And Drink,11423006,09-Jan-23,826.20
Rotherham MBC,Regeneration & Environment,GREEN TOILET COMPANY LTD,New Build & Major Refurb Trades,11423007,05-Jan-23,340.00
Rotherham MBC,Central Services,INSIGHT DIRECT (UK) LTD,Technology,11423009,27-Jan-23,783.97
Rotherham MBC,Regeneration & Environment,GREEN TOILET COMPANY LTD,New Build & Major Refurb Trades,11423010,05-Jan-23,250.00
Rotherham MBC,Adult Care & Housing,SYHA ENTERPRISES LTD,Consultancy,11423011,11-Jan-23,1500.00
Rotherham MBC,Adult Care & Housing,IRWIN MITCHELL LLP ONLY,Legal Services,11423013,05-Jan-23,921.00
Rotherham MBC,Regeneration & Environment,THE HEAVENLY COFFEE COMPANY,Food And Drink,11423014,05-Jan-23,117.50
Rotherham MBC,Regeneration & Environment,THE HEAVENLY COFFEE COMPANY,Food And Drink,11423015,05-Jan-23,148.66
Rotherham MBC,Regeneration & Environment,THE HEAVENLY COFFEE COMPANY,Food And Drink,11423017,05-Jan-23,1196.17
Rotherham MBC,Adult Care & Housing,ROTHERHAM DONCASTER & SOUTH HUMBER,Public Health & Care Services,11423021,16-Jan-23,7876.96
Rotherham MBC,Children & Young Peoples Serv,KEYS PCE LTD,Supporting People - Learning Disabilities,11423024,09-Jan-23,11033.00
Rotherham MBC,Children & Young Peoples Serv,KEYS PCE LTD,Supporting People - Learning Disabilities,11423025,09-Jan-23,11033.00
Rotherham MBC,Children & Young Peoples Serv,KEYS PCE LTD,Supporting People - Learning Disabilities,11423026,09-Jan-23,11033.00
Rotherham MBC,Children & Young Peoples Serv,KEYS PCE LTD,Supporting People - Learning Disabilities,11423027,09-Jan-23,11033.00
Rotherham MBC,Regeneration & Environment,DFP SERVICES LTD,Fire Alarm Maintenance Or Monitoring,11423031,10-Jan-23,74.00
Rotherham MBC,Children & Young Peoples Serv,NUDGE EDUCATION,Specialized Educational Servic,11423032,09-Jan-23,2513.16
Rotherham MBC,Regeneration & Environment,PROVIDENCE MAINTENANCE & ELECTRICAL,Repair And Maintenance,11423033,12-Jan-23,90.00
Rotherham MBC,Regeneration & Environment,PROVIDENCE MAINTENANCE & ELECTRICAL,Repair And Maintenance,11423034,11-Jan-23,190.00
Rotherham MBC,Regeneration & Environment,PROVIDENCE MAINTENANCE & ELECTRICAL,Repair And Maintenance,11423035,12-Jan-23,728.00
Rotherham MBC,Children & Young Peoples Serv,PROVIDENCE MAINTENANCE & ELECTRICAL,Repair And Maintenance,11423036,11-Jan-23,110.00
Rotherham MBC,Children & Young Peoples Serv,PROVIDENCE MAINTENANCE & ELECTRICAL,Repair And Maintenance,11423037,12-Jan-23,410.00
Rotherham MBC,Regeneration & Environment,PROVIDENCE MAINTENANCE & ELECTRICAL,Repair And Maintenance,11423038,12-Jan-23,147.00
Rotherham MBC,Regeneration & Environment,PROVIDENCE MAINTENANCE & ELECTRICAL,Repair And Maintenance,11423039,11-Jan-23,32.00
Rotherham MBC,Regeneration & Environment,PROVIDENCE MAINTENANCE & ELECTRICAL,Repair And Maintenance,11423040,12-Jan-23,32.00
Rotherham MBC,Regeneration & Environment,PROVIDENCE MAINTENANCE & ELECTRICAL,Repair And Maintenance,11423041,11-Jan-23,55.00
Rotherham MBC,Regeneration & Environment,ORANGE TREE ELECTRICAL SERVICES LTD,Repair And Maintenance,11423042,12-Jan-23,1250.00
Rotherham MBC,Regeneration & Environment,HARSCO METALS GROUP LTD,Re-Instatement Materials,11423043,09-Jan-23,219.20
Rotherham MBC,Adult Care & Housing,PYRAMID LINOLEUM & CARPET COMPANY,Furnishing And Furbishing,11423045,05-Jan-23,701.88
Rotherham MBC,Regeneration & Environment,CARLSBERG UK LTD,Food And Drink,11423046,09-Jan-23,566.46
Rotherham MBC,Adult Care & Housing,PYRAMID LINOLEUM & CARPET COMPANY,Furnishing And Furbishing,11423048,05-Jan-23,486.10
Rotherham MBC,Adult Care & Housing,PYRAMID LINOLEUM & CARPET COMPANY,Furnishing And Furbishing,11423049,05-Jan-23,610.74
Rotherham MBC,Adult Care & Housing,PYRAMID LINOLEUM & CARPET COMPANY,Furnishing And Furbishing,11423050,05-Jan-23,571.13
Rotherham MBC,Adult Care & Housing,PYRAMID LINOLEUM & CARPET COMPANY,Furnishing And Furbishing,11423051,05-Jan-23,522.10
Rotherham MBC,Adult Care & Housing,PYRAMID LINOLEUM & CARPET COMPANY,Furnishing And Furbishing,11423052,05-Jan-23,60.00
Rotherham MBC,Adult Care & Housing,PYRAMID LINOLEUM & CARPET COMPANY,Furnishing And Furbishing,11423053,05-Jan-23,618.27
Rotherham MBC,Adult Care & Housing,PYRAMID LINOLEUM & CARPET COMPANY,Furnishing And Furbishing,11423054,05-Jan-23,865.98
Rotherham MBC,Adult Care & Housing,PYRAMID LINOLEUM & CARPET COMPANY,Furnishing And Furbishing,11423055,05-Jan-23,506.95
Rotherham MBC,Regeneration & Environment,ACE JANITORIAL SUPPLIES LTD,Ppe  Tools And Janitorial Supplies,11423056,06-Jan-23,720.00
Rotherham MBC,Adult Care & Housing,ACE JANITORIAL SUPPLIES LTD,Ppe  Tools And Janitorial Supplies,11423057,06-Jan-23,59.65
Rotherham MBC,Adult Care & Housing,J W YOUNG (BUTCHERS) LTD,Food And Drink,11423058,05-Jan-23,529.41
Rotherham MBC,Adult Care & Housing,J W YOUNG (BUTCHERS) LTD,Food And Drink,11423059,05-Jan-23,418.77
Rotherham MBC,Children & Young Peoples Serv,PROVIDENCE MAINTENANCE & ELECTRICAL,Repair And Maintenance,11423061,11-Jan-23,45.00
Rotherham MBC,Children & Young Peoples Serv,PROVIDENCE MAINTENANCE & ELECTRICAL,Repair And Maintenance,11423062,11-Jan-23,75.00
Rotherham MBC,Children & Young Peoples Serv,PROVIDENCE MAINTENANCE & ELECTRICAL,Repair And Maintenance,11423063,11-Jan-23,32.00
Rotherham MBC,Children & Young Peoples Serv,PROVIDENCE MAINTENANCE & ELECTRICAL,Repair And Maintenance,11423064,11-Jan-23,32.00
Rotherham MBC,Regeneration & Environment,PROVIDENCE MAINTENANCE & ELECTRICAL,Repair And Maintenance,11423065,11-Jan-23,32.00
Rotherham MBC,Regeneration & Environment,PROVIDENCE MAINTENANCE & ELECTRICAL,Repair And Maintenance,11423066,12-Jan-23,190.00
Rotherham MBC,Regeneration & Environment,PROVIDENCE MAINTENANCE & ELECTRICAL,Repair And Maintenance,11423067,11-Jan-23,32.00
Rotherham MBC,Regeneration & Environment,PROVIDENCE MAINTENANCE & ELECTRICAL,Repair And Maintenance,11423068,11-Jan-23,32.00
Rotherham MBC,Regeneration & Environment,ROTHERHAM MINI DIGGER HIRE,Plant Hire,11423069,31-Jan-23,1560.00
Rotherham MBC,Finance & Customer Services,DAVID HORNE,Legal Services,11423072,19-Jan-23,350.00
Rotherham MBC,Finance & Customer Services,ED SULLIVAN,Legal Services,11423073,18-Jan-23,700.00
Rotherham MBC,Adult Care & Housing,ROGERS GEOTECHNICAL SERVICES LTD,Consultancy,11423074,31-Jan-23,1792.40
Rotherham MBC,Regeneration & Environment,GALA LIGHTS LTD,Street Lighting Materials,11423078,05-Jan-23,25000.00
Rotherham MBC,Children & Young Peoples Serv,REDACTED,Supporting People - Foster Care,11423087,05-Jan-23,757.48
Rotherham MBC,Children & Young Peoples Serv,REDACTED,Supporting People - Generic Services,11423094,05-Jan-23,532.00
Rotherham MBC,Adult Care & Housing,REDACTED,Supporting People - Independent Sector Homecare,11423106,05-Jan-23,638.28
Rotherham MBC,Adult Care & Housing,REDACTED,Supporting People - Independent Sector Homecare,11423112,05-Jan-23,698.25
Rotherham MBC,Adult Care & Housing,REDACTED,Supporting People - Independent Sector Homecare,11423117,05-Jan-23,583.30
Rotherham MBC,Adult Care & Housing,REDACTED,Supporting People - Independent Sector Homecare,11423123,05-Jan-23,580.73
Rotherham MBC,Adult Care & Housing,REDACTED,Supporting People - Independent Sector Homecare,11423132,05-Jan-23,727.17
Rotherham MBC,Adult Care & Housing,REDACTED,Supporting People - Independent Sector Homecare,11423141,05-Jan-23,563.75
Rotherham MBC,Adult Care & Housing,REDACTED,Supporting People - Independent Sector Homecare,11423145,05-Jan-23,640.16
Rotherham MBC,Adult Care & Housing,REDACTED,Supporting People - Independent Sector Homecare,11423154,05-Jan-23,506.09
Rotherham MBC,Regeneration & Environment,RKH PLANT HIRE LTD,Plant Hire,11423164,06-Jan-23,789.00
Rotherham MBC,Regeneration & Environment,E.ON NEXT ENERGY LTD,Energy,11423165,12-Jan-23,31.99
Rotherham MBC,Children & Young Peoples Serv,VISION CONSORTIUM SERVICES LIMITED,Supporting People - Independent Sector Residential,11423167,05-Jan-23,133044.00
Rotherham MBC,Adult Care & Housing,LYRECO UK LTD,Stationery  Furniture & It Consumables,11423168,12-Jan-23,46.90
Rotherham MBC,Regeneration & Environment,ROTHERHAM COMMUNITY TRANSPORT LTD,Taxi  Mini Bus  Coach Operations,11423170,11-Jan-23,1371.25
Rotherham MBC,Regeneration & Environment,ROTHERHAM COMMUNITY TRANSPORT LTD,Taxi  Mini Bus  Coach Operations,11423171,11-Jan-23,1362.53
Rotherham MBC,Regeneration & Environment,ROTHERHAM COMMUNITY TRANSPORT LTD,Taxi  Mini Bus  Coach Operations,11423171,11-Jan-23,529.87
Rotherham MBC,Regeneration & Environment,ROTHERHAM COMMUNITY TRANSPORT LTD,Taxi  Mini Bus  Coach Operations,11423172,11-Jan-23,289.32
Rotherham MBC,Regeneration & Environment,ROTHERHAM COMMUNITY TRANSPORT LTD,Taxi  Mini Bus  Coach Operations,11423172,11-Jan-23,124.00
Rotherham MBC,Regeneration & Environment,BANNER PLANT LTD,Plant Hire,11423175,11-Jan-23,52.80
Rotherham MBC,Regeneration & Environment,BANNER PLANT LTD,Plant Hire,11423176,11-Jan-23,64.00
Rotherham MBC,Regeneration & Environment,BANNER PLANT LTD,Plant Hire,11423177,11-Jan-23,144.00
Rotherham MBC,Regeneration & Environment,BANNER PLANT LTD,Plant Hire,11423178,11-Jan-23,278.40
Rotherham MBC,Regeneration & Environment,BANNER PLANT LTD,Plant Hire,11423179,11-Jan-23,32.00
Rotherham MBC,Regeneration & Environment,BANNER PLANT LTD,Plant Hire,11423180,11-Jan-23,96.80
Rotherham MBC,Regeneration & Environment,BANNER PLANT LTD,Plant Hire,11423181,11-Jan-23,44.80
Rotherham MBC,Regeneration & Environment,BANNER PLANT LTD,Plant Hire,11423182,11-Jan-23,44.80
Rotherham MBC,Regeneration & Environment,BANNER PLANT LTD,Plant Hire,11423183,11-Jan-23,44.80
Rotherham MBC,Regeneration & Environment,BANNER PLANT LTD,Plant Hire,11423184,11-Jan-23,57.60
Rotherham MBC,Regeneration & Environment,BANNER PLANT LTD,Plant Hire,11423185,11-Jan-23,19.20
Rotherham MBC,Regeneration & Environment,BANNER PLANT LTD,Plant Hire,11423186,11-Jan-23,88.00
Rotherham MBC,Regeneration & Environment,BANNER PLANT LTD,Plant Hire,11423187,11-Jan-23,64.00
Rotherham MBC,Regeneration & Environment,BANNER PLANT LTD,Plant Hire,11423188,11-Jan-23,117.00
Rotherham MBC,Regeneration & Environment,GO PLANT FLEET SERVICES LTD,Fleet Hire And Purchase  Financing,11423192,24-Jan-23,4226.85
Rotherham MBC,Regeneration & Environment,GOLD STAR TAXIS,Taxi  Mini Bus  Coach Operations,11423193,06-Jan-23,450.00
Rotherham MBC,Regeneration & Environment,GOLD STAR TAXIS,Taxi  Mini Bus  Coach Operations,11423193,06-Jan-23,150.00
Rotherham MBC,Regeneration & Environment,GOLD STAR TAXIS,Taxi  Mini Bus  Coach Operations,11423194,06-Jan-23,320.00
Rotherham MBC,Regeneration & Environment,GOLD STAR TAXIS,Taxi  Mini Bus  Coach Operations,11423195,06-Jan-23,1260.00
Rotherham MBC,Regeneration & Environment,GOLD STAR TAXIS,Taxi  Mini Bus  Coach Operations,11423196,09-Jan-23,2160.00
Rotherham MBC,Regeneration & Environment,GOLD STAR TAXIS,Taxi  Mini Bus  Coach Operations,11423197,06-Jan-23,440.00
Rotherham MBC,Regeneration & Environment,GOLD STAR TAXIS,Taxi  Mini Bus  Coach Operations,11423198,06-Jan-23,480.00
Rotherham MBC,Regeneration & Environment,GOLD STAR TAXIS,Taxi  Mini Bus  Coach Operations,11423199,06-Jan-23,450.00
Rotherham MBC,Regeneration & Environment,GOLD STAR TAXIS,Taxi  Mini Bus  Coach Operations,11423200,06-Jan-23,680.00
Rotherham MBC,Regeneration & Environment,GOLD STAR TAXIS,Taxi  Mini Bus  Coach Operations,11423201,06-Jan-23,600.00
Rotherham MBC,Regeneration & Environment,GOLD STAR TAXIS,Taxi  Mini Bus  Coach Operations,11423202,06-Jan-23,160.00
Rotherham MBC,Regeneration & Environment,GOLD STAR TAXIS,Taxi  Mini Bus  Coach Operations,11423203,06-Jan-23,540.00
Rotherham MBC,Regeneration & Environment,GOLD STAR TAXIS,Taxi  Mini Bus  Coach Operations,11423204,06-Jan-23,1560.00
Rotherham MBC,Children & Young Peoples Serv,GOLD STAR TAXIS,Taxi  Mini Bus  Coach Operations,11423205,06-Jan-23,525.00
Rotherham MBC,Regeneration & Environment,GOLD STAR TAXIS,Taxi  Mini Bus  Coach Operations,11423206,06-Jan-23,1080.00
Rotherham MBC,Children & Young Peoples Serv,GOLD STAR TAXIS,Taxi  Mini Bus  Coach Operations,11423207,06-Jan-23,360.00
Rotherham MBC,Regeneration & Environment,HALL PLANT HIRE LTD,Plant Hire,11423208,09-Jan-23,165.00
Rotherham MBC,Regeneration & Environment,HALL PLANT HIRE LTD,Plant Hire,11423209,09-Jan-23,165.00
Rotherham MBC,Regeneration & Environment,HALL PLANT HIRE LTD,Plant Hire,11423210,09-Jan-23,165.00
Rotherham MBC,Regeneration & Environment,HALL PLANT HIRE LTD,Plant Hire,11423211,09-Jan-23,165.00
Rotherham MBC,Regeneration & Environment,HALL PLANT HIRE LTD,Plant Hire,11423212,09-Jan-23,165.00
Rotherham MBC,Regeneration & Environment,HALL PLANT HIRE LTD,Plant Hire,11423213,09-Jan-23,258.40
Rotherham MBC,Regeneration & Environment,HALL PLANT HIRE LTD,Plant Hire,11423214,09-Jan-23,195.50
Rotherham MBC,Regeneration & Environment,HALL PLANT HIRE LTD,Plant Hire,11423215,09-Jan-23,165.00
Rotherham MBC,Regeneration & Environment,HALL PLANT HIRE LTD,Plant Hire,11423216,06-Jan-23,165.00
Rotherham MBC,Regeneration & Environment,HALL PLANT HIRE LTD,Plant Hire,11423217,06-Jan-23,165.00
Rotherham MBC,Regeneration & Environment,HALL PLANT HIRE LTD,Plant Hire,11423218,06-Jan-23,268.60
Rotherham MBC,Regeneration & Environment,HALL PLANT HIRE LTD,Plant Hire,11423219,06-Jan-23,297.50
Rotherham MBC,Regeneration & Environment,HALL PLANT HIRE LTD,Plant Hire,11423220,06-Jan-23,227.80
Rotherham MBC,Regeneration & Environment,HALL PLANT HIRE LTD,Plant Hire,11423221,06-Jan-23,232.00
Rotherham MBC,Regeneration & Environment,HALL PLANT HIRE LTD,Plant Hire,11423222,09-Jan-23,231.20
Rotherham MBC,Regeneration & Environment,HALL PLANT HIRE LTD,Plant Hire,11423223,09-Jan-23,139.40
Rotherham MBC,Regeneration & Environment,HALL PLANT HIRE LTD,Plant Hire,11423224,09-Jan-23,456.00
Rotherham MBC,Regeneration & Environment,HALL PLANT HIRE LTD,Plant Hire,11423225,09-Jan-23,165.00
Rotherham MBC,Children & Young Peoples Serv,G-MAP SERVICES LIMITED,Training Services,11423227,09-Jan-23,2420.00
Rotherham MBC,Children & Young Peoples Serv,FOR UNDER FIVES LTD,Educational Day Nursery,11423228,09-Jan-23,132.45
Rotherham MBC,Children & Young Peoples Serv,GREAT PLACES HOUSING GROUP,Rent  Lease & Property Management,11423229,09-Jan-23,14952.34
Rotherham MBC,Public Health,PARKWOOD HEALTHCARE LTD,Supporting Minorities & Communities,11423230,10-Jan-23,72715.00
Rotherham MBC,Public Health,PARKWOOD HEALTHCARE LTD,Supporting Minorities & Communities,11423231,09-Jan-23,9697.25
Rotherham MBC,Regeneration & Environment,E.ON NEXT ENERGY LTD,Energy,11423232,12-Jan-23,139.27
Rotherham MBC,Regeneration & Environment,E.ON NEXT ENERGY LTD,Energy,11423233,12-Jan-23,155.77
Rotherham MBC,Regeneration & Environment,E.ON NEXT ENERGY LTD,Energy,11423234,12-Jan-23,136.18
Rotherham MBC,Regeneration & Environment,E.ON NEXT ENERGY LTD,Energy,11423235,12-Jan-23,58.92
Rotherham MBC,Regeneration & Environment,E.ON NEXT ENERGY LTD,Energy,11423236,12-Jan-23,62.54
Rotherham MBC,Children & Young Peoples Serv,GOLD STAR TAXIS,Taxi  Mini Bus  Coach Operations,11423237,06-Jan-23,720.00
Rotherham MBC,Regeneration & Environment,GOLD STAR TAXIS,Taxi  Mini Bus  Coach Operations,11423238,06-Jan-23,100.80
Rotherham MBC,Children & Young Peoples Serv,GOLD STAR TAXIS,Taxi  Mini Bus  Coach Operations,11423238,06-Jan-23,235.20
Rotherham MBC,Children & Young Peoples Serv,GOLD STAR TAXIS,Taxi  Mini Bus  Coach Operations,11423239,06-Jan-23,2160.00
Rotherham MBC,Children & Young Peoples Serv,GOLD STAR TAXIS,Taxi  Mini Bus  Coach Operations,11423240,06-Jan-23,900.00
Rotherham MBC,Adult Care & Housing,WRIGHT'S AERIALS,Repair And Maintenance,11423381,30-Jan-23,725.80
Rotherham MBC,Regeneration & Environment,CERTAS ENERGY UK LIMITED,Fuel/Heating Oil,11423382,16-Jan-23,37443.00
Rotherham MBC,Regeneration & Environment,SANDERSON BUILDING SERVICES LTD,New Build & Major Refurb Trades,11423383,09-Jan-23,16666.67
Rotherham MBC,Regeneration & Environment,GEODESYS,Real Estate Services ,11423385,23-Jan-23,1121.37
Rotherham MBC,Regeneration & Environment,A1 TAXIS ROTHERHAM LTD,Taxi  Mini Bus  Coach Operations,11423386,09-Jan-23,2316.00
Rotherham MBC,Regeneration & Environment,A1 TAXIS ROTHERHAM LTD,Taxi  Mini Bus  Coach Operations,11423386,09-Jan-23,9175.00
Rotherham MBC,Regeneration & Environment,A1 TAXIS ROTHERHAM LTD,Taxi  Mini Bus  Coach Operations,11423386,09-Jan-23,3022.00
Rotherham MBC,Regeneration & Environment,A1 TAXIS ROTHERHAM LTD,Taxi  Mini Bus  Coach Operations,11423386,09-Jan-23,622.00
Rotherham MBC,Regeneration & Environment,A1 TAXIS ROTHERHAM LTD,Taxi  Mini Bus  Coach Operations,11423386,09-Jan-23,4030.00
Rotherham MBC,Regeneration & Environment,A1 TAXIS ROTHERHAM LTD,Taxi  Mini Bus  Coach Operations,11423386,09-Jan-23,6439.00
Rotherham MBC,Regeneration & Environment,A1 TAXIS ROTHERHAM LTD,Taxi  Mini Bus  Coach Operations,11423386,09-Jan-23,2310.00
Rotherham MBC,Regeneration & Environment,A1 TAXIS ROTHERHAM LTD,Taxi  Mini Bus  Coach Operations,11423386,09-Jan-23,1180.80
Rotherham MBC,Regeneration & Environment,A1 TAXIS ROTHERHAM LTD,Taxi  Mini Bus  Coach Operations,11423386,09-Jan-23,259.20
Rotherham MBC,Regeneration & Environment,A1 TAXIS ROTHERHAM LTD,Taxi  Mini Bus  Coach Operations,11423386,09-Jan-23,309.60
Rotherham MBC,Children & Young Peoples Serv,A1 TAXIS ROTHERHAM LTD,Taxi  Mini Bus  Coach Operations,11423386,09-Jan-23,324.00
Rotherham MBC,Children & Young Peoples Serv,A1 TAXIS ROTHERHAM LTD,Taxi  Mini Bus  Coach Operations,11423386,09-Jan-23,722.40
Rotherham MBC,Regeneration & Environment,DAWSONGROUP VANS LTD,Transport  Operations And Logistics,11423387,25-Jan-23,42.42
Rotherham MBC,Regeneration & Environment,HALL PLANT HIRE LTD,Plant Hire,11423388,09-Jan-23,352.00
Rotherham MBC,Regeneration & Environment,HALL PLANT HIRE LTD,Plant Hire,11423389,09-Jan-23,1232.00
Rotherham MBC,Regeneration & Environment,HALL PLANT HIRE LTD,Plant Hire,11423390,09-Jan-23,1232.00
Rotherham MBC,Regeneration & Environment,HALL PLANT HIRE LTD,Plant Hire,11423391,09-Jan-23,1232.00
Rotherham MBC,Regeneration & Environment,HALL PLANT HIRE LTD,Plant Hire,11423392,09-Jan-23,1232.00
Rotherham MBC,Regeneration & Environment,HALL PLANT HIRE LTD,Plant Hire,11423393,09-Jan-23,1320.00
Rotherham MBC,Regeneration & Environment,HALL PLANT HIRE LTD,Plant Hire,11423394,09-Jan-23,1232.00
Rotherham MBC,Regeneration & Environment,HALL PLANT HIRE LTD,Plant Hire,11423395,09-Jan-23,1320.00
Rotherham MBC,Regeneration & Environment,HALL PLANT HIRE LTD,Plant Hire,11423396,09-Jan-23,440.00
Rotherham MBC,Regeneration & Environment,HALL PLANT HIRE LTD,Plant Hire,11423397,09-Jan-23,440.00
Rotherham MBC,Regeneration & Environment,HALL PLANT HIRE LTD,Plant Hire,11423398,09-Jan-23,352.00
Rotherham MBC,Regeneration & Environment,HALL PLANT HIRE LTD,Plant Hire,11423399,09-Jan-23,1232.00
Rotherham MBC,Regeneration & Environment,HALL PLANT HIRE LTD,Plant Hire,11423400,09-Jan-23,1232.00
Rotherham MBC,Regeneration & Environment,HALL PLANT HIRE LTD,Plant Hire,11423401,09-Jan-23,1144.00
Rotherham MBC,Regeneration & Environment,A1 TAXIS ROTHERHAM LTD,Taxi  Mini Bus  Coach Operations,11423402,06-Jan-23,300.00
Rotherham MBC,Children & Young Peoples Serv,A1 TAXIS ROTHERHAM LTD,Taxi  Mini Bus  Coach Operations,11423402,06-Jan-23,15567.00
Rotherham MBC,Regeneration & Environment,A1 TAXIS ROTHERHAM LTD,Taxi  Mini Bus  Coach Operations,11423403,06-Jan-23,2026.00
Rotherham MBC,Regeneration & Environment,A1 TAXIS ROTHERHAM LTD,Taxi  Mini Bus  Coach Operations,11423403,06-Jan-23,315.00
Rotherham MBC,Children & Young Peoples Serv,A1 TAXIS ROTHERHAM LTD,Taxi  Mini Bus  Coach Operations,11423403,06-Jan-23,315.00
Rotherham MBC,Children & Young Peoples Serv,A1 TAXIS ROTHERHAM LTD,Taxi  Mini Bus  Coach Operations,11423403,06-Jan-23,328.00
Rotherham MBC,Regeneration & Environment,A1 TAXIS ROTHERHAM LTD,Taxi  Mini Bus  Coach Operations,11423404,11-Jan-23,510.00
Rotherham MBC,Children & Young Peoples Serv,ARROW COMMERCIAL CENTRE HUDDERSFIELD LTD,Fleet Hire And Purchase  Financing,11423405,09-Jan-23,469.56
Rotherham MBC,Regeneration & Environment,ARROW COMMERCIAL CENTRE HUDDERSFIELD LTD,Fleet Hire And Purchase  Financing,11423405,09-Jan-23,-105.56
Rotherham MBC,Regeneration & Environment,ARROW COMMERCIAL CENTRE HUDDERSFIELD LTD,Fleet Hire And Purchase  Financing,11423406,09-Jan-23,433.44
Rotherham MBC,Regeneration & Environment,ARROW COMMERCIAL CENTRE HUDDERSFIELD LTD,Fleet Hire And Purchase  Financing,11423406,09-Jan-23,-97.44
Rotherham MBC,Regeneration & Environment,ARROW COMMERCIAL CENTRE HUDDERSFIELD LTD,Fleet Hire And Purchase  Financing,11423407,09-Jan-23,686.28
Rotherham MBC,Regeneration & Environment,ARROW COMMERCIAL CENTRE HUDDERSFIELD LTD,Fleet Hire And Purchase  Financing,11423407,09-Jan-23,-154.28
Rotherham MBC,Regeneration & Environment,ARROW COMMERCIAL CENTRE HUDDERSFIELD LTD,Fleet Hire And Purchase  Financing,11423408,09-Jan-23,722.40
Rotherham MBC,Regeneration & Environment,ARROW COMMERCIAL CENTRE HUDDERSFIELD LTD,Fleet Hire And Purchase  Financing,11423408,09-Jan-23,-162.40
Rotherham MBC,Regeneration & Environment,ARROW COMMERCIAL CENTRE HUDDERSFIELD LTD,Fleet Hire And Purchase  Financing,11423409,09-Jan-23,686.28
Rotherham MBC,Regeneration & Environment,ARROW COMMERCIAL CENTRE HUDDERSFIELD LTD,Fleet Hire And Purchase  Financing,11423409,09-Jan-23,-154.28
Rotherham MBC,Regeneration & Environment,ARROW COMMERCIAL CENTRE HUDDERSFIELD LTD,Fleet Hire And Purchase  Financing,11423410,09-Jan-23,677.25
Rotherham MBC,Regeneration & Environment,ARROW COMMERCIAL CENTRE HUDDERSFIELD LTD,Fleet Hire And Purchase  Financing,11423410,09-Jan-23,-152.25
Rotherham MBC,Regeneration & Environment,ARROW COMMERCIAL CENTRE HUDDERSFIELD LTD,Fleet Hire And Purchase  Financing,11423411,09-Jan-23,999.75
Rotherham MBC,Regeneration & Environment,ARROW COMMERCIAL CENTRE HUDDERSFIELD LTD,Fleet Hire And Purchase  Financing,11423411,09-Jan-23,-224.75
Rotherham MBC,Regeneration & Environment,INDEPENDENT CONTRACTOR SECURITY LTD(ICS),Security,11423414,13-Jan-23,225.90
Rotherham MBC,Regeneration & Environment,INDEPENDENT CONTRACTOR SECURITY LTD(ICS),Security,11423416,13-Jan-23,30.00
Rotherham MBC,Regeneration & Environment,INDEPENDENT CONTRACTOR SECURITY LTD(ICS),Security,11423419,23-Jan-23,2108.40
Rotherham MBC,Regeneration & Environment,INDEPENDENT CONTRACTOR SECURITY LTD(ICS),Security,11423420,23-Jan-23,301.20
Rotherham MBC,Regeneration & Environment,INDEPENDENT CONTRACTOR SECURITY LTD(ICS),Security,11423421,12-Jan-23,45.00
Rotherham MBC,Regeneration & Environment,INDEPENDENT CONTRACTOR SECURITY LTD(ICS),Security,11423422,23-Jan-23,1620.90
Rotherham MBC,Regeneration & Environment,INDEPENDENT CONTRACTOR SECURITY LTD(ICS),Security,11423423,12-Jan-23,1620.00
Rotherham MBC,Regeneration & Environment,INDEPENDENT CONTRACTOR SECURITY LTD(ICS),Security,11423424,12-Jan-23,360.00
Rotherham MBC,Regeneration & Environment,INDEPENDENT CONTRACTOR SECURITY LTD(ICS),Security,11423425,13-Jan-23,1110.68
Rotherham MBC,Regeneration & Environment,INDEPENDENT CONTRACTOR SECURITY LTD(ICS),Security,11423426,13-Jan-23,225.00
Rotherham MBC,Regeneration & Environment,INDEPENDENT CONTRACTOR SECURITY LTD(ICS),Security,11423427,01-Feb-23,1016.55
Rotherham MBC,Regeneration & Environment,INDEPENDENT CONTRACTOR SECURITY LTD(ICS),Security,11423428,01-Feb-23,363.95
Rotherham MBC,Regeneration & Environment,INDEPENDENT CONTRACTOR SECURITY LTD(ICS),Security,11423429,12-Jan-23,120.00
Rotherham MBC,Regeneration & Environment,INDEPENDENT CONTRACTOR SECURITY LTD(ICS),Security,11423434,23-Jan-23,2108.40
Rotherham MBC,Regeneration & Environment,INDEPENDENT CONTRACTOR SECURITY LTD(ICS),Security,11423435,23-Jan-23,602.40
Rotherham MBC,Regeneration & Environment,INDEPENDENT CONTRACTOR SECURITY LTD(ICS),Security,11423436,12-Jan-23,75.00
Rotherham MBC,Regeneration & Environment,INDEPENDENT CONTRACTOR SECURITY LTD(ICS),Security,11423437,23-Jan-23,1077.96
Rotherham MBC,Regeneration & Environment,INDEPENDENT CONTRACTOR SECURITY LTD(ICS),Security,11423438,12-Jan-23,1935.00
Rotherham MBC,Regeneration & Environment,INDEPENDENT CONTRACTOR SECURITY LTD(ICS),Security,11423439,12-Jan-23,720.00
Rotherham MBC,Regeneration & Environment,INDEPENDENT CONTRACTOR SECURITY LTD(ICS),Security,11423440,12-Jan-23,57.00
Rotherham MBC,Regeneration & Environment,INDEPENDENT CONTRACTOR SECURITY LTD(ICS),Security,11423441,12-Jan-23,105.00
Rotherham MBC,Regeneration & Environment,DFP SERVICES LTD,Emergency Lighting And Accessories,11423443,10-Jan-23,70.00
Rotherham MBC,Regeneration & Environment,DFP SERVICES LTD,Emergency Lighting And Accessories,11423444,10-Jan-23,320.00
Rotherham MBC,Regeneration & Environment,DFP SERVICES LTD,Emergency Lighting And Accessories,11423445,10-Jan-23,102.50
Rotherham MBC,Regeneration & Environment,DFP SERVICES LTD,Emergency Lighting And Accessories,11423446,09-Jan-23,494.50
Rotherham MBC,Regeneration & Environment,DFP SERVICES LTD,Surveillance Or Alarm Maintenance,11423447,10-Jan-23,30.25
Rotherham MBC,Regeneration & Environment,DFP SERVICES LTD,Fire Alarm Maintenance Or Monitoring,11423448,10-Jan-23,229.69
Rotherham MBC,Regeneration & Environment,DFP SERVICES LTD,Emergency Lighting And Accessories,11423449,10-Jan-23,30.00
Rotherham MBC,Regeneration & Environment,DFP SERVICES LTD,Emergency Lighting And Accessories,11423450,10-Jan-23,17.00
Rotherham MBC,Regeneration & Environment,DFP SERVICES LTD,Surveillance Or Alarm Maintenance,11423451,12-Jan-23,400.00
Rotherham MBC,Regeneration & Environment,DFP SERVICES LTD,Surveillance Or Alarm Maintenance,11423452,12-Jan-23,1020.00
Rotherham MBC,Regeneration & Environment,DFP SERVICES LTD,Fire Alarm Maintenance Or Monitoring,11423453,10-Jan-23,63.50
Rotherham MBC,Regeneration & Environment,DFP SERVICES LTD,Surveillance Or Alarm Maintenance,11423454,10-Jan-23,150.00
Rotherham MBC,Regeneration & Environment,DFP SERVICES LTD,Security Hardware And Accessories,11423455,09-Jan-23,74.00
Rotherham MBC,Children & Young Peoples Serv,WICKERSLEY CARS LTD,Taxi  Mini Bus  Coach Operations,11423456,06-Jan-23,1440.00
Rotherham MBC,Regeneration & Environment,COOPER MOBILE SERVICES LIMITED,Landscaping,11423460,10-Jan-23,100.51
Rotherham MBC,Regeneration & Environment,COOPER MOBILE SERVICES LIMITED,Landscaping,11423461,10-Jan-23,221.00
Rotherham MBC,Regeneration & Environment,COOPER MOBILE SERVICES LIMITED,Landscaping,11423462,10-Jan-23,218.77
Rotherham MBC,Regeneration & Environment,COOPER MOBILE SERVICES LIMITED,Landscaping,11423463,10-Jan-23,298.87
Rotherham MBC,Regeneration & Environment,DAWSONGROUP BUS AND COACH LTD,Taxi  Mini Bus  Coach Operations,11423464,09-Jan-23,1449.97
Rotherham MBC,Regeneration & Environment,DAWSONGROUP BUS AND COACH LTD,Taxi  Mini Bus  Coach Operations,11423464,09-Jan-23,-325.96
Rotherham MBC,Regeneration & Environment,DAWSONGROUP BUS AND COACH LTD,Taxi  Mini Bus  Coach Operations,11423465,09-Jan-23,1449.97
Rotherham MBC,Regeneration & Environment,DAWSONGROUP BUS AND COACH LTD,Taxi  Mini Bus  Coach Operations,11423465,09-Jan-23,-325.96
Rotherham MBC,Finance & Customer Services,WHISTL UK LTD,Postal And Courier Services,11423466,09-Jan-23,417.95
Rotherham MBC,Regeneration & Environment,DAWSONGROUP BUS AND COACH LTD,Taxi  Mini Bus  Coach Operations,11423467,09-Jan-23,1449.97
Rotherham MBC,Regeneration & Environment,DAWSONGROUP BUS AND COACH LTD,Taxi  Mini Bus  Coach Operations,11423467,09-Jan-23,-325.96
Rotherham MBC,Finance & Customer Services,WHISTL UK LTD,Postal And Courier Services,11423468,09-Jan-23,56.83
Rotherham MBC,Finance & Customer Services,WHISTL UK LTD,Postal And Courier Services,11423469,09-Jan-23,1498.68
Rotherham MBC,Regeneration & Environment,CAMPSTEAD LTD,Technology,11423470,13-Jan-23,3475.00
Rotherham MBC,Regeneration & Environment,DAWSONGROUP BUS AND COACH LTD,Taxi  Mini Bus  Coach Operations,11423471,09-Jan-23,1449.97
Rotherham MBC,Regeneration & Environment,DAWSONGROUP BUS AND COACH LTD,Taxi  Mini Bus  Coach Operations,11423471,09-Jan-23,-325.96
Rotherham MBC,Regeneration & Environment,DAWSONGROUP BUS AND COACH LTD,Taxi  Mini Bus  Coach Operations,11423472,09-Jan-23,1449.97
Rotherham MBC,Regeneration & Environment,DAWSONGROUP BUS AND COACH LTD,Taxi  Mini Bus  Coach Operations,11423472,09-Jan-23,-325.96
Rotherham MBC,Children & Young Peoples Serv,VODAFONE LTD,Telecomms,11423473,09-Jan-23,2600.00
Rotherham MBC,Regeneration & Environment,DAWSONGROUP BUS AND COACH LTD,Taxi  Mini Bus  Coach Operations,11423474,09-Jan-23,1449.97
Rotherham MBC,Regeneration & Environment,DAWSONGROUP BUS AND COACH LTD,Taxi  Mini Bus  Coach Operations,11423474,09-Jan-23,-325.96
Rotherham MBC,Regeneration & Environment,DAWSONGROUP BUS AND COACH LTD,Taxi  Mini Bus  Coach Operations,11423475,09-Jan-23,1449.97
Rotherham MBC,Regeneration & Environment,DAWSONGROUP BUS AND COACH LTD,Taxi  Mini Bus  Coach Operations,11423475,09-Jan-23,-325.96
Rotherham MBC,Children & Young Peoples Serv,VODAFONE LTD,Telecomms,11423476,09-Jan-23,2300.00
Rotherham MBC,Regeneration & Environment,DAWSONGROUP BUS AND COACH LTD,Taxi  Mini Bus  Coach Operations,11423478,09-Jan-23,1449.97
Rotherham MBC,Regeneration & Environment,DAWSONGROUP BUS AND COACH LTD,Taxi  Mini Bus  Coach Operations,11423478,09-Jan-23,-325.96
Rotherham MBC,Finance & Customer Services,VENN GROUP LIMITED,Agency Staff Services,11423479,24-Jan-23,2514.72
Rotherham MBC,Regeneration & Environment,VENN GROUP LIMITED,Agency Staff Services,11423480,16-Jan-23,1205.61
Rotherham MBC,Regeneration & Environment,DAWSONGROUP BUS AND COACH LTD,Taxi  Mini Bus  Coach Operations,11423481,09-Jan-23,1208.44
Rotherham MBC,Regeneration & Environment,DAWSONGROUP BUS AND COACH LTD,Taxi  Mini Bus  Coach Operations,11423481,09-Jan-23,-271.66
Rotherham MBC,Regeneration & Environment,DAWSONGROUP BUS AND COACH LTD,Taxi  Mini Bus  Coach Operations,11423483,09-Jan-23,1208.44
Rotherham MBC,Regeneration & Environment,DAWSONGROUP BUS AND COACH LTD,Taxi  Mini Bus  Coach Operations,11423483,09-Jan-23,-271.66
Rotherham MBC,Finance & Customer Services,ROYAL MAIL,Postal And Courier Services,11423484,06-Jan-23,409.78
Rotherham MBC,Regeneration & Environment,QUESTECH RECRUITMENT LTD,Agency Staff Services,11423487,09-Jan-23,1272.00
Rotherham MBC,Regeneration & Environment,QUESTECH RECRUITMENT LTD,Agency Staff Services,11423488,09-Jan-23,1060.00
Rotherham MBC,Finance & Customer Services,INSIGHT DIRECT (UK) LTD,Technology,11423489,09-Jan-23,36.99
Rotherham MBC,Regeneration & Environment,HOPWELLS LTD,Food And Drink,11423490,09-Jan-23,130.97
Rotherham MBC,Regeneration & Environment,HOPWELLS LTD,Food And Drink,11423491,09-Jan-23,666.54
Rotherham MBC,Finance & Customer Services,IDAQ LTD,Technology,11423494,10-Jan-23,60.00
Rotherham MBC,Finance & Customer Services,IDAQ LTD,Technology,11423495,10-Jan-23,250.00
Rotherham MBC,Finance & Customer Services,IDAQ LTD,Technology,11423496,10-Jan-23,150.00
Rotherham MBC,Finance & Customer Services,IDAQ LTD,Technology,11423497,10-Jan-23,250.00
Rotherham MBC,Finance & Customer Services,IDAQ LTD,Internet Services,11423498,10-Jan-23,124.00
Rotherham MBC,Regeneration & Environment,PENNA PLC,Advertising Services,11423499,06-Jan-23,181.69
Rotherham MBC,Regeneration & Environment,PENNA PLC,Advertising Services,11423500,06-Jan-23,749.10
Rotherham MBC,Regeneration & Environment,BUSINESS STREAM,Water Services,11423501,25-Jan-23,933.51
Rotherham MBC,Adult Care & Housing,ST LEGER BDI LTD,Telecomms,11423502,17-Jan-23,2655.00
Rotherham MBC,Regeneration & Environment,HATHER PLANT HIRE LTD,Plant Hire,11423503,18-Jan-23,1289.00
Rotherham MBC,Regeneration & Environment,HATHER PLANT HIRE LTD,Plant Hire,11423505,18-Jan-23,1091.50
Rotherham MBC,Regeneration & Environment,CARLSBERG UK LTD,Food And Drink,11423509,12-Jan-23,45.00
Rotherham MBC,Regeneration & Environment,CARLSBERG UK LTD,Food And Drink,11423510,12-Jan-23,2141.51
Rotherham MBC,Central Services,INSIGHT DIRECT (UK) LTD,Technology,11423511,24-Jan-23,13200.45
Rotherham MBC,Central Services,INSIGHT DIRECT (UK) LTD,Technology,11423512,24-Jan-23,89.43
Rotherham MBC,Central Services,INSIGHT DIRECT (UK) LTD,Technology,11423513,09-Jan-23,332.90
Rotherham MBC,Finance & Customer Services,INSIGHT DIRECT (UK) LTD,Technology,11423514,09-Jan-23,316.80
Rotherham MBC,Regeneration & Environment,PENNA PLC,Advertising Services,11423515,06-Jan-23,96.21
Rotherham MBC,Regeneration & Environment,PENNA PLC,Advertising Services,11423516,06-Jan-23,192.41
Rotherham MBC,Regeneration & Environment,PENNA PLC,Advertising Services,11423517,06-Jan-23,267.18
Rotherham MBC,Regeneration & Environment,PENNA PLC,Advertising Services,11423518,06-Jan-23,235.16
Rotherham MBC,Regeneration & Environment,PENNA PLC,Advertising Services,11423519,06-Jan-23,85.49
Rotherham MBC,Regeneration & Environment,PENNA PLC,Advertising Services,11423520,06-Jan-23,117.51
Rotherham MBC,Regeneration & Environment,PENNA PLC,Advertising Services,11423521,12-Jan-23,128.91
Rotherham MBC,Regeneration & Environment,PENNA PLC,Advertising Services,11423522,12-Jan-23,141.80
Rotherham MBC,Regeneration & Environment,PENNA PLC,Advertising Services,11423523,12-Jan-23,118.10
Rotherham MBC,Regeneration & Environment,PENNA PLC,Advertising Services,11423524,12-Jan-23,167.58
Rotherham MBC,Regeneration & Environment,PENNA PLC,Advertising Services,11423525,12-Jan-23,96.68
Rotherham MBC,Regeneration & Environment,PENNA PLC,Advertising Services,11423526,12-Jan-23,201.88
Rotherham MBC,Regeneration & Environment,ADVANTAGE PRINT & PROMOTIONS LTD,Printing Services,11423528,09-Jan-23,94.00
Rotherham MBC,Regeneration & Environment,ADVANTAGE PRINT & PROMOTIONS LTD,Printing Services,11423529,09-Jan-23,363.00
Rotherham MBC,Regeneration & Environment,PENNA PLC,Advertising Services,11423532,12-Jan-23,92.31
Rotherham MBC,Regeneration & Environment,HATHER PLANT HIRE LTD,Plant Hire,11423533,18-Jan-23,1106.25
Rotherham MBC,Regeneration & Environment,HATHER PLANT HIRE LTD,Plant Hire,11423534,18-Jan-23,1017.50
Rotherham MBC,Regeneration & Environment,HATHER PLANT HIRE LTD,Plant Hire,11423535,18-Jan-23,271.00
Rotherham MBC,Regeneration & Environment,HATHER PLANT HIRE LTD,Plant Hire,11423536,18-Jan-23,1091.50
Rotherham MBC,Regeneration & Environment,HATHER PLANT HIRE LTD,Plant Hire,11423537,18-Jan-23,675.00
Rotherham MBC,Regeneration & Environment,SOCOTEC UK LTD,Health And Hygiene Equipment,11423540,12-Jan-23,407.90
Rotherham MBC,Regeneration & Environment,O&P CONSTRUCTION SERVICES,New Build & Major Refurb Trades,11423541,09-Jan-23,19487.31
Rotherham MBC,Regeneration & Environment,ENTERPRISE FLEX-E-RENT,Fleet Hire And Purchase  Financing,11423542,10-Jan-23,833.79
Rotherham MBC,Regeneration & Environment,ENTERPRISE FLEX-E-RENT,Fleet Hire And Purchase  Financing,11423542,10-Jan-23,-187.44
Rotherham MBC,Regeneration & Environment,ENTERPRISE FLEX-E-RENT,Fleet Hire And Purchase  Financing,11423543,10-Jan-23,833.79
Rotherham MBC,Regeneration & Environment,ENTERPRISE FLEX-E-RENT,Fleet Hire And Purchase  Financing,11423543,10-Jan-23,-187.44
Rotherham MBC,Regeneration & Environment,ENTERPRISE FLEX-E-RENT,Fleet Hire And Purchase  Financing,11423544,10-Jan-23,923.76
Rotherham MBC,Regeneration & Environment,ENTERPRISE FLEX-E-RENT,Fleet Hire And Purchase  Financing,11423544,10-Jan-23,-207.66
Rotherham MBC,Regeneration & Environment,ENTERPRISE FLEX-E-RENT,Fleet Hire And Purchase  Financing,11423545,10-Jan-23,923.76
Rotherham MBC,Regeneration & Environment,ENTERPRISE FLEX-E-RENT,Fleet Hire And Purchase  Financing,11423545,10-Jan-23,-207.66
Rotherham MBC,Regeneration & Environment,ENTERPRISE FLEX-E-RENT,Fleet Hire And Purchase  Financing,11423546,10-Jan-23,503.87
Rotherham MBC,Regeneration & Environment,ENTERPRISE FLEX-E-RENT,Fleet Hire And Purchase  Financing,11423546,10-Jan-23,-113.27
Rotherham MBC,Regeneration & Environment,ENTERPRISE FLEX-E-RENT,Fleet Hire And Purchase  Financing,11423547,10-Jan-23,923.76
Rotherham MBC,Regeneration & Environment,ENTERPRISE FLEX-E-RENT,Fleet Hire And Purchase  Financing,11423547,10-Jan-23,-207.66
Rotherham MBC,Regeneration & Environment,ENTERPRISE FLEX-E-RENT,Fleet Hire And Purchase  Financing,11423548,10-Jan-23,1763.55
Rotherham MBC,Regeneration & Environment,ENTERPRISE FLEX-E-RENT,Fleet Hire And Purchase  Financing,11423548,10-Jan-23,-396.45
Rotherham MBC,Regeneration & Environment,ENTERPRISE FLEX-E-RENT,Fleet Hire And Purchase  Financing,11423549,10-Jan-23,1763.55
Rotherham MBC,Regeneration & Environment,ENTERPRISE FLEX-E-RENT,Fleet Hire And Purchase  Financing,11423549,10-Jan-23,-396.45
Rotherham MBC,Regeneration & Environment,ENTERPRISE FLEX-E-RENT,Fleet Hire And Purchase  Financing,11423550,11-Jan-23,1631.95
Rotherham MBC,Regeneration & Environment,ENTERPRISE FLEX-E-RENT,Fleet Hire And Purchase  Financing,11423550,11-Jan-23,-350.69
Rotherham MBC,Regeneration & Environment,ENTERPRISE FLEX-E-RENT,Fleet Hire And Purchase  Financing,11423551,11-Jan-23,473.88
Rotherham MBC,Regeneration & Environment,ENTERPRISE FLEX-E-RENT,Fleet Hire And Purchase  Financing,11423551,11-Jan-23,-106.53
Rotherham MBC,Regeneration & Environment,ENTERPRISE FLEX-E-RENT,Fleet Hire And Purchase  Financing,11423552,11-Jan-23,539.86
Rotherham MBC,Regeneration & Environment,ENTERPRISE FLEX-E-RENT,Fleet Hire And Purchase  Financing,11423552,11-Jan-23,-121.36
Rotherham MBC,Regeneration & Environment,ENTERPRISE FLEX-E-RENT,Fleet Hire And Purchase  Financing,11423553,10-Jan-23,923.76
Rotherham MBC,Regeneration & Environment,ENTERPRISE FLEX-E-RENT,Fleet Hire And Purchase  Financing,11423553,10-Jan-23,-207.66
Rotherham MBC,Regeneration & Environment,ENTERPRISE FLEX-E-RENT,Fleet Hire And Purchase  Financing,11423554,10-Jan-23,863.78
Rotherham MBC,Regeneration & Environment,ENTERPRISE FLEX-E-RENT,Fleet Hire And Purchase  Financing,11423554,10-Jan-23,-194.18
Rotherham MBC,Regeneration & Environment,ENTERPRISE FLEX-E-RENT,Fleet Hire And Purchase  Financing,11423555,11-Jan-23,923.76
Rotherham MBC,Regeneration & Environment,ENTERPRISE FLEX-E-RENT,Fleet Hire And Purchase  Financing,11423555,11-Jan-23,-207.66
Rotherham MBC,Regeneration & Environment,ENTERPRISE FLEX-E-RENT,Fleet Hire And Purchase  Financing,11423556,11-Jan-23,473.88
Rotherham MBC,Regeneration & Environment,ENTERPRISE FLEX-E-RENT,Fleet Hire And Purchase  Financing,11423556,11-Jan-23,-106.53
Rotherham MBC,Regeneration & Environment,ENTERPRISE FLEX-E-RENT,Fleet Hire And Purchase  Financing,11423557,10-Jan-23,863.78
Rotherham MBC,Regeneration & Environment,ENTERPRISE FLEX-E-RENT,Fleet Hire And Purchase  Financing,11423557,10-Jan-23,-194.18
Rotherham MBC,Public Health,ENTERPRISE FLEX-E-RENT,Fleet Hire And Purchase  Financing,11423558,10-Jan-23,473.88
Rotherham MBC,Regeneration & Environment,ENTERPRISE FLEX-E-RENT,Fleet Hire And Purchase  Financing,11423558,10-Jan-23,-106.53
Rotherham MBC,Regeneration & Environment,ENTERPRISE FLEX-E-RENT,Fleet Hire And Purchase  Financing,11423559,10-Jan-23,647.83
Rotherham MBC,Regeneration & Environment,ENTERPRISE FLEX-E-RENT,Fleet Hire And Purchase  Financing,11423559,10-Jan-23,-145.63
Rotherham MBC,Regeneration & Environment,ENTERPRISE FLEX-E-RENT,Fleet Hire And Purchase  Financing,11423560,10-Jan-23,923.76
Rotherham MBC,Regeneration & Environment,ENTERPRISE FLEX-E-RENT,Fleet Hire And Purchase  Financing,11423560,10-Jan-23,-207.66
Rotherham MBC,Regeneration & Environment,ENTERPRISE FLEX-E-RENT,Fleet Hire And Purchase  Financing,11423561,10-Jan-23,863.78
Rotherham MBC,Regeneration & Environment,ENTERPRISE FLEX-E-RENT,Fleet Hire And Purchase  Financing,11423561,10-Jan-23,-194.18
Rotherham MBC,Regeneration & Environment,ENTERPRISE FLEX-E-RENT,Fleet Hire And Purchase  Financing,11423562,10-Jan-23,923.76
Rotherham MBC,Regeneration & Environment,ENTERPRISE FLEX-E-RENT,Fleet Hire And Purchase  Financing,11423562,10-Jan-23,-207.66
Rotherham MBC,Regeneration & Environment,ENTERPRISE FLEX-E-RENT,Fleet Hire And Purchase  Financing,11423563,10-Jan-23,833.79
Rotherham MBC,Regeneration & Environment,ENTERPRISE FLEX-E-RENT,Fleet Hire And Purchase  Financing,11423563,10-Jan-23,-187.44
Rotherham MBC,Regeneration & Environment,ENTERPRISE FLEX-E-RENT,Fleet Hire And Purchase  Financing,11423564,10-Jan-23,1223.69
Rotherham MBC,Regeneration & Environment,ENTERPRISE FLEX-E-RENT,Fleet Hire And Purchase  Financing,11423564,10-Jan-23,-275.09
Rotherham MBC,Regeneration & Environment,ENTERPRISE FLEX-E-RENT,Fleet Hire And Purchase  Financing,11423565,10-Jan-23,1763.55
Rotherham MBC,Regeneration & Environment,ENTERPRISE FLEX-E-RENT,Fleet Hire And Purchase  Financing,11423565,10-Jan-23,-396.45
Rotherham MBC,Regeneration & Environment,ENTERPRISE FLEX-E-RENT,Fleet Hire And Purchase  Financing,11423566,11-Jan-23,833.79
Rotherham MBC,Regeneration & Environment,ENTERPRISE FLEX-E-RENT,Fleet Hire And Purchase  Financing,11423566,11-Jan-23,-187.44
Rotherham MBC,Regeneration & Environment,ENTERPRISE FLEX-E-RENT,Fleet Hire And Purchase  Financing,11423567,11-Jan-23,833.79
Rotherham MBC,Regeneration & Environment,ENTERPRISE FLEX-E-RENT,Fleet Hire And Purchase  Financing,11423567,11-Jan-23,-187.44
Rotherham MBC,Regeneration & Environment,ENTERPRISE FLEX-E-RENT,Fleet Hire And Purchase  Financing,11423568,11-Jan-23,923.76
Rotherham MBC,Regeneration & Environment,ENTERPRISE FLEX-E-RENT,Fleet Hire And Purchase  Financing,11423568,11-Jan-23,-207.66
Rotherham MBC,Regeneration & Environment,ENTERPRISE FLEX-E-RENT,Fleet Hire And Purchase  Financing,11423569,11-Jan-23,923.76
Rotherham MBC,Regeneration & Environment,ENTERPRISE FLEX-E-RENT,Fleet Hire And Purchase  Financing,11423569,11-Jan-23,-207.66
Rotherham MBC,Regeneration & Environment,ENTERPRISE FLEX-E-RENT,Fleet Hire And Purchase  Financing,11423570,11-Jan-23,923.76
Rotherham MBC,Regeneration & Environment,ENTERPRISE FLEX-E-RENT,Fleet Hire And Purchase  Financing,11423570,11-Jan-23,-207.66
Rotherham MBC,Regeneration & Environment,ENTERPRISE FLEX-E-RENT,Fleet Hire And Purchase  Financing,11423571,11-Jan-23,923.76
Rotherham MBC,Regeneration & Environment,ENTERPRISE FLEX-E-RENT,Fleet Hire And Purchase  Financing,11423571,11-Jan-23,-207.66
Rotherham MBC,Regeneration & Environment,BATLEYS FOODSERVICE,Food And Drink,11423585,12-Jan-23,851.45
Rotherham MBC,Regeneration & Environment,BATLEYS FOODSERVICE,Food And Drink,11423588,12-Jan-23,398.92
Rotherham MBC,Regeneration & Environment,AMP BIOMASS FUEL LTD,Fuel/Heating Oil,11423593,12-Jan-23,775.56
Rotherham MBC,Adult Care & Housing,YORKSHIRE WATER,Water Services,11423596,17-Jan-23,100.85
Rotherham MBC,Adult Care & Housing,DULUX DECORATOR CENTRES,Repair And Maintenance,11423597,11-Jan-23,292.31
Rotherham MBC,Adult Care & Housing,YORKSHIRE WATER,Water Services,11423598,17-Jan-23,64.99
Rotherham MBC,Regeneration & Environment,STAG SECURITY,Security,11423600,24-Jan-23,2520.00
Rotherham MBC,Adult Care & Housing,AGE UK ROTHERHAM,Supporting Minorities & Communities,11423603,09-Jan-23,5000.00
Rotherham MBC,Regeneration & Environment,PENNA PLC,Advertising Services,11423605,12-Jan-23,92.31
Rotherham MBC,Regeneration & Environment,PENNA PLC,Advertising Services,11423607,12-Jan-23,121.29
Rotherham MBC,Regeneration & Environment,PENNA PLC,Advertising Services,11423608,12-Jan-23,222.85
Rotherham MBC,Regeneration & Environment,PENNA PLC,Advertising Services,11423609,12-Jan-23,198.05
Rotherham MBC,Regeneration & Environment,PENNA PLC,Advertising Services,11423610,12-Jan-23,133.72
Rotherham MBC,Regeneration & Environment,PENNA PLC,Advertising Services,11423611,12-Jan-23,116.27
Rotherham MBC,Regeneration & Environment,FLOGAS BRITAIN LIMITED,Energy,11423612,23-Jan-23,466.56
Rotherham MBC,Regeneration & Environment,PENNA PLC,Advertising Services,11423614,12-Jan-23,235.01
Rotherham MBC,Regeneration & Environment,REED SPECIALIST RECRUITMENT LTD,Agency Staff Services,11423615,10-Jan-23,5316.96
Rotherham MBC,Regeneration & Environment,REED SPECIALIST RECRUITMENT LTD,Agency Staff Services,11423616,10-Jan-23,4956.44
Rotherham MBC,Regeneration & Environment,FRESHWAYS,Food And Drink,11423617,09-Jan-23,53.18
Rotherham MBC,Adult Care & Housing,YORKSHIRE WATER,Water Services,11423618,17-Jan-23,22.62
Rotherham MBC,Adult Care & Housing,YORKSHIRE WATER,Water Services,11423619,17-Jan-23,61.73
Rotherham MBC,Adult Care & Housing,YORKSHIRE WATER,Water Services,11423620,17-Jan-23,241.01
Rotherham MBC,Adult Care & Housing,YORKSHIRE WATER,Water Services,11423621,17-Jan-23,104.11
Rotherham MBC,Regeneration & Environment,YORKSHIRE WATER,Water Services,11423622,11-Jan-23,1170.81
Rotherham MBC,Adult Care & Housing,BRITISH TELECOMMUNICATIONS PLC,Telecomms,11423625,06-Jan-23,55.89
Rotherham MBC,Adult Care & Housing,HOPWELLS LTD,Food And Drink,11423626,09-Jan-23,-10.08
Rotherham MBC,Regeneration & Environment,FRESHWAYS,Food And Drink,11423627,09-Jan-23,79.78
Rotherham MBC,Adult Care & Housing,BRITISH GAS,Energy,11423628,09-Jan-23,492.44
Rotherham MBC,Regeneration & Environment,FRESHWAYS,Food And Drink,11423631,09-Jan-23,17.12
Rotherham MBC,Regeneration & Environment,FRESHWAYS,Food And Drink,11423632,09-Jan-23,51.36
Rotherham MBC,Adult Care & Housing,FRESHWAYS,Food And Drink,11423633,09-Jan-23,398.40
Rotherham MBC,Adult Care & Housing,BRITISH GAS,Energy,11423634,09-Jan-23,402.43
Rotherham MBC,Adult Care & Housing,FRESHWAYS,Food And Drink,11423635,09-Jan-23,357.38
Rotherham MBC,Adult Care & Housing,BRITISH GAS,Energy,11423636,09-Jan-23,179.53
Rotherham MBC,Adult Care & Housing,FRESHWAYS,Food And Drink,11423637,11-Jan-23,573.12
Rotherham MBC,Adult Care & Housing,FRESHWAYS,Food And Drink,11423638,11-Jan-23,459.16
Rotherham MBC,Regeneration & Environment,CHARANGA LTD,Licence & Professional Fees,11423639,09-Jan-23,6460.00
Rotherham MBC,Regeneration & Environment,FRESHWAYS,Food And Drink,11423640,09-Jan-23,26.26
Rotherham MBC,Regeneration & Environment,FRESHWAYS,Food And Drink,11423641,09-Jan-23,33.86
Rotherham MBC,Regeneration & Environment,FRESHWAYS,Food And Drink,11423642,09-Jan-23,21.75
Rotherham MBC,Adult Care & Housing,BRITISH GAS,Energy,11423643,09-Jan-23,174.65
Rotherham MBC,Regeneration & Environment,TIFFIN SANDWICHES LTD,Food And Drink,11423648,11-Jan-23,533.51
Rotherham MBC,Regeneration & Environment,TIFFIN SANDWICHES LTD,Food And Drink,11423649,11-Jan-23,465.78
Rotherham MBC,Adult Care & Housing,BRITISH GAS,Energy,11423650,17-Jan-23,453.17
Rotherham MBC,Adult Care & Housing,BRITISH GAS,Energy,11423652,09-Jan-23,85.70
Rotherham MBC,Adult Care & Housing,BRITISH GAS,Energy,11423652,09-Jan-23,314.72
Rotherham MBC,Regeneration & Environment,TIFFIN SANDWICHES LTD,Food And Drink,11423653,11-Jan-23,215.80
Rotherham MBC,Adult Care & Housing,BRITISH GAS,Energy,11423654,09-Jan-23,226.07
Rotherham MBC,Adult Care & Housing,BRITISH GAS,Energy,11423654,09-Jan-23,656.39
Rotherham MBC,Adult Care & Housing,BRITISH GAS,Energy,11423655,23-Jan-23,148.41
Rotherham MBC,Regeneration & Environment,TECALEMIT GARAGE EQUIPMENT CO LTD,Transport  Operations And Logistics,11423656,09-Jan-23,1349.00
Rotherham MBC,Regeneration & Environment,ECON ENGINEERING LTD,Training Services,11423657,10-Jan-23,39856.08
Rotherham MBC,Regeneration & Environment,TIFFIN SANDWICHES LTD,Food And Drink,11423658,11-Jan-23,200.72
Rotherham MBC,Finance & Customer Services,WHISTL UK LTD,Postal And Courier Services,11423662,09-Jan-23,69.30
Rotherham MBC,Finance & Customer Services,WHISTL UK LTD,Postal And Courier Services,11423663,09-Jan-23,50.34
Rotherham MBC,Finance & Customer Services,WHISTL UK LTD,Postal And Courier Services,11423665,09-Jan-23,2.10
Rotherham MBC,Adult Care & Housing,HOPWELLS LTD,Food And Drink,11423667,09-Jan-23,314.18
Rotherham MBC,Regeneration & Environment,HOPWELLS LTD,Food And Drink,11423668,09-Jan-23,82.88
Rotherham MBC,Regeneration & Environment,HOPWELLS LTD,Food And Drink,11423669,09-Jan-23,92.97
Rotherham MBC,Regeneration & Environment,HOPWELLS LTD,Food And Drink,11423669,09-Jan-23,13.16
Rotherham MBC,Regeneration & Environment,HOPWELLS LTD,Food And Drink,11423669,09-Jan-23,690.82
Rotherham MBC,Regeneration & Environment,CIVICA UK LIMITED,Technology,11423670,16-Jan-23,4479.48
Rotherham MBC,Finance & Customer Services,AARON DINNES,Legal Services,11423673,09-Jan-23,700.00
Rotherham MBC,Children & Young Peoples Serv,ROYAL NATIONAL COLLEGE FOR THE BLIND,Supporting People - Learning Disabilities,11423676,17-Jan-23,20893.33
Rotherham MBC,Finance & Customer Services,ROYAL MAIL,Postal And Courier Services,11423677,06-Jan-23,58.41
Rotherham MBC,Finance & Customer Services,BRITISH TELECOMMUNICATIONS PLC,Telecomms,11423678,06-Jan-23,430.00
Rotherham MBC,Regeneration & Environment,BRITISH TELECOMMUNICATIONS PLC,Telecomms,11423679,06-Jan-23,25.12
Rotherham MBC,Finance & Customer Services,ROYAL MAIL,Postal And Courier Services,11423680,06-Jan-23,4.32
Rotherham MBC,Adult Care & Housing,BRITISH GAS,Energy,11423681,09-Jan-23,86.82
Rotherham MBC,Adult Care & Housing,BRITISH GAS,Energy,11423681,09-Jan-23,222.32
Rotherham MBC,Adult Care & Housing,BRITISH GAS,Energy,11423682,23-Jan-23,86.02
Rotherham MBC,Adult Care & Housing,BRITISH GAS,Energy,11423683,09-Jan-23,163.41
Rotherham MBC,Children & Young Peoples Serv,LYRECO UK LTD,Stationery  Furniture & It Consumables,11423684,12-Jan-23,9.75
Rotherham MBC,Adult Care & Housing,BRITISH GAS,Energy,11423686,09-Jan-23,169.10
Rotherham MBC,Adult Care & Housing,BRITISH GAS,Energy,11423686,09-Jan-23,355.66
Rotherham MBC,Regeneration & Environment,CMS HIRE LIMITED,Fleet Hire And Purchase  Financing,11423687,18-Jan-23,5031.00
Rotherham MBC,Regeneration & Environment,CMS HIRE LIMITED,Fleet Hire And Purchase  Financing,11423687,18-Jan-23,-1131.00
Rotherham MBC,Adult Care & Housing,ROTHERHAM NHS FOUNDATION TRUST,Public Health & Care Services,11423689,17-Jan-23,23000.00
Rotherham MBC,Regeneration & Environment,CMS HIRE LIMITED,Fleet Hire And Purchase  Financing,11423690,18-Jan-23,5031.00
Rotherham MBC,Regeneration & Environment,CMS HIRE LIMITED,Fleet Hire And Purchase  Financing,11423690,18-Jan-23,-1131.00
Rotherham MBC,Regeneration & Environment,CMS HIRE LIMITED,Fleet Hire And Purchase  Financing,11423692,18-Jan-23,5031.00
Rotherham MBC,Regeneration & Environment,CMS HIRE LIMITED,Fleet Hire And Purchase  Financing,11423692,18-Jan-23,-1131.00
Rotherham MBC,Regeneration & Environment,LYRECO UK LTD,Stationery  Furniture & It Consumables,11423693,09-Jan-23,99.90
Rotherham MBC,Regeneration & Environment,HALL PLANT HIRE LTD,Plant Hire,11423694,09-Jan-23,165.00
Rotherham MBC,Finance & Customer Services,BRITISH TELECOMMUNICATIONS PLC,Telecomms,11423695,06-Jan-23,55.89
Rotherham MBC,Adult Care & Housing,BRITISH TELECOMMUNICATIONS PLC,Telecomms,11423697,06-Jan-23,37.89
Rotherham MBC,Adult Care & Housing,BRITISH TELECOMMUNICATIONS PLC,Telecomms,11423697,06-Jan-23,22.00
Rotherham MBC,Finance & Customer Services,BRITISH TELECOMMUNICATIONS PLC,Telecomms,11423699,06-Jan-23,133.04
Rotherham MBC,Regeneration & Environment,KNIVETON (UK) LIMITED,Waste Disposal Inc Skip Hire,11423700,16-Jan-23,577.20
Rotherham MBC,Assistant Chief Executive,B & B PRESS (PARKGATE) LTD,Printing Services,11423701,09-Jan-23,975.00
Rotherham MBC,Regeneration & Environment,SHEFFLOCK,Security,11423703,09-Jan-23,360.00
Rotherham MBC,Regeneration & Environment,AROUNDTOWN,Printing Services,11423704,10-Jan-23,675.00
Rotherham MBC,Regeneration & Environment,DIRECT TRAFFIC MANAGEMENT LTD,Road Markings And Traffic Management,11423705,23-Jan-23,964.60
Rotherham MBC,Regeneration & Environment,CMS HIRE LIMITED,Fleet Hire And Purchase  Financing,11423707,18-Jan-23,5031.00
Rotherham MBC,Regeneration & Environment,CMS HIRE LIMITED,Fleet Hire And Purchase  Financing,11423707,18-Jan-23,-1131.00
Rotherham MBC,Regeneration & Environment,DIRECT TRAFFIC MANAGEMENT LTD,Road Markings And Traffic Management,11423708,25-Jan-23,2887.08
